Workbook

Sheet 1.0 LDC Info
A1: LRAMVA Model version 1.0 © CHEC | T1: 2
A9: LDC Info
D11: Utility Name | E11: Centre Wellington Hydro Ltd
D13: Service Territory | E13: Fergus and Elora
D15: Assigned EB Number
D17: Name of Contact and Title
D19: Phone Number
D21: Email Address
D23: Bridge Year
D25: Test Year
D27: Last Rebasing Year | E27: 2013 | F27: =IF(Test_Year-Last_Rebasing_Year>6, "Number of Years exceeds between CoS exceeds 6 years","") -> 
B29: Notes
C31: Pale green cells represent input cells.
C33: White cells contain fixed values, automatically generated values or formulae.

Sheet 2.0 Customer Classes
A1: LRAMVA Model version 1.0 © CHEC | T1: 2
A9: Customer Class & Current Tariff Sheet
A12: Customer Class Name | B12: Existing/ Proposed | C12: MSC Metric | D12: Usage Metric
A13: Residential | B13: Exisitng | C13: Customer | D13: kWh
A14: General Service < 50 kW | B14: Existing | C14: Customer | D14: kWh
A15: General Service 50 to 2999 kW | B15: Existing | C15: Customer | D15: kW
A16: General Service 3000 to 4999 kW | B16: Existing | C16: Customer | D16: kW
A17: Unmetered Scattered Load | B17: Existing | C17: Customer | D17: kWh
A18: Sentinel Lighting | B18: Existing | C18: Connection | D18: kW
A19: Street Lighting | B19: Existing | C19: Connection | D19: kW
A20: other
A21: other
A22: other

Sheet Instructions (hidden)
A1: Worksheet | B1: Notes
A2: LRAM VA Register | B2: Table 1 provides a summary of account balance history for account 1568 for each year. Amounts cleared through Rate Order are input by rate class.
A3: Approved Load Forecast | B3: Input kWh/kW savings included in most recent approved load forecast in Table 2. Table 3 will calculate dollars for LRAMVA account 1568.
A4: Carrying Charges | B4: Input most recent Board-approved rate in Table 4 as available; Cumulative carrying charges are calculated in Table 5.
A5: Rates | B5: Input approved distribution rates in Table 6 from rate orders. Only the Distribution Volumetric Rate and the Rate Rider for Application of Tax Change are used.
A6: 2011LostRev | B6: Table 7 - Input program details, report status, kWh and kW net savings from OPA 2011 Final Annual Report Data - Table 5; Input allocation % for each rate class.
A7: 2012LostRev | B7: Table 8 - Input program details, report status, kWh and kW net savings from Final Verified Annual 2012 CDM Report_Local Distribution Corporation/Table 1 - 2012 Savings & Table 2 - Adjustments due to Errors and Omissions; OPA report provided in pdf with exception of a few LDCs; Input allocation % for each rate class.
A8: 2012 Gross to Net Savings | B8: Table 9 - Retrieve the "Gross to Net Savings" report for the LDC from the OPA website: https://portal.ieso.ca - select your LDC under Community Projects/Documents/Conservation Officer - LDC Reports/Documents. NOTE: Check the values in the "Net Annual Summer Peak Demand Savings - MWh" (column O) against LDC Results for the corresponding year. Also check any prior year true-ups against the LDC True-Up report - ensure that figures reconcile to the OPA reports; Check the values in the "Net Annual Energy Savings - MWh" (column AS) against LDC Results for the corresponding year. Also check any prior year true-ups against the LDC True-Up report - ensure that figures reconcile to the OPA reports.
A9: 2013LostRev | B9: Table 10 - Input program details, report status, kWh and kW net savings from OPA 2013 Final Annual Report Data (excel format) when available; Input allocation % for each rate class.
A10: 2014LostRev | B10: Table 11 - Input program details, report status, kWh and kW net savings from OPA 2014 Final Annual Report (excel format) when available; Input allocation % for each rate class.
A11: Persistence/2011 | B11: 2011 OPA final report was provided in excel. Copy MW and GWh from Annual OPA Report - Progress Toward Targets (Tables 6 and 7_ sheet 3.1.1 Summary – LDC) in the 2011 Final Annual Report to row 7 and row 25 in Table 12 and 13 - Persistence tab. This data provides the information that LDCS require to calculate persistence for 2011 OPA Programs.
A12: Persistence/2012 | B12: Copy MW and GWh from 2012 Gross to Net Savings to Report / Progress Toward Targets to row 8 and row 26 in Table 12 and 13 - Persistence tab. This data provides the information that LDCS require to calculate persistence for 2012 OPA Programs.
A13: Persistence/2013 | B13: Copy MW and GWh from 2013 Final Annual OPA Report/Progress Toward Targets to row 9 and row 27 in Table 12 and 13 - Persistence tab when available. If the report is provided in excel format, data may be copied directly to appropriate cells in Persistence tab.
A14: Classes Billed on kW | B14: Annual Savings Methodology
A15: GS > 50 kW Initiatives excluding Demand Response 3 | B15: Apply 12 months of peak demand to the kW results in the OPA final verified CDM results to determine the annual savings.
A16: GS > 50 kW Demand Response 3 Initiative | B16: Apply 5 months of peak demand to the kW results in the OPA final verified CDM results to determine the annual savings.
B17: References:
A18: EB-2013-0148 | B18: Lakefront Utilities Inc.
B19: LUI_replySUB_BrdStaff_VECC_20140116, pages 2-3
B20: BrdStaff_SUB_Lakefront Utilities_20131218, pages 4-6
A22: EB-2012-0107 | B22: Bluewater Power Distribution Corporation
B23: dec_order_rates_Bluewater_20130425, Settlement Agreement, page 48
B24: Bluewater_appl_CoS_EDR_Ex 9_Deferral and Variance Accounts_20121022, Exhibit 9, Tab 3, Schedule 1, Attachment 2

Sheet 3.0 LRAMVA Register
A1: LRAMVA Model version 1.0 © CHEC
E6: Table 1 - LRAMVA register
A8: Verified results updated | B8: 2013
A10: Description | B10: ='2.0 Customer Classes'!$A13 -> Residential | C10: ='2.0 Customer Classes'!$A14 -> General Service < 50 kW | D10: ='2.0 Customer Classes'!$A15 -> General Service 50 to 2999 kW | E10: ='2.0 Customer Classes'!$A16 -> General Service 3000 to 4999 kW | F10: ='2.0 Customer Classes'!$A17 -> Unmetered Scattered Load | G10: ='2.0 Customer Classes'!$A18 -> Sentinel Lighting | H10: ='2.0 Customer Classes'!$A19 -> Street Lighting | I10: ='2.0 Customer Classes'!$A20 -> other | J10: ='2.0 Customer Classes'!$A21 -> other | K10: ='2.0 Customer Classes'!$A22 -> other | L10: Total | M10: Final Claim
A11: 2011 Forecast | B11: =-'4.0 Approved Load Forecast'!D34 -> 0 | C11: =-'4.0 Approved Load Forecast'!E34 -> 0 | D11: =-'4.0 Approved Load Forecast'!F34 -> 0 | E11: =-'4.0 Approved Load Forecast'!G34 -> 0 | F11: =-'4.0 Approved Load Forecast'!H34 -> 0 | G11: =-'4.0 Approved Load Forecast'!I34 -> 0 | H11: =-'4.0 Approved Load Forecast'!J34 -> 0 | L11: =SUM(B11:K11) -> 0
A12: 2011 Verified | B12: ='7.0 2011LostRev'!F47 -> 2227.960254 | C12: ='7.0 2011LostRev'!G47 -> 2187.043715 | D12: ='7.0 2011LostRev'!H47 -> 3956.080452 | E12: ='7.0 2011LostRev'!I47 -> 88.27365544 | F12: ='7.0 2011LostRev'!J47 -> 0 | G12: ='7.0 2011LostRev'!K47 -> 0 | H12: ='7.0 2011LostRev'!L47 -> 0 | L12: =SUM(B12:K12) -> 8459.358076
A13: 2011 Cleared | B13: 0 | C13: 0 | D13: 0 | E13: 0 | F13: 0 | G13: 0 | H13: 0 | L13: 0 | M13: =L12 -> 8459.358076
A15: 2012 Forecast | B15: =-'4.0 Approved Load Forecast'!D35 -> 0 | C15: =-'4.0 Approved Load Forecast'!E35 -> 0 | D15: =-'4.0 Approved Load Forecast'!F35 -> 0 | E15: =-'4.0 Approved Load Forecast'!G35 -> 0 | F15: =-'4.0 Approved Load Forecast'!H35 -> 0 | G15: =-'4.0 Approved Load Forecast'!I35 -> 0 | H15: =-'4.0 Approved Load Forecast'!J35 -> 0 | L15: 0
A16: 2012 Verified | B16: ='8.0 2012LostRev'!F63 -> 3647.694851 | C16: ='8.0 2012LostRev'!G63 -> 14307.07126 | D16: ='8.0 2012LostRev'!H63 -> 5802.538083 | E16: ='8.0 2012LostRev'!I63 -> 82.71938919 | F16: ='8.0 2012LostRev'!J63 -> 0 | G16: ='8.0 2012LostRev'!K63 -> 0 | H16: ='8.0 2012LostRev'!L63 -> 0 | L16: 23840.02358
A17: 2012 Cleared | B17: 0 | C17: 0 | D17: 0 | E17: 0 | F17: 0 | G17: 0 | H17: 0 | L17: 0 | M17: =L16 -> 23840.02358
A19: 2013 Forecast | B19: =-'4.0 Approved Load Forecast'!D36 -> -4138.8136 | C19: =-'4.0 Approved Load Forecast'!E36 -> -2346.054888 | D19: =-'4.0 Approved Load Forecast'!F36 -> -3405.021446 | E19: =-'4.0 Approved Load Forecast'!G36 -> -659.7897853 | F19: =-'4.0 Approved Load Forecast'!H36 -> -70.29269671 | G19: =-'4.0 Approved Load Forecast'!I36 -> -8.265868425 | H19: =-'4.0 Approved Load Forecast'!J36 -> -321.3930477 | L19: -10949.63133
A20: 2013 Actuals | B20: ='9.0 2013LostRev'!F70 -> 5362.434271 | C20: ='9.0 2013LostRev'!G70 -> 18972.88866 | D20: ='9.0 2013LostRev'!H70 -> 36106.67973 | E20: ='9.0 2013LostRev'!I70 -> 87.748045 | F20: ='9.0 2013LostRev'!J70 -> 0 | G20: ='9.0 2013LostRev'!K70 -> 0 | H20: ='9.0 2013LostRev'!L70 -> 0 | L20: 60529.7507
A21: 2013 Cleared | B21: 0 | C21: 0 | D21: 0 | E21: 0 | F21: 0 | G21: 0 | H21: 0 | L21: 0 | M21: =SUM(L19:L20) -> 49580.11937
A23: 2014 Forecast | B23: =-'4.0 Approved Load Forecast'!D37 -> -4365.315837 | C23: =-'4.0 Approved Load Forecast'!E37 -> -2518.053047 | D23: =-'4.0 Approved Load Forecast'!F37 -> -3747.340934 | E23: =-'4.0 Approved Load Forecast'!G37 -> -701.6349532 | F23: =-'4.0 Approved Load Forecast'!H37 -> -42.24353368 | G23: =-'4.0 Approved Load Forecast'!I37 -> -8.346206769 | H23: =-'4.0 Approved Load Forecast'!J37 -> -188.6054831 | L23: -11571.53999
A24: 2014 Actuals | B24: ='10.0 2014LostRev'!F57 -> 5500.109816 | C24: ='10.0 2014LostRev'!G57 -> 19781.51943 | D24: ='10.0 2014LostRev'!H57 -> 12713.93769 | E24: ='10.0 2014LostRev'!I57 -> 88.51672603 | F24: ='10.0 2014LostRev'!J57 -> 0 | G24: ='10.0 2014LostRev'!K57 -> 0 | H24: ='10.0 2014LostRev'!L57 -> 0 | L24: =SUM(B24:K24) -> 38084.08366
A25: 2014 Cleared | L25: 0
A27: Carrying Charges1 | B27: ='5.0 Carrying Charges'!F68 -> 101.8784197 | C27: ='5.0 Carrying Charges'!G68 -> 234.2837413 | D27: ='5.0 Carrying Charges'!H68 -> 191.7500715 | E27: ='5.0 Carrying Charges'!I68 -> 2.937178726 | F27: ='5.0 Carrying Charges'!J68 -> -0.04305427674 | G27: ='5.0 Carrying Charges'!K68 -> -0.00506284441 | H27: ='5.0 Carrying Charges'!L68 -> -0.1968532417 | L27: 530.6044408
A28: Balance | B28: =SUM(B11:B27) -> 8335.948174 | C28: =SUM(C11:C27) -> 50618.69887 | D28: 51618.62364 | E28: -1011.229744 | F28: -112.5792847 | G28: -16.61713804 | H28: -510.195384 | K28: 0 | L28: =SUM(L11:L27) -> 108922.6491 | M28: =SUM(M11:M27) -> 81879.50103 | N28: *** received 2010 persistance in 2013 CoS
N29: *** reconciles with balance at Dec 31,2014/RRR
A31: Input amounts cleared by rate class.
A32: 1 Update formula for most recent rate year

Sheet 4.0 Approved Load Forecast
A1: LRAMVA Model version 1.0 © CHEC
B8: CDM Targets - 1/2 year rule - final CDM via Irs
B10: Forecast Year
D11: kWh | E11: kW
B12: 2011 | D12: 0 | E12: =E13*0.5 -> 
B13: 2012 | D13: 0 | E13: =N63 -> 
B14: 2013 | D14: ='CDM in 2013 CoS'!D11 -> 986133 | E14: =N76 -> -1337.053436
B15: 2014 | D15: ='CDM in 2013 CoS'!D11 -> 986133 | E15: =N89 -> -1337.053436
D16: =SUM(D12:D15) -> 1972266 | E16: =SUM(E12:E15) -> 
B18: Table 2 - Savings Due to CDM Included in Approved Load Forecast
B20: Forecast Year | D20: ='3.0 LRAMVA Register'!B$10 -> Residential | E20: ='3.0 LRAMVA Register'!C$10 -> General Service < 50 kW | F20: ='3.0 LRAMVA Register'!D$10 -> General Service 50 to 2999 kW | G20: ='3.0 LRAMVA Register'!E$10 -> General Service 3000 to 4999 kW | H20: ='3.0 LRAMVA Register'!F$10 -> Unmetered Scattered Load | I20: ='3.0 LRAMVA Register'!G$10 -> Sentinel Lighting | J20: ='3.0 LRAMVA Register'!H$10 -> Street Lighting | K20: ='3.0 LRAMVA Register'!I$10 -> other | L20: ='3.0 LRAMVA Register'!J$10 -> other | M20: ='3.0 LRAMVA Register'!K$10 -> other | N20: ='3.0 LRAMVA Register'!L10 -> Total
D21: ='2.0 Customer Classes'!$D13 -> kWh | E21: ='2.0 Customer Classes'!$D14 -> kWh | F21: ='2.0 Customer Classes'!$D15 -> kW | G21: ='2.0 Customer Classes'!$D16 -> kW | H21: ='2.0 Customer Classes'!$D17 -> kWh | I21: ='2.0 Customer Classes'!$D18 -> kW | J21: ='2.0 Customer Classes'!$D19 -> kW | K21: ='2.0 Customer Classes'!$D20 -> 0 | L21: ='2.0 Customer Classes'!$D21 -> 0 | M21: ='2.0 Customer Classes'!$D22 -> 0
B22: 2011 | D22: 0 | E22: 0 | F22: 0 | G22: 0 | H22: 0 | I22: 0 | J22: 0
B23: 2012 | D23: 0 | E23: 0 | F23: 0 | G23: 0 | H23: 0 | I23: 0 | J23: 0
B24: 2013 | D24: =-D72 -> 308866.6866 | E24: =-E72 -> 137598.5271 | F24: =-F76 -> 1062.773946 | G24: =-G76 -> 252.2566134 | H24: =-H72 -> 4074.93894 | I24: =-I76 -> 0.7016449298 | J24: =-J76 -> 21.32123165
B25: 2014 | D25: =-D85 -> 308866.6866 | E25: =-E85 -> 137598.5271 | F25: =-F89 -> 1062.773946 | G25: =-G89 -> 252.2566134 | H25: =-H85 -> 4074.93894 | I25: =-I89 -> 0.7016449298 | J25: =-J89 -> 21.32123165
B27: Notes: | D27: No CDM for 2011-2014 assumed in the most recent load forecast (2010 Cost of Service application)
B30: Table 3 - Forecast Loss Revenue by Class
B32: Forecast Year | D32: =D20 -> Residential | E32: General Service < 50 kW | F32: General Service 50 to 2999 kW | G32: General Service 3000 to 4999 kW | H32: Unmetered Scattered Load | I32: Sentinel Lighting | J32: Street Lighting | K32: other | L32: other | M32: other | N32: Total
D33: $ | E33: $ | F33: $ | G33: $ | H33: $ | I33: $ | J33: $ | K33: $ | L33: $ | M33: $ | N33: $
B34: 2011 | D34: =D22*'6.0 Rates'!C15 -> 0 | E34: =E22*'6.0 Rates'!C16 -> 0 | F34: =F22*'6.0 Rates'!C17 -> 0 | G34: =G22*'6.0 Rates'!C18 -> 0 | H34: =H22*'6.0 Rates'!C19 -> 0 | I34: =I22*'6.0 Rates'!C20 -> 0 | J34: =J22*'6.0 Rates'!C21 -> 0 | N34: =SUM(D34:M34) -> 0
B35: 2012 | D35: =D23*'6.0 Rates'!D15 -> 0 | E35: =E23*'6.0 Rates'!D16 -> 0 | F35: =F23*'6.0 Rates'!D17 -> 0 | G35: =G23*'6.0 Rates'!D18 -> 0 | H35: =H23*'6.0 Rates'!D19 -> 0 | I35: =I23*'6.0 Rates'!D20 -> 0 | J35: =J23*'6.0 Rates'!D21 -> 0 | N35: =SUM(D35:M35) -> 0
B36: 2013 | D36: =D24*'6.0 Rates'!E15 -> 4138.8136 | E36: =E24*'6.0 Rates'!E16 -> 2346.054888 | F36: =F24*'6.0 Rates'!E17 -> 3405.021446 | G36: =G24*'6.0 Rates'!E18 -> 659.7897853 | H36: =H24*'6.0 Rates'!E19 -> 70.29269671 | I36: =I24*'6.0 Rates'!E20 -> 8.265868425 | J36: =J24*'6.0 Rates'!E21 -> 321.3930477 | N36: 10949.63133
B37: 2014 | D37: =D25*'6.0 Rates'!F15 -> 4365.315837 | E37: =E25*'6.0 Rates'!F16 -> 2518.053047 | F37: =F25*'6.0 Rates'!F17 -> 3747.340934 | G37: =G25*'6.0 Rates'!F18 -> 701.6349532 | H37: =H25*'6.0 Rates'!F19 -> 42.24353368 | I37: =I25*'6.0 Rates'!F20 -> 8.346206769 | J37: =J25*'6.0 Rates'!F21 -> 188.6054831 | N37: 11571.53999
A42: CDM Adjustment as Approved in last Cost of Service
B44: 2011 | D44: =D32 -> Residential | E44: =E32 -> General Service < 50 kW | F44: General Service 50 to 2999 kW | G44: General Service 3000 to 4999 kW | H44: Unmetered Scattered Load | I44: Sentinel Lighting | J44: Street Lighting | K44: other | L44: other | M44: other | N44: Total
B46: Test Weather Normal Billed kWh | D46: 0 | E46: 0 | F46: 0 | G46: 0 | H46: 0 | I46: 0 | J46: 0 | K46: 0 | L46: 0 | M46: 0 | N46: =SUM(D46:M46) -> 0
B47: % of Billed | D47: =D46/$N$46 ->  | K47: =K46/$N$46 ->  | M47: =M46/$N$46 ->  | N47: =SUM(D47:M47) -> 
B48: CDM Spread kWh | D48: =-$D$12*D47 ->  | J48: =-$D$12*J47 ->  | M48: =-$D$12*M47 ->  | N48: =SUM(D48:M48) -> 
B49: Adjusted Billed kWh with CDM Applied | D49: =D46+D48 ->  | E49: =E46+E48 ->  | N49: =SUM(D49:M50) -> 
B51: ***CWH No CDM was applied to Load Forecast prior to 2012 | D51: No CDM was applied to Load Forecast since to 2010. The tables below will be used to show the OEB approved billed data from which CDM adjustments are derived
B52: Model should be shown with all rows as CDM may have been included for other LDC in previous CoS applications - Comment row should be included.
B55: 2012 | D55: =D44 -> Residential | E55: General Service < 50 kW | F55: General Service 50 to 2999 kW | G55: General Service 3000 to 4999 kW | H55: Unmetered Scattered Load | I55: Sentinel Lighting | J55: Street Lighting | K55: other | L55: other | M55: other | N55: Total
B56: kWh
B57: TEST Weather Normal Billed kWh | D57: 0 | E57: 0 | F57: 0 | G57: 0 | H57: 0 | I57: 0 | J57: 0 | K57: 0 | L57: 0 | M57: 0 | N57: =SUM(D57:M57) -> 0
B58: % of Billed | D58: =D57/$N$57 ->  | E58: =E57/$N$57 ->  | J58: =J57/$N$57 ->  | M58: =M57/$N$57 ->  | N58: =SUM(D58:M58) -> 
B59: CDM Spread kWh | D59: =-$D$13*D58 ->  | E59: =-$D$13*E58 ->  | J59: =-$D$13*J58 ->  | M59: =-$D$13*M58 ->  | N59: =SUM(D59:M59) -> 
B60: Adjusted Billed kWh with CDM Applied | D60: =D57+D59 ->  | E60: =E57+E59 ->  | F60: =F57+F59 ->  | G60: =G57+G59 ->  | H60: =H57+H59 ->  | I60: =I57+I59 ->  | M60: =M57+M59 ->  | N60: =SUM(D60:M61) -> 
B61: kW
B62: TEST Weather Normal Billed kW | D62: =D57*D65 -> 0 | E62: 0 | F62: =F57*F65 -> 0 | G62: =G57*G65 -> 0 | H62: 0 | I62: 0 | J62: =J57*J65 -> 0 | K62: 0 | L62: 0 | M62: 0 | N62: =SUM(D62:M62) -> 0
B63: CDM kW Reduction | D63: =D59*D65 ->  | F63: =F59*F65 ->  | G63: =G59*G65 ->  | J63: =J59*J65 ->  | N63: =SUM(D63:M63) -> 
B64: Adjusted Billed kWh with CDM Applied | D64: =D62+D63 ->  | F64: =F62+F63 ->  | G64: =G62+G63 ->  | J64: =J62+J63 ->  | N64: =SUM(D64:M64) -> 
B65: kWh to KW Ratio
B68: 2013 | D68: =D55 -> Residential | E68: =E55 -> General Service < 50 kW | F68: General Service 50 to 2999 kW | G68: General Service 3000 to 4999 kW | H68: Unmetered Scattered Load | I68: Sentinel Lighting | J68: Street Lighting | K68: other | L68: other | M68: other | N68: Total
B69: kWh
B70: 2013 TEST Weather Normal Billed kWh | D70: ='CDM in 2013 CoS'!B4 -> 46118694 | E70: ='CDM in 2013 CoS'!B5 -> 20545642 | F70: ='CDM in 2013 CoS'!B6 -> 61722677 | G70: ='CDM in 2013 CoS'!B7 -> 17074303 | H70: ='CDM in 2013 CoS'!B10 -> 608453 | I70: ='CDM in 2013 CoS'!B8 -> 37713 | J70: ='CDM in 2013 CoS'!B9 -> 1137812 | N70: =SUM(D70:M70) -> 147245294 | O70: ***In our rate order it says the CDM Adjustment to the Load Forecast is 986,133 kWh
B71: % of Billed | D71: =D70/$N$70 -> 0.3132099692 | E71: =E70/$N$70 -> 0.1395334373 | F71: 0.4191826803 | G71: 0.1159582255 | H71: =H70/$N$70 -> 0.004132240722 | I71: 0.0002561236354 | J71: 0.00772732336 | K71: 0 | L71: 0 | M71: 0 | N71: =SUM(D71:M71) -> 1 | O71: ***In the same rate order "LRAMVA determined using annualized "net" CDM savings of 2,288,799 kWh
B72: CDM Spread kWh | D72: =-$D$14*D71 -> -308866.6866 | E72: -137598.5271 | F72: =-$D$14*F71 -> -413369.8741 | G72: -114350.2328 | H72: =-$D$14*H71 -> -4074.93894 | I72: -252.571969 | J72: =-$D$14*J71 -> -7620.168567 | K72: 0 | L72: 0 | M72: =-$D$14*M71 -> 0 | N72: =SUM(D72:M72) -> -986133
B73: Adjusted Billed kWh with CDM Applied | D73: =D70+D72 -> 45809827.31 | E73: =E70+E72 -> 20408043.47 | F73: =F70+F72 -> 61309307.13 | G73: =G70+G72 -> 16959952.77 | H73: =H70+H72 -> 604378.0611 | I73: =I70+I72 -> 37460.42803 | J73: 1130191.831 | K73: 0 | L73: 0 | M73: =M70+M72 -> 0 | N73: =SUM(D73:M74) -> 146259161
B74: kW
B75: 2013 TEST Weather Normal Billed kW | D75: =D70*D78 -> 0 | E75: =E70*E78 -> 0 | F75: =F70*F78 -> 158689.0026 | G75: =G70*G78 -> 37665.91242 | H75: 0 | I75: 104.766714 | J75: =J70*J78 -> 3183.597976 | K75: 0 | L75: 0 | M75: 0 | N75: =SUM(D75:M75) -> 199643.2797
B76: CDM kW Reduction | D76: =D72*D78 -> 0 | E76: =E72*E78 -> 0 | F76: =F72*F78 -> -1062.773946 | G76: =G72*G78 -> -252.2566134 | H76: 0 | I76: -0.7016449298 | J76: =J72*J78 -> -21.32123165 | K76: 0 | L76: 0 | M76: 0 | N76: =SUM(D76:M76) -> -1337.053436
B77: Adjusted Billed kWh with CDM Applied | D77: =D75+D76 -> 0 | E77: =E75+E76 -> 0 | F77: =F75+F76 -> 157626.2286 | G77: =G75+G76 -> 37413.6558 | H77: =H75+H76 -> 0 | I77: =I75+I76 -> 104.0650691 | J77: 3162.276744 | K77: 0 | L77: 0 | M77: 0 | N77: =SUM(D77:M77) -> 198306.2262
B78: kWh to KW Ratio | D78: 0 | E78: 0 | F78: 0.002571 | G78: 0.002206 | H78: 0 | I78: 0.002778 | J78: 0.002798
B81: 2014 | D81: =D68 -> Residential | E81: =E68 -> General Service < 50 kW | F81: General Service 50 to 2999 kW | G81: General Service 3000 to 4999 kW | H81: Unmetered Scattered Load | I81: Sentinel Lighting | J81: Street Lighting | K81: other | L81: other | M81: other | N81: Total
B82: kWh
B83: 2013 TEST Weather Normal Billed kWh | D83: =D70 -> 46118694 | E83: =E70 -> 20545642 | F83: 61722677 | G83: 17074303 | H83: 608453 | I83: 37713 | J83: 1137812 | K83: 0 | L83: 0 | M83: 0 | N83: =SUM(D83:M83) -> 147245294
B84: % of Billed | D84: =D83/$N$83 -> 0.3132099692 | E84: 0.1395334373 | F84: 0.4191826803 | G84: 0.1159582255 | H84: 0.004132240722 | I84: 0.0002561236354 | J84: 0.00772732336 | K84: 0 | L84: 0 | M84: 0 | N84: =SUM(D84:M84) -> 1
B85: CDM Spread kWh | D85: =-$D$15*D84 -> -308866.6866 | E85: -137598.5271 | F85: -413369.8741 | G85: -114350.2328 | H85: -4074.93894 | I85: -252.571969 | J85: =-$D$15*J84 -> -7620.168567 | K85: 0 | L85: 0 | M85: =-$D$15*M84 -> 0 | N85: =SUM(D85:M85) -> -986133
B86: Adjusted Billed kWh with CDM Applied | D86: =D83+D85 -> 45809827.31 | E86: =E83+E85 -> 20408043.47 | F86: =F83+F85 -> 61309307.13 | G86: =G83+G85 -> 16959952.77 | H86: =H83+H85 -> 604378.0611 | I86: =I83+I85 -> 37460.42803 | J86: 1130191.831 | K86: 0 | L86: 0 | M86: =M83+M85 -> 0 | N86: =SUM(D86:M87) -> 146259161
B87: kW
B88: 2013 TEST Weather Normal Billed kW | D88: =D83*D91 -> 0 | E88: 0 | F88: =F83*F91 -> 158689.0026 | G88: =G83*G91 -> 37665.91242 | H88: 0 | I88: 104.766714 | J88: =J83*J91 -> 3183.597976 | K88: 0 | L88: 0 | M88: 0 | N88: =SUM(D88:M88) -> 199643.2797
B89: CDM kW Reduction | D89: =D85*D91 -> 0 | E89: 0 | F89: =F85*F91 -> -1062.773946 | G89: =G85*G91 -> -252.2566134 | H89: 0 | I89: -0.7016449298 | J89: =J85*J91 -> -21.32123165 | K89: 0 | L89: 0 | M89: 0 | N89: =SUM(D89:M89) -> -1337.053436
B90: Adjusted Billed kWh with CDM Applied | D90: =D88+D89 -> 0 | E90: 0 | F90: =F88+F89 -> 157626.2286 | G90: =G88+G89 -> 37413.6558 | H90: =H88+H89 -> 0 | I90: =I88+I89 -> 104.0650691 | J90: 3162.276744 | K90: 0 | L90: 0 | M90: 0 | N90: =SUM(D90:M90) -> 198306.2262
B91: kWh to KW Ratio | D91: =+D78 -> 0 | E91: 0 | F91: 0.002571 | G91: 0.002206 | H91: 0 | I91: 0.002778 | J91: 0.002798

Sheet 5.0 Carrying Charges
A1: LRAMVA Model version 1.0 © CHEC
G9: Table 4 - Carrying Charges Prescribed Rates
G11: Period | H11: Board specified | I11: Estimated | J11: Used in calculations
G12: 2011 Q1 | H12: 0.0147 | J12: =IF(H12<>0,H12,I12) -> 0.0147
G13: 2011 Q2 | H13: 0.0147 | J13: =IF(H13<>0,H13,I13) -> 0.0147
G14: 2011 Q3 | H14: 0.0147 | J14: 0.0147
G15: 2011 Q4 | H15: 0.0147 | J15: 0.0147
G16: 2012 Q1 | H16: 0.0147 | J16: 0.0147
G17: 2012 Q2 | H17: 0.0147 | J17: 0.0147
G18: 2012 Q3 | H18: 0.0147 | J18: 0.0147
G19: 2012 Q4 | H19: 0.0147 | J19: 0.0147
G20: 2013 Q1 | H20: 0.0147 | J20: 0.0147
G21: 2013 Q2 | H21: 0.0147 | J21: 0.0147
G22: 2013 Q3 | H22: 0.0147 | J22: 0.0147
G23: 2013 Q4 | H23: 0.0147 | J23: 0.0147
G24: 2014 Q1 | H24: 0.0147 | J24: 0.0147
G25: 2014 Q2 | H25: 0.0147 | J25: 0.0147
G26: 2014 Q3 | H26: 0.0147 | J26: 0.0147
G27: 2014 Q4 | H27: 0.0147 | J27: 0.0147
G28: 2015 Q1 | I28: 0.0147 | J28: 0.0147
G29: 2015 Q2 | I29: 0.0147 | J29: 0.0147
G31: Table 5 - Carrying Charges by Rate Class
D32: **Need to change this if go with coloumn B
A33: Month | B33: What CWH thinks (Fiscal month) | C33: Interest for CDM year | D33: Quarter | E33: Monthly Rate | F33: ='3.0 LRAMVA Register'!B10 -> Residential | G33: ='3.0 LRAMVA Register'!C10 -> General Service < 50 kW | H33: ='3.0 LRAMVA Register'!D10 -> General Service 50 to 2999 kW | I33: ='3.0 LRAMVA Register'!E10 -> General Service 3000 to 4999 kW | J33: ='3.0 LRAMVA Register'!F10 -> Unmetered Scattered Load | K33: ='3.0 LRAMVA Register'!G10 -> Sentinel Lighting | L33: ='3.0 LRAMVA Register'!H10 -> Street Lighting | M33: ='3.0 LRAMVA Register'!I10 -> other | N33: ='3.0 LRAMVA Register'!J10 -> other | O33: ='3.0 LRAMVA Register'!K10 -> other | P33: ='3.0 LRAMVA Register'!L10 -> Total
A34: 2011-01-01 | B34: 2012-10-01 | C34: 2011 | D34: Q1 | E34: =J$12/12 -> 0.001225
A35: 2011-02-01 | B35: 2012-11-01 | C35: 2011 | D35: Q1 | E35: =J$12/12 -> 0.001225 | F35: =SUM('3.0 LRAMVA Register'!B$11:B$12)*(MONTH($A35)-1)/12*$E35 -> 0.2274376092 | G35: =SUM('3.0 LRAMVA Register'!C$11:C$12)*(MONTH($A35)-1)/12*$E35 -> 0.2232607125 | H35: =SUM('3.0 LRAMVA Register'!D$11:D$12)*(MONTH($A35)-1)/12*$E35 -> 0.4038498794 | I35: =SUM('3.0 LRAMVA Register'!E$11:E$12)*(MONTH($A35)-1)/12*$E35 -> 0.009011268992 | J35: =SUM('3.0 LRAMVA Register'!F$11:F$12)*(MONTH($A35)-1)/12*$E35 -> 0 | K35: =SUM('3.0 LRAMVA Register'!G$11:G$12)*(MONTH($A35)-1)/12*$E35 -> 0 | L35: =SUM('3.0 LRAMVA Register'!H$11:H$12)*(MONTH($A35)-1)/12*$E35 -> 0 | M35: =SUM('3.0 LRAMVA Register'!I$11:I$12)*(MONTH($A35)-1)/12*$E35 -> 0 | N35: =SUM('3.0 LRAMVA Register'!J$11:J$12)*(MONTH($A35)-1)/12*$E35 -> 0 | O35: =SUM('3.0 LRAMVA Register'!K$11:K$12)*(MONTH($A35)-1)/12*$E35 -> 0 | P35: =SUM(F35:O35) -> 0.8635594702
A36: 2011-03-01 | B36: 2012-12-01 | C36: 2011 | D36: Q1 | E36: =J$12/12 -> 0.001225 | F36: =SUM('3.0 LRAMVA Register'!B$11:B$12)*(MONTH($A36)-1)/12*$E36 -> 0.4548752185 | G36: =SUM('3.0 LRAMVA Register'!C$11:C$12)*(MONTH($A36)-1)/12*$E36 -> 0.4465214251 | H36: =SUM('3.0 LRAMVA Register'!D$11:D$12)*(MONTH($A36)-1)/12*$E36 -> 0.8076997589 | I36: =SUM('3.0 LRAMVA Register'!E$11:E$12)*(MONTH($A36)-1)/12*$E36 -> 0.01802253798 | J36: =SUM('3.0 LRAMVA Register'!F$11:F$12)*(MONTH($A36)-1)/12*$E36 -> 0 | K36: =SUM('3.0 LRAMVA Register'!G$11:G$12)*(MONTH($A36)-1)/12*$E36 -> 0 | L36: =SUM('3.0 LRAMVA Register'!H$11:H$12)*(MONTH($A36)-1)/12*$E36 -> 0 | M36: =SUM('3.0 LRAMVA Register'!I$11:I$12)*(MONTH($A36)-1)/12*$E36 -> 0 | N36: =SUM('3.0 LRAMVA Register'!J$11:J$12)*(MONTH($A36)-1)/12*$E36 -> 0 | O36: =SUM('3.0 LRAMVA Register'!K$11:K$12)*(MONTH($A36)-1)/12*$E36 -> 0 | P36: =SUM(F36:O36) -> 1.72711894
A37: 2011-04-01 | B37: 2013-01-01 | C37: 2011 | D37: Q2 | E37: =J$13/12 -> 0.001225 | F37: =SUM('3.0 LRAMVA Register'!B$11:B$12)*(MONTH($A37)-1)/12*$E37 -> 0.6823128277 | G37: =SUM('3.0 LRAMVA Register'!C$11:C$12)*(MONTH($A37)-1)/12*$E37 -> 0.6697821376 | H37: =SUM('3.0 LRAMVA Register'!D$11:D$12)*(MONTH($A37)-1)/12*$E37 -> 1.211549638 | I37: =SUM('3.0 LRAMVA Register'!E$11:E$12)*(MONTH($A37)-1)/12*$E37 -> 0.02703380698 | J37: =SUM('3.0 LRAMVA Register'!F$11:F$12)*(MONTH($A37)-1)/12*$E37 -> 0 | K37: =SUM('3.0 LRAMVA Register'!G$11:G$12)*(MONTH($A37)-1)/12*$E37 -> 0 | L37: =SUM('3.0 LRAMVA Register'!H$11:H$12)*(MONTH($A37)-1)/12*$E37 -> 0 | M37: =SUM('3.0 LRAMVA Register'!I$11:I$12)*(MONTH($A37)-1)/12*$E37 -> 0 | N37: =SUM('3.0 LRAMVA Register'!J$11:J$12)*(MONTH($A37)-1)/12*$E37 -> 0 | O37: =SUM('3.0 LRAMVA Register'!K$11:K$12)*(MONTH($A37)-1)/12*$E37 -> 0 | P37: 2.590678411
A38: Total for rate year 2010 | F38: =SUM(F34:F37) -> 1.364625655 | G38: =SUM(G34:G37) -> 1.339564275 | H38: 2.423099277 | I38: 0.05406761395 | J38: 0 | K38: 0 | L38: 0 | M38: 0 | N38: 0 | O38: 0 | P38: 5.181356821
A39: Amount Cleared | P39: =SUM(F39:O39) -> 0
A40: Opening Balance for rate year 2011 | F40: =F38+F39 -> 1.364625655 | G40: =G38+G39 -> 1.339564275 | H40: =H38+H39 -> 2.423099277 | I40: =I38+I39 -> 0.05406761395 | J40: 0 | K40: 0 | L40: 0 | M40: 0 | N40: 0 | O40: 0 | P40: =P38+P39 -> 5.181356821
A41: 2011-05-01 | B41: 2013-02-01 | C41: 2011 | D41: Q2 | E41: =J$13/12 -> 0.001225 | F41: =SUM('3.0 LRAMVA Register'!B$11:B$12)*(MONTH($A41)-1)/12*$E41 -> 0.909750437 | G41: =SUM('3.0 LRAMVA Register'!C$11:C$12)*(MONTH($A41)-1)/12*$E41 -> 0.8930428502 | H41: =SUM('3.0 LRAMVA Register'!D$11:D$12)*(MONTH($A41)-1)/12*$E41 -> 1.615399518 | I41: =SUM('3.0 LRAMVA Register'!E$11:E$12)*(MONTH($A41)-1)/12*$E41 -> 0.03604507597 | J41: =SUM('3.0 LRAMVA Register'!F$11:F$12)*(MONTH($A41)-1)/12*$E41 -> 0 | K41: =SUM('3.0 LRAMVA Register'!G$11:G$12)*(MONTH($A41)-1)/12*$E41 -> 0 | L41: =SUM('3.0 LRAMVA Register'!H$11:H$12)*(MONTH($A41)-1)/12*$E41 -> 0 | M41: =SUM('3.0 LRAMVA Register'!I$11:I$12)*(MONTH($A41)-1)/12*$E41 -> 0 | N41: =SUM('3.0 LRAMVA Register'!J$11:J$12)*(MONTH($A41)-1)/12*$E41 -> 0 | O41: =SUM('3.0 LRAMVA Register'!K$11:K$12)*(MONTH($A41)-1)/12*$E41 -> 0 | P41: =SUM(F41:O41) -> 3.454237881
A42: 2011-06-01 | B42: 2013-03-01 | C42: 2011 | D42: Q2 | E42: =J$13/12 -> 0.001225 | F42: =SUM('3.0 LRAMVA Register'!B$11:B$12)*(MONTH($A42)-1)/12*$E42 -> 1.137188046 | G42: =SUM('3.0 LRAMVA Register'!C$11:C$12)*(MONTH($A42)-1)/12*$E42 -> 1.116303563 | H42: =SUM('3.0 LRAMVA Register'!D$11:D$12)*(MONTH($A42)-1)/12*$E42 -> 2.019249397 | I42: =SUM('3.0 LRAMVA Register'!E$11:E$12)*(MONTH($A42)-1)/12*$E42 -> 0.04505634496 | J42: =SUM('3.0 LRAMVA Register'!F$11:F$12)*(MONTH($A42)-1)/12*$E42 -> 0 | K42: =SUM('3.0 LRAMVA Register'!G$11:G$12)*(MONTH($A42)-1)/12*$E42 -> 0 | L42: =SUM('3.0 LRAMVA Register'!H$11:H$12)*(MONTH($A42)-1)/12*$E42 -> 0 | M42: =SUM('3.0 LRAMVA Register'!I$11:I$12)*(MONTH($A42)-1)/12*$E42 -> 0 | N42: =SUM('3.0 LRAMVA Register'!J$11:J$12)*(MONTH($A42)-1)/12*$E42 -> 0 | O42: =SUM('3.0 LRAMVA Register'!K$11:K$12)*(MONTH($A42)-1)/12*$E42 -> 0 | P42: =SUM(F42:O42) -> 4.317797351
A43: 2011-07-01 | B43: 2013-04-01 | C43: 2011 | D43: Q3 | E43: =J$14/12 -> 0.001225 | F43: =SUM('3.0 LRAMVA Register'!B$11:B$12)*(MONTH($A43)-1)/12*$E43 -> 1.364625655 | G43: =SUM('3.0 LRAMVA Register'!C$11:C$12)*(MONTH($A43)-1)/12*$E43 -> 1.339564275 | H43: =SUM('3.0 LRAMVA Register'!D$11:D$12)*(MONTH($A43)-1)/12*$E43 -> 2.423099277 | I43: =SUM('3.0 LRAMVA Register'!E$11:E$12)*(MONTH($A43)-1)/12*$E43 -> 0.05406761395 | J43: =SUM('3.0 LRAMVA Register'!F$11:F$12)*(MONTH($A43)-1)/12*$E43 -> 0 | K43: =SUM('3.0 LRAMVA Register'!G$11:G$12)*(MONTH($A43)-1)/12*$E43 -> 0 | L43: =SUM('3.0 LRAMVA Register'!H$11:H$12)*(MONTH($A43)-1)/12*$E43 -> 0 | M43: =SUM('3.0 LRAMVA Register'!I$11:I$12)*(MONTH($A43)-1)/12*$E43 -> 0 | N43: =SUM('3.0 LRAMVA Register'!J$11:J$12)*(MONTH($A43)-1)/12*$E43 -> 0 | O43: =SUM('3.0 LRAMVA Register'!K$11:K$12)*(MONTH($A43)-1)/12*$E43 -> 0 | P43: 5.181356821
A44: 2011-08-01 | B44: 2013-05-01 | C44: 2011 | D44: Q3 | E44: =J$14/12 -> 0.001225 | F44: =SUM('3.0 LRAMVA Register'!B$11:B$12)*(MONTH($A44)-1)/12*$E44 -> 1.592063265 | G44: =SUM('3.0 LRAMVA Register'!C$11:C$12)*(MONTH($A44)-1)/12*$E44 -> 1.562824988 | H44: =SUM('3.0 LRAMVA Register'!D$11:D$12)*(MONTH($A44)-1)/12*$E44 -> 2.826949156 | I44: =SUM('3.0 LRAMVA Register'!E$11:E$12)*(MONTH($A44)-1)/12*$E44 -> 0.06307888295 | J44: =SUM('3.0 LRAMVA Register'!F$11:F$12)*(MONTH($A44)-1)/12*$E44 -> 0 | K44: =SUM('3.0 LRAMVA Register'!G$11:G$12)*(MONTH($A44)-1)/12*$E44 -> 0 | L44: =SUM('3.0 LRAMVA Register'!H$11:H$12)*(MONTH($A44)-1)/12*$E44 -> 0 | M44: =SUM('3.0 LRAMVA Register'!I$11:I$12)*(MONTH($A44)-1)/12*$E44 -> 0 | N44: =SUM('3.0 LRAMVA Register'!J$11:J$12)*(MONTH($A44)-1)/12*$E44 -> 0 | O44: =SUM('3.0 LRAMVA Register'!K$11:K$12)*(MONTH($A44)-1)/12*$E44 -> 0 | P44: 6.044916292
A45: 2011-09-01 | B45: 2013-06-01 | C45: 2011 | D45: Q3 | E45: =J$14/12 -> 0.001225 | F45: =SUM('3.0 LRAMVA Register'!B$11:B$12)*(MONTH($A45)-1)/12*$E45 -> 1.819500874 | G45: =SUM('3.0 LRAMVA Register'!C$11:C$12)*(MONTH($A45)-1)/12*$E45 -> 1.7860857 | H45: =SUM('3.0 LRAMVA Register'!D$11:D$12)*(MONTH($A45)-1)/12*$E45 -> 3.230799036 | I45: =SUM('3.0 LRAMVA Register'!E$11:E$12)*(MONTH($A45)-1)/12*$E45 -> 0.07209015194 | J45: =SUM('3.0 LRAMVA Register'!F$11:F$12)*(MONTH($A45)-1)/12*$E45 -> 0 | K45: =SUM('3.0 LRAMVA Register'!G$11:G$12)*(MONTH($A45)-1)/12*$E45 -> 0 | L45: =SUM('3.0 LRAMVA Register'!H$11:H$12)*(MONTH($A45)-1)/12*$E45 -> 0 | M45: =SUM('3.0 LRAMVA Register'!I$11:I$12)*(MONTH($A45)-1)/12*$E45 -> 0 | N45: =SUM('3.0 LRAMVA Register'!J$11:J$12)*(MONTH($A45)-1)/12*$E45 -> 0 | O45: =SUM('3.0 LRAMVA Register'!K$11:K$12)*(MONTH($A45)-1)/12*$E45 -> 0 | P45: 6.908475762
A46: 2011-10-01 | B46: 2013-07-01 | C46: 2011 | D46: Q4 | E46: =J$15/12 -> 0.001225 | F46: =SUM('3.0 LRAMVA Register'!B$11:B$12)*(MONTH($A46)-1)/12*$E46 -> 2.046938483 | G46: =SUM('3.0 LRAMVA Register'!C$11:C$12)*(MONTH($A46)-1)/12*$E46 -> 2.009346413 | H46: =SUM('3.0 LRAMVA Register'!D$11:D$12)*(MONTH($A46)-1)/12*$E46 -> 3.634648915 | I46: =SUM('3.0 LRAMVA Register'!E$11:E$12)*(MONTH($A46)-1)/12*$E46 -> 0.08110142093 | J46: =SUM('3.0 LRAMVA Register'!F$11:F$12)*(MONTH($A46)-1)/12*$E46 -> 0 | K46: =SUM('3.0 LRAMVA Register'!G$11:G$12)*(MONTH($A46)-1)/12*$E46 -> 0 | L46: =SUM('3.0 LRAMVA Register'!H$11:H$12)*(MONTH($A46)-1)/12*$E46 -> 0 | M46: =SUM('3.0 LRAMVA Register'!I$11:I$12)*(MONTH($A46)-1)/12*$E46 -> 0 | N46: =SUM('3.0 LRAMVA Register'!J$11:J$12)*(MONTH($A46)-1)/12*$E46 -> 0 | O46: =SUM('3.0 LRAMVA Register'!K$11:K$12)*(MONTH($A46)-1)/12*$E46 -> 0 | P46: 7.772035232
A47: 2011-11-01 | B47: 2013-08-01 | C47: 2011 | D47: Q4 | E47: =J$15/12 -> 0.001225 | F47: =SUM('3.0 LRAMVA Register'!B$11:B$12)*(MONTH($A47)-1)/12*$E47 -> 2.274376092 | G47: =SUM('3.0 LRAMVA Register'!C$11:C$12)*(MONTH($A47)-1)/12*$E47 -> 2.232607125 | H47: =SUM('3.0 LRAMVA Register'!D$11:D$12)*(MONTH($A47)-1)/12*$E47 -> 4.038498794 | I47: =SUM('3.0 LRAMVA Register'!E$11:E$12)*(MONTH($A47)-1)/12*$E47 -> 0.09011268992 | J47: =SUM('3.0 LRAMVA Register'!F$11:F$12)*(MONTH($A47)-1)/12*$E47 -> 0 | K47: =SUM('3.0 LRAMVA Register'!G$11:G$12)*(MONTH($A47)-1)/12*$E47 -> 0 | L47: =SUM('3.0 LRAMVA Register'!H$11:H$12)*(MONTH($A47)-1)/12*$E47 -> 0 | M47: =SUM('3.0 LRAMVA Register'!I$11:I$12)*(MONTH($A47)-1)/12*$E47 -> 0 | N47: =SUM('3.0 LRAMVA Register'!J$11:J$12)*(MONTH($A47)-1)/12*$E47 -> 0 | O47: =SUM('3.0 LRAMVA Register'!K$11:K$12)*(MONTH($A47)-1)/12*$E47 -> 0 | P47: 8.635594702
A48: 2011-12-01 | B48: 2013-09-01 | C48: 2011 | D48: Q4 | E48: =J$15/12 -> 0.001225 | F48: =SUM('3.0 LRAMVA Register'!B$11:B$12)*(MONTH($A48)-1)/12*$E48 -> 2.501813702 | G48: =SUM('3.0 LRAMVA Register'!C$11:C$12)*(MONTH($A48)-1)/12*$E48 -> 2.455867838 | H48: =SUM('3.0 LRAMVA Register'!D$11:D$12)*(MONTH($A48)-1)/12*$E48 -> 4.442348674 | I48: =SUM('3.0 LRAMVA Register'!E$11:E$12)*(MONTH($A48)-1)/12*$E48 -> 0.09912395892 | J48: =SUM('3.0 LRAMVA Register'!F$11:F$12)*(MONTH($A48)-1)/12*$E48 -> 0 | K48: =SUM('3.0 LRAMVA Register'!G$11:G$12)*(MONTH($A48)-1)/12*$E48 -> 0 | L48: =SUM('3.0 LRAMVA Register'!H$11:H$12)*(MONTH($A48)-1)/12*$E48 -> 0 | M48: =SUM('3.0 LRAMVA Register'!I$11:I$12)*(MONTH($A48)-1)/12*$E48 -> 0 | N48: =SUM('3.0 LRAMVA Register'!J$11:J$12)*(MONTH($A48)-1)/12*$E48 -> 0 | O48: =SUM('3.0 LRAMVA Register'!K$11:K$12)*(MONTH($A48)-1)/12*$E48 -> 0 | P48: 9.499154173
A49: 2012-01-01 | B49: 2013-10-01 | C49: 2011-2012 | D49: Q1 | E49: =J$16/12 -> 0.001225 | F49: =(SUM('3.0 LRAMVA Register'!B$11:B$13)+SUM('3.0 LRAMVA Register'!B$15:B$16)*(MONTH($A49)-1)/12)*$E49 -> 2.729251311 | G49: =(SUM('3.0 LRAMVA Register'!C$11:C$13)+SUM('3.0 LRAMVA Register'!C$15:C$16)*(MONTH($A49)-1)/12)*$E49 -> 2.679128551 | H49: =(SUM('3.0 LRAMVA Register'!D$11:D$13)+SUM('3.0 LRAMVA Register'!D$15:D$16)*(MONTH($A49)-1)/12)*$E49 -> 4.846198553 | I49: =(SUM('3.0 LRAMVA Register'!E$11:E$13)+SUM('3.0 LRAMVA Register'!E$15:E$16)*(MONTH($A49)-1)/12)*$E49 -> 0.1081352279 | J49: =(SUM('3.0 LRAMVA Register'!F$11:F$13)+SUM('3.0 LRAMVA Register'!F$15:F$16)*(MONTH($A49)-1)/12)*$E49 -> 0 | K49: =(SUM('3.0 LRAMVA Register'!G$11:G$13)+SUM('3.0 LRAMVA Register'!G$15:G$16)*(MONTH($A49)-1)/12)*$E49 -> 0 | L49: =(SUM('3.0 LRAMVA Register'!H$11:H$13)+SUM('3.0 LRAMVA Register'!H$15:H$16)*(MONTH($A49)-1)/12)*$E49 -> 0 | M49: =(SUM('3.0 LRAMVA Register'!I$11:I$13)+SUM('3.0 LRAMVA Register'!I$15:I$16)*(MONTH($A49)-1)/12)*$E49 -> 0 | N49: =(SUM('3.0 LRAMVA Register'!J$11:J$13)+SUM('3.0 LRAMVA Register'!J$15:J$16)*(MONTH($A49)-1)/12)*$E49 -> 0 | O49: =(SUM('3.0 LRAMVA Register'!K$11:K$13)+SUM('3.0 LRAMVA Register'!K$15:K$16)*(MONTH($A49)-1)/12)*$E49 -> 0 | P49: 10.36271364
A50: 2012-02-01 | B50: 2013-11-01 | C50: 2011-2012 | D50: Q1 | E50: =J$16/12 -> 0.001225 | F50: =(SUM('3.0 LRAMVA Register'!B$11:B$13)+SUM('3.0 LRAMVA Register'!B$15:B$16)*(MONTH($A50)-1)/12)*$E50 -> 3.10162016 | G50: =(SUM('3.0 LRAMVA Register'!C$11:C$13)+SUM('3.0 LRAMVA Register'!C$15:C$16)*(MONTH($A50)-1)/12)*$E50 -> 4.139642075 | H50: =(SUM('3.0 LRAMVA Register'!D$11:D$13)+SUM('3.0 LRAMVA Register'!D$15:D$16)*(MONTH($A50)-1)/12)*$E50 -> 5.438540983 | I50: =(SUM('3.0 LRAMVA Register'!E$11:E$13)+SUM('3.0 LRAMVA Register'!E$15:E$16)*(MONTH($A50)-1)/12)*$E50 -> 0.1165794989 | J50: =(SUM('3.0 LRAMVA Register'!F$11:F$13)+SUM('3.0 LRAMVA Register'!F$15:F$16)*(MONTH($A50)-1)/12)*$E50 -> 0 | K50: =(SUM('3.0 LRAMVA Register'!G$11:G$13)+SUM('3.0 LRAMVA Register'!G$15:G$16)*(MONTH($A50)-1)/12)*$E50 -> 0 | L50: =(SUM('3.0 LRAMVA Register'!H$11:H$13)+SUM('3.0 LRAMVA Register'!H$15:H$16)*(MONTH($A50)-1)/12)*$E50 -> 0 | M50: =(SUM('3.0 LRAMVA Register'!I$11:I$13)+SUM('3.0 LRAMVA Register'!I$15:I$16)*(MONTH($A50)-1)/12)*$E50 -> 0 | N50: =(SUM('3.0 LRAMVA Register'!J$11:J$13)+SUM('3.0 LRAMVA Register'!J$15:J$16)*(MONTH($A50)-1)/12)*$E50 -> 0 | O50: =(SUM('3.0 LRAMVA Register'!K$11:K$13)+SUM('3.0 LRAMVA Register'!K$15:K$16)*(MONTH($A50)-1)/12)*$E50 -> 0 | P50: 12.79638272
A51: 2012-03-01 | B51: 2013-12-01 | C51: 2011-2012 | D51: Q1 | E51: =J$16/12 -> 0.001225 | F51: =(SUM('3.0 LRAMVA Register'!B$11:B$13)+SUM('3.0 LRAMVA Register'!B$15:B$16)*(MONTH($A51)-1)/12)*$E51 -> 3.47398901 | G51: =(SUM('3.0 LRAMVA Register'!C$11:C$13)+SUM('3.0 LRAMVA Register'!C$15:C$16)*(MONTH($A51)-1)/12)*$E51 -> 5.600155599 | H51: =(SUM('3.0 LRAMVA Register'!D$11:D$13)+SUM('3.0 LRAMVA Register'!D$15:D$16)*(MONTH($A51)-1)/12)*$E51 -> 6.030883412 | I51: =(SUM('3.0 LRAMVA Register'!E$11:E$13)+SUM('3.0 LRAMVA Register'!E$15:E$16)*(MONTH($A51)-1)/12)*$E51 -> 0.1250237699 | J51: =(SUM('3.0 LRAMVA Register'!F$11:F$13)+SUM('3.0 LRAMVA Register'!F$15:F$16)*(MONTH($A51)-1)/12)*$E51 -> 0 | K51: =(SUM('3.0 LRAMVA Register'!G$11:G$13)+SUM('3.0 LRAMVA Register'!G$15:G$16)*(MONTH($A51)-1)/12)*$E51 -> 0 | L51: =(SUM('3.0 LRAMVA Register'!H$11:H$13)+SUM('3.0 LRAMVA Register'!H$15:H$16)*(MONTH($A51)-1)/12)*$E51 -> 0 | M51: =(SUM('3.0 LRAMVA Register'!I$11:I$13)+SUM('3.0 LRAMVA Register'!I$15:I$16)*(MONTH($A51)-1)/12)*$E51 -> 0 | N51: =(SUM('3.0 LRAMVA Register'!J$11:J$13)+SUM('3.0 LRAMVA Register'!J$15:J$16)*(MONTH($A51)-1)/12)*$E51 -> 0 | O51: =(SUM('3.0 LRAMVA Register'!K$11:K$13)+SUM('3.0 LRAMVA Register'!K$15:K$16)*(MONTH($A51)-1)/12)*$E51 -> 0 | P51: 15.23005179
A52: 2012-04-01 | B52: 2014-01-01 | C52: 2011-2012 | D52: Q2 | E52: =J$17/12 -> 0.001225 | F52: =(SUM('3.0 LRAMVA Register'!B$11:B$13)+SUM('3.0 LRAMVA Register'!B$15:B$16)*(MONTH($A52)-1)/12)*$E52 -> 3.846357859 | G52: =(SUM('3.0 LRAMVA Register'!C$11:C$13)+SUM('3.0 LRAMVA Register'!C$15:C$16)*(MONTH($A52)-1)/12)*$E52 -> 7.060669123 | H52: =(SUM('3.0 LRAMVA Register'!D$11:D$13)+SUM('3.0 LRAMVA Register'!D$15:D$16)*(MONTH($A52)-1)/12)*$E52 -> 6.623225841 | I52: =(SUM('3.0 LRAMVA Register'!E$11:E$13)+SUM('3.0 LRAMVA Register'!E$15:E$16)*(MONTH($A52)-1)/12)*$E52 -> 0.1334680408 | J52: =(SUM('3.0 LRAMVA Register'!F$11:F$13)+SUM('3.0 LRAMVA Register'!F$15:F$16)*(MONTH($A52)-1)/12)*$E52 -> 0 | K52: =(SUM('3.0 LRAMVA Register'!G$11:G$13)+SUM('3.0 LRAMVA Register'!G$15:G$16)*(MONTH($A52)-1)/12)*$E52 -> 0 | L52: =(SUM('3.0 LRAMVA Register'!H$11:H$13)+SUM('3.0 LRAMVA Register'!H$15:H$16)*(MONTH($A52)-1)/12)*$E52 -> 0 | M52: =(SUM('3.0 LRAMVA Register'!I$11:I$13)+SUM('3.0 LRAMVA Register'!I$15:I$16)*(MONTH($A52)-1)/12)*$E52 -> 0 | N52: =(SUM('3.0 LRAMVA Register'!J$11:J$13)+SUM('3.0 LRAMVA Register'!J$15:J$16)*(MONTH($A52)-1)/12)*$E52 -> 0 | O52: =(SUM('3.0 LRAMVA Register'!K$11:K$13)+SUM('3.0 LRAMVA Register'!K$15:K$16)*(MONTH($A52)-1)/12)*$E52 -> 0 | P52: =SUM(F52:O52) -> 17.66372086
A53: Total for rate year 2011 | F53: =SUM(F40:F52) -> 28.16210055 | G53: =SUM(G40:G52) -> 34.21480238 | H53: 49.59294083 | I53: 1.077950291 | J53: 0 | K53: 0 | L53: 0 | M53: =SUM(M40:M52) -> 0 | N53: 0 | O53: 0 | P53: 113.047794
A54: Amount Cleared | P54: =SUM(F54:O54) -> 0
A55: Opening Balance for rate year 2012 | F55: =F53+F54 -> 28.16210055 | G55: 34.21480238 | H55: 49.59294083 | I55: 1.077950291 | J55: 0 | K55: 0 | L55: 0 | M55: 0 | N55: 0 | O55: 0 | P55: =P53+P54 -> 113.047794
A56: 2012-05-01 | B56: 2014-02-01 | C56: 2011-2012 | D56: Q2 | E56: =J$17/12 -> 0.001225 | F56: =(SUM('3.0 LRAMVA Register'!B$11:B$13)+SUM('3.0 LRAMVA Register'!B$15:B$16)*(MONTH($A56)-1)/12)*$E56 -> 4.218726708 | G56: =(SUM('3.0 LRAMVA Register'!C$11:C$13)+SUM('3.0 LRAMVA Register'!C$15:C$16)*(MONTH($A56)-1)/12)*$E56 -> 8.521182647 | H56: =(SUM('3.0 LRAMVA Register'!D$11:D$13)+SUM('3.0 LRAMVA Register'!D$15:D$16)*(MONTH($A56)-1)/12)*$E56 -> 7.215568271 | I56: =(SUM('3.0 LRAMVA Register'!E$11:E$13)+SUM('3.0 LRAMVA Register'!E$15:E$16)*(MONTH($A56)-1)/12)*$E56 -> 0.1419123118 | J56: =(SUM('3.0 LRAMVA Register'!F$11:F$13)+SUM('3.0 LRAMVA Register'!F$15:F$16)*(MONTH($A56)-1)/12)*$E56 -> 0 | K56: =(SUM('3.0 LRAMVA Register'!G$11:G$13)+SUM('3.0 LRAMVA Register'!G$15:G$16)*(MONTH($A56)-1)/12)*$E56 -> 0 | L56: =(SUM('3.0 LRAMVA Register'!H$11:H$13)+SUM('3.0 LRAMVA Register'!H$15:H$16)*(MONTH($A56)-1)/12)*$E56 -> 0 | M56: =(SUM('3.0 LRAMVA Register'!I$11:I$13)+SUM('3.0 LRAMVA Register'!I$15:I$16)*(MONTH($A56)-1)/12)*$E56 -> 0 | N56: =(SUM('3.0 LRAMVA Register'!J$11:J$13)+SUM('3.0 LRAMVA Register'!J$15:J$16)*(MONTH($A56)-1)/12)*$E56 -> 0 | O56: =(SUM('3.0 LRAMVA Register'!K$11:K$13)+SUM('3.0 LRAMVA Register'!K$15:K$16)*(MONTH($A56)-1)/12)*$E56 -> 0 | P56: =SUM(F56:O56) -> 20.09738994
A57: 2012-06-01 | B57: 2014-03-01 | C57: 2011-2012 | D57: Q2 | E57: =J$17/12 -> 0.001225 | F57: =(SUM('3.0 LRAMVA Register'!B$11:B$13)+SUM('3.0 LRAMVA Register'!B$15:B$16)*(MONTH($A57)-1)/12)*$E57 -> 4.591095558 | G57: =(SUM('3.0 LRAMVA Register'!C$11:C$13)+SUM('3.0 LRAMVA Register'!C$15:C$16)*(MONTH($A57)-1)/12)*$E57 -> 9.981696171 | H57: =(SUM('3.0 LRAMVA Register'!D$11:D$13)+SUM('3.0 LRAMVA Register'!D$15:D$16)*(MONTH($A57)-1)/12)*$E57 -> 7.8079107 | I57: =(SUM('3.0 LRAMVA Register'!E$11:E$13)+SUM('3.0 LRAMVA Register'!E$15:E$16)*(MONTH($A57)-1)/12)*$E57 -> 0.1503565828 | J57: =(SUM('3.0 LRAMVA Register'!F$11:F$13)+SUM('3.0 LRAMVA Register'!F$15:F$16)*(MONTH($A57)-1)/12)*$E57 -> 0 | K57: =(SUM('3.0 LRAMVA Register'!G$11:G$13)+SUM('3.0 LRAMVA Register'!G$15:G$16)*(MONTH($A57)-1)/12)*$E57 -> 0 | L57: =(SUM('3.0 LRAMVA Register'!H$11:H$13)+SUM('3.0 LRAMVA Register'!H$15:H$16)*(MONTH($A57)-1)/12)*$E57 -> 0 | M57: =(SUM('3.0 LRAMVA Register'!I$11:I$13)+SUM('3.0 LRAMVA Register'!I$15:I$16)*(MONTH($A57)-1)/12)*$E57 -> 0 | N57: =(SUM('3.0 LRAMVA Register'!J$11:J$13)+SUM('3.0 LRAMVA Register'!J$15:J$16)*(MONTH($A57)-1)/12)*$E57 -> 0 | O57: =(SUM('3.0 LRAMVA Register'!K$11:K$13)+SUM('3.0 LRAMVA Register'!K$15:K$16)*(MONTH($A57)-1)/12)*$E57 -> 0 | P57: 22.53105901
A58: 2012-07-01 | B58: 2014-04-01 | C58: 2011-2012 | D58: Q3 | E58: =J$18/12 -> 0.001225 | F58: =(SUM('3.0 LRAMVA Register'!B$11:B$13)+SUM('3.0 LRAMVA Register'!B$15:B$16)*(MONTH($A58)-1)/12)*$E58 -> 4.963464407 | G58: =(SUM('3.0 LRAMVA Register'!C$11:C$13)+SUM('3.0 LRAMVA Register'!C$15:C$16)*(MONTH($A58)-1)/12)*$E58 -> 11.4422097 | H58: =(SUM('3.0 LRAMVA Register'!D$11:D$13)+SUM('3.0 LRAMVA Register'!D$15:D$16)*(MONTH($A58)-1)/12)*$E58 -> 8.400253129 | I58: =(SUM('3.0 LRAMVA Register'!E$11:E$13)+SUM('3.0 LRAMVA Register'!E$15:E$16)*(MONTH($A58)-1)/12)*$E58 -> 0.1588008538 | J58: =(SUM('3.0 LRAMVA Register'!F$11:F$13)+SUM('3.0 LRAMVA Register'!F$15:F$16)*(MONTH($A58)-1)/12)*$E58 -> 0 | K58: =(SUM('3.0 LRAMVA Register'!G$11:G$13)+SUM('3.0 LRAMVA Register'!G$15:G$16)*(MONTH($A58)-1)/12)*$E58 -> 0 | L58: =(SUM('3.0 LRAMVA Register'!H$11:H$13)+SUM('3.0 LRAMVA Register'!H$15:H$16)*(MONTH($A58)-1)/12)*$E58 -> 0 | M58: =(SUM('3.0 LRAMVA Register'!I$11:I$13)+SUM('3.0 LRAMVA Register'!I$15:I$16)*(MONTH($A58)-1)/12)*$E58 -> 0 | N58: =(SUM('3.0 LRAMVA Register'!J$11:J$13)+SUM('3.0 LRAMVA Register'!J$15:J$16)*(MONTH($A58)-1)/12)*$E58 -> 0 | O58: =(SUM('3.0 LRAMVA Register'!K$11:K$13)+SUM('3.0 LRAMVA Register'!K$15:K$16)*(MONTH($A58)-1)/12)*$E58 -> 0 | P58: 24.96472809
A59: 2012-08-01 | B59: 2014-05-01 | C59: 2011-2012 | D59: Q3 | E59: =J$18/12 -> 0.001225 | F59: =(SUM('3.0 LRAMVA Register'!B$11:B$13)+SUM('3.0 LRAMVA Register'!B$15:B$16)*(MONTH($A59)-1)/12)*$E59 -> 5.335833256 | G59: =(SUM('3.0 LRAMVA Register'!C$11:C$13)+SUM('3.0 LRAMVA Register'!C$15:C$16)*(MONTH($A59)-1)/12)*$E59 -> 12.90272322 | H59: =(SUM('3.0 LRAMVA Register'!D$11:D$13)+SUM('3.0 LRAMVA Register'!D$15:D$16)*(MONTH($A59)-1)/12)*$E59 -> 8.992595559 | I59: =(SUM('3.0 LRAMVA Register'!E$11:E$13)+SUM('3.0 LRAMVA Register'!E$15:E$16)*(MONTH($A59)-1)/12)*$E59 -> 0.1672451248 | J59: =(SUM('3.0 LRAMVA Register'!F$11:F$13)+SUM('3.0 LRAMVA Register'!F$15:F$16)*(MONTH($A59)-1)/12)*$E59 -> 0 | K59: =(SUM('3.0 LRAMVA Register'!G$11:G$13)+SUM('3.0 LRAMVA Register'!G$15:G$16)*(MONTH($A59)-1)/12)*$E59 -> 0 | L59: =(SUM('3.0 LRAMVA Register'!H$11:H$13)+SUM('3.0 LRAMVA Register'!H$15:H$16)*(MONTH($A59)-1)/12)*$E59 -> 0 | M59: =(SUM('3.0 LRAMVA Register'!I$11:I$13)+SUM('3.0 LRAMVA Register'!I$15:I$16)*(MONTH($A59)-1)/12)*$E59 -> 0 | N59: =(SUM('3.0 LRAMVA Register'!J$11:J$13)+SUM('3.0 LRAMVA Register'!J$15:J$16)*(MONTH($A59)-1)/12)*$E59 -> 0 | O59: =(SUM('3.0 LRAMVA Register'!K$11:K$13)+SUM('3.0 LRAMVA Register'!K$15:K$16)*(MONTH($A59)-1)/12)*$E59 -> 0 | P59: 27.39839716
A60: 2012-09-01 | B60: 2014-06-01 | C60: 2011-2012 | D60: Q3 | E60: =J$18/12 -> 0.001225 | F60: =(SUM('3.0 LRAMVA Register'!B$11:B$13)+SUM('3.0 LRAMVA Register'!B$15:B$16)*(MONTH($A60)-1)/12)*$E60 -> 5.708202106 | G60: =(SUM('3.0 LRAMVA Register'!C$11:C$13)+SUM('3.0 LRAMVA Register'!C$15:C$16)*(MONTH($A60)-1)/12)*$E60 -> 14.36323674 | H60: =(SUM('3.0 LRAMVA Register'!D$11:D$13)+SUM('3.0 LRAMVA Register'!D$15:D$16)*(MONTH($A60)-1)/12)*$E60 -> 9.584937988 | I60: =(SUM('3.0 LRAMVA Register'!E$11:E$13)+SUM('3.0 LRAMVA Register'!E$15:E$16)*(MONTH($A60)-1)/12)*$E60 -> 0.1756893957 | J60: =(SUM('3.0 LRAMVA Register'!F$11:F$13)+SUM('3.0 LRAMVA Register'!F$15:F$16)*(MONTH($A60)-1)/12)*$E60 -> 0 | K60: =(SUM('3.0 LRAMVA Register'!G$11:G$13)+SUM('3.0 LRAMVA Register'!G$15:G$16)*(MONTH($A60)-1)/12)*$E60 -> 0 | L60: =(SUM('3.0 LRAMVA Register'!H$11:H$13)+SUM('3.0 LRAMVA Register'!H$15:H$16)*(MONTH($A60)-1)/12)*$E60 -> 0 | M60: =(SUM('3.0 LRAMVA Register'!I$11:I$13)+SUM('3.0 LRAMVA Register'!I$15:I$16)*(MONTH($A60)-1)/12)*$E60 -> 0 | N60: =(SUM('3.0 LRAMVA Register'!J$11:J$13)+SUM('3.0 LRAMVA Register'!J$15:J$16)*(MONTH($A60)-1)/12)*$E60 -> 0 | O60: =(SUM('3.0 LRAMVA Register'!K$11:K$13)+SUM('3.0 LRAMVA Register'!K$15:K$16)*(MONTH($A60)-1)/12)*$E60 -> 0 | P60: 29.83206623
A61: 2012-10-01 | B61: 2014-07-01 | C61: 2011-2012 | D61: Q4 | E61: =J$19/12 -> 0.001225 | F61: =(SUM('3.0 LRAMVA Register'!B$11:B$13)+SUM('3.0 LRAMVA Register'!B$15:B$16)*(MONTH($A61)-1)/12)*$E61 -> 6.080570955 | G61: =(SUM('3.0 LRAMVA Register'!C$11:C$13)+SUM('3.0 LRAMVA Register'!C$15:C$16)*(MONTH($A61)-1)/12)*$E61 -> 15.82375027 | H61: =(SUM('3.0 LRAMVA Register'!D$11:D$13)+SUM('3.0 LRAMVA Register'!D$15:D$16)*(MONTH($A61)-1)/12)*$E61 -> 10.17728042 | I61: =(SUM('3.0 LRAMVA Register'!E$11:E$13)+SUM('3.0 LRAMVA Register'!E$15:E$16)*(MONTH($A61)-1)/12)*$E61 -> 0.1841336667 | J61: =(SUM('3.0 LRAMVA Register'!F$11:F$13)+SUM('3.0 LRAMVA Register'!F$15:F$16)*(MONTH($A61)-1)/12)*$E61 -> 0 | K61: =(SUM('3.0 LRAMVA Register'!G$11:G$13)+SUM('3.0 LRAMVA Register'!G$15:G$16)*(MONTH($A61)-1)/12)*$E61 -> 0 | L61: =(SUM('3.0 LRAMVA Register'!H$11:H$13)+SUM('3.0 LRAMVA Register'!H$15:H$16)*(MONTH($A61)-1)/12)*$E61 -> 0 | M61: =(SUM('3.0 LRAMVA Register'!I$11:I$13)+SUM('3.0 LRAMVA Register'!I$15:I$16)*(MONTH($A61)-1)/12)*$E61 -> 0 | N61: =(SUM('3.0 LRAMVA Register'!J$11:J$13)+SUM('3.0 LRAMVA Register'!J$15:J$16)*(MONTH($A61)-1)/12)*$E61 -> 0 | O61: =(SUM('3.0 LRAMVA Register'!K$11:K$13)+SUM('3.0 LRAMVA Register'!K$15:K$16)*(MONTH($A61)-1)/12)*$E61 -> 0 | P61: 32.26573531
A62: 2012-11-01 | B62: 2014-08-01 | C62: 2011-2012 | D62: Q4 | E62: =J$19/12 -> 0.001225 | F62: =(SUM('3.0 LRAMVA Register'!B$11:B$13)+SUM('3.0 LRAMVA Register'!B$15:B$16)*(MONTH($A62)-1)/12)*$E62 -> 6.452939804 | G62: =(SUM('3.0 LRAMVA Register'!C$11:C$13)+SUM('3.0 LRAMVA Register'!C$15:C$16)*(MONTH($A62)-1)/12)*$E62 -> 17.28426379 | H62: =(SUM('3.0 LRAMVA Register'!D$11:D$13)+SUM('3.0 LRAMVA Register'!D$15:D$16)*(MONTH($A62)-1)/12)*$E62 -> 10.76962285 | I62: =(SUM('3.0 LRAMVA Register'!E$11:E$13)+SUM('3.0 LRAMVA Register'!E$15:E$16)*(MONTH($A62)-1)/12)*$E62 -> 0.1925779377 | J62: =(SUM('3.0 LRAMVA Register'!F$11:F$13)+SUM('3.0 LRAMVA Register'!F$15:F$16)*(MONTH($A62)-1)/12)*$E62 -> 0 | K62: =(SUM('3.0 LRAMVA Register'!G$11:G$13)+SUM('3.0 LRAMVA Register'!G$15:G$16)*(MONTH($A62)-1)/12)*$E62 -> 0 | L62: =(SUM('3.0 LRAMVA Register'!H$11:H$13)+SUM('3.0 LRAMVA Register'!H$15:H$16)*(MONTH($A62)-1)/12)*$E62 -> 0 | M62: =(SUM('3.0 LRAMVA Register'!I$11:I$13)+SUM('3.0 LRAMVA Register'!I$15:I$16)*(MONTH($A62)-1)/12)*$E62 -> 0 | N62: =(SUM('3.0 LRAMVA Register'!J$11:J$13)+SUM('3.0 LRAMVA Register'!J$15:J$16)*(MONTH($A62)-1)/12)*$E62 -> 0 | O62: =(SUM('3.0 LRAMVA Register'!K$11:K$13)+SUM('3.0 LRAMVA Register'!K$15:K$16)*(MONTH($A62)-1)/12)*$E62 -> 0 | P62: 34.69940438
A63: 2012-12-01 | B63: 2014-09-01 | C63: 2011-2012 | D63: Q4 | E63: =J$19/12 -> 0.001225 | F63: =(SUM('3.0 LRAMVA Register'!B$11:B$13)+SUM('3.0 LRAMVA Register'!B$15:B$16)*(MONTH($A63)-1)/12)*$E63 -> 6.825308654 | G63: =(SUM('3.0 LRAMVA Register'!C$11:C$13)+SUM('3.0 LRAMVA Register'!C$15:C$16)*(MONTH($A63)-1)/12)*$E63 -> 18.74477732 | H63: =(SUM('3.0 LRAMVA Register'!D$11:D$13)+SUM('3.0 LRAMVA Register'!D$15:D$16)*(MONTH($A63)-1)/12)*$E63 -> 11.36196528 | I63: =(SUM('3.0 LRAMVA Register'!E$11:E$13)+SUM('3.0 LRAMVA Register'!E$15:E$16)*(MONTH($A63)-1)/12)*$E63 -> 0.2010222087 | J63: =(SUM('3.0 LRAMVA Register'!F$11:F$13)+SUM('3.0 LRAMVA Register'!F$15:F$16)*(MONTH($A63)-1)/12)*$E63 -> 0 | K63: =(SUM('3.0 LRAMVA Register'!G$11:G$13)+SUM('3.0 LRAMVA Register'!G$15:G$16)*(MONTH($A63)-1)/12)*$E63 -> 0 | L63: =(SUM('3.0 LRAMVA Register'!H$11:H$13)+SUM('3.0 LRAMVA Register'!H$15:H$16)*(MONTH($A63)-1)/12)*$E63 -> 0 | M63: =(SUM('3.0 LRAMVA Register'!I$11:I$13)+SUM('3.0 LRAMVA Register'!I$15:I$16)*(MONTH($A63)-1)/12)*$E63 -> 0 | N63: =(SUM('3.0 LRAMVA Register'!J$11:J$13)+SUM('3.0 LRAMVA Register'!J$15:J$16)*(MONTH($A63)-1)/12)*$E63 -> 0 | O63: =(SUM('3.0 LRAMVA Register'!K$11:K$13)+SUM('3.0 LRAMVA Register'!K$15:K$16)*(MONTH($A63)-1)/12)*$E63 -> 0 | P63: 37.13307345
A64: 2013-01-01 | B64: 2014-10-01 | C64: 2011-2013 | D64: Q1 | E64: =J$20/12 -> 0.001225 | F64: =(SUM('3.0 LRAMVA Register'!B$11:B$17)+SUM('3.0 LRAMVA Register'!B$19:B$20)*(MONTH($A64)-1)/12)*$E64 -> 7.197677503 | G64: =(SUM('3.0 LRAMVA Register'!C$11:C$17)+SUM('3.0 LRAMVA Register'!C$19:C$20)*(MONTH($A64)-1)/12)*$E64 -> 20.20529084 | H64: =(SUM('3.0 LRAMVA Register'!D$11:D$17)+SUM('3.0 LRAMVA Register'!D$19:D$20)*(MONTH($A64)-1)/12)*$E64 -> 11.95430771 | I64: =(SUM('3.0 LRAMVA Register'!E$11:E$17)+SUM('3.0 LRAMVA Register'!E$19:E$20)*(MONTH($A64)-1)/12)*$E64 -> 0.2094664797 | J64: =(SUM('3.0 LRAMVA Register'!F$11:F$17)+SUM('3.0 LRAMVA Register'!F$19:F$20)*(MONTH($A64)-1)/12)*$E64 -> 0 | K64: =(SUM('3.0 LRAMVA Register'!G$11:G$17)+SUM('3.0 LRAMVA Register'!G$19:G$20)*(MONTH($A64)-1)/12)*$E64 -> 0 | L64: =(SUM('3.0 LRAMVA Register'!H$11:H$17)+SUM('3.0 LRAMVA Register'!H$19:H$20)*(MONTH($A64)-1)/12)*$E64 -> 0 | M64: =(SUM('3.0 LRAMVA Register'!I$11:I$17)+SUM('3.0 LRAMVA Register'!I$19:I$20)*(MONTH($A64)-1)/12)*$E64 -> 0 | N64: =(SUM('3.0 LRAMVA Register'!J$11:J$17)+SUM('3.0 LRAMVA Register'!J$19:J$20)*(MONTH($A64)-1)/12)*$E64 -> 0 | O64: =(SUM('3.0 LRAMVA Register'!K$11:K$17)+SUM('3.0 LRAMVA Register'!K$19:K$20)*(MONTH($A64)-1)/12)*$E64 -> 0 | P64: 39.56674253
A65: 2013-02-01 | B65: 2014-11-01 | C65: 2011-2013 | D65: Q1 | E65: =J$20/12 -> 0.001225 | F65: =(SUM('3.0 LRAMVA Register'!B$11:B$17)+SUM('3.0 LRAMVA Register'!B$19:B$20)*(MONTH($A65)-1)/12)*$E65 -> 7.32258878 | G65: =(SUM('3.0 LRAMVA Register'!C$11:C$17)+SUM('3.0 LRAMVA Register'!C$19:C$20)*(MONTH($A65)-1)/12)*$E65 -> 21.90261346 | H65: =(SUM('3.0 LRAMVA Register'!D$11:D$17)+SUM('3.0 LRAMVA Register'!D$19:D$20)*(MONTH($A65)-1)/12)*$E65 -> 15.29260199 | I65: =(SUM('3.0 LRAMVA Register'!E$11:E$17)+SUM('3.0 LRAMVA Register'!E$19:E$20)*(MONTH($A65)-1)/12)*$E65 -> 0.151070552 | J65: =(SUM('3.0 LRAMVA Register'!F$11:F$17)+SUM('3.0 LRAMVA Register'!F$19:F$20)*(MONTH($A65)-1)/12)*$E65 -> -0.00717571279 | K65: =(SUM('3.0 LRAMVA Register'!G$11:G$17)+SUM('3.0 LRAMVA Register'!G$19:G$20)*(MONTH($A65)-1)/12)*$E65 -> -0.0008438074017 | L65: =(SUM('3.0 LRAMVA Register'!H$11:H$17)+SUM('3.0 LRAMVA Register'!H$19:H$20)*(MONTH($A65)-1)/12)*$E65 -> -0.03280887362 | M65: =(SUM('3.0 LRAMVA Register'!I$11:I$17)+SUM('3.0 LRAMVA Register'!I$19:I$20)*(MONTH($A65)-1)/12)*$E65 -> 0 | N65: =(SUM('3.0 LRAMVA Register'!J$11:J$17)+SUM('3.0 LRAMVA Register'!J$19:J$20)*(MONTH($A65)-1)/12)*$E65 -> 0 | O65: =(SUM('3.0 LRAMVA Register'!K$11:K$17)+SUM('3.0 LRAMVA Register'!K$19:K$20)*(MONTH($A65)-1)/12)*$E65 -> 0 | P65: 44.62804638
A66: 2013-03-01 | B66: 2014-12-01 | C66: 2011-2013 | D66: Q1 | E66: =J$20/12 -> 0.001225 | F66: =(SUM('3.0 LRAMVA Register'!B$11:B$17)+SUM('3.0 LRAMVA Register'!B$19:B$20)*(MONTH($A66)-1)/12)*$E66 -> 7.447500057 | G66: =(SUM('3.0 LRAMVA Register'!C$11:C$17)+SUM('3.0 LRAMVA Register'!C$19:C$20)*(MONTH($A66)-1)/12)*$E66 -> 23.59993607 | H66: =(SUM('3.0 LRAMVA Register'!D$11:D$17)+SUM('3.0 LRAMVA Register'!D$19:D$20)*(MONTH($A66)-1)/12)*$E66 -> 18.63089627 | I66: =(SUM('3.0 LRAMVA Register'!E$11:E$17)+SUM('3.0 LRAMVA Register'!E$19:E$20)*(MONTH($A66)-1)/12)*$E66 -> 0.09267462435 | J66: =(SUM('3.0 LRAMVA Register'!F$11:F$17)+SUM('3.0 LRAMVA Register'!F$19:F$20)*(MONTH($A66)-1)/12)*$E66 -> -0.01435142558 | K66: =(SUM('3.0 LRAMVA Register'!G$11:G$17)+SUM('3.0 LRAMVA Register'!G$19:G$20)*(MONTH($A66)-1)/12)*$E66 -> -0.001687614803 | L66: =(SUM('3.0 LRAMVA Register'!H$11:H$17)+SUM('3.0 LRAMVA Register'!H$19:H$20)*(MONTH($A66)-1)/12)*$E66 -> -0.06561774724 | M66: =(SUM('3.0 LRAMVA Register'!I$11:I$17)+SUM('3.0 LRAMVA Register'!I$19:I$20)*(MONTH($A66)-1)/12)*$E66 -> 0 | N66: =(SUM('3.0 LRAMVA Register'!J$11:J$17)+SUM('3.0 LRAMVA Register'!J$19:J$20)*(MONTH($A66)-1)/12)*$E66 -> 0 | O66: =(SUM('3.0 LRAMVA Register'!K$11:K$17)+SUM('3.0 LRAMVA Register'!K$19:K$20)*(MONTH($A66)-1)/12)*$E66 -> 0 | P66: 49.68935023
A67: 2013-04-01 | B67: 2015-01-01 | C67: 2011-2013 | D67: Q2 | E67: =J$21/12 -> 0.001225 | F67: =(SUM('3.0 LRAMVA Register'!B$11:B$17)+SUM('3.0 LRAMVA Register'!B$19:B$20)*(MONTH($A67)-1)/12)*$E67 -> 7.572411333 | G67: =(SUM('3.0 LRAMVA Register'!C$11:C$17)+SUM('3.0 LRAMVA Register'!C$19:C$20)*(MONTH($A67)-1)/12)*$E67 -> 25.29725868 | H67: =(SUM('3.0 LRAMVA Register'!D$11:D$17)+SUM('3.0 LRAMVA Register'!D$19:D$20)*(MONTH($A67)-1)/12)*$E67 -> 21.96919055 | I67: =(SUM('3.0 LRAMVA Register'!E$11:E$17)+SUM('3.0 LRAMVA Register'!E$19:E$20)*(MONTH($A67)-1)/12)*$E67 -> 0.0342786967 | J67: =(SUM('3.0 LRAMVA Register'!F$11:F$17)+SUM('3.0 LRAMVA Register'!F$19:F$20)*(MONTH($A67)-1)/12)*$E67 -> -0.02152713837 | K67: =(SUM('3.0 LRAMVA Register'!G$11:G$17)+SUM('3.0 LRAMVA Register'!G$19:G$20)*(MONTH($A67)-1)/12)*$E67 -> -0.002531422205 | L67: =(SUM('3.0 LRAMVA Register'!H$11:H$17)+SUM('3.0 LRAMVA Register'!H$19:H$20)*(MONTH($A67)-1)/12)*$E67 -> -0.09842662086 | M67: =(SUM('3.0 LRAMVA Register'!I$11:I$17)+SUM('3.0 LRAMVA Register'!I$19:I$20)*(MONTH($A67)-1)/12)*$E67 -> 0 | N67: =(SUM('3.0 LRAMVA Register'!J$11:J$17)+SUM('3.0 LRAMVA Register'!J$19:J$20)*(MONTH($A67)-1)/12)*$E67 -> 0 | O67: =(SUM('3.0 LRAMVA Register'!K$11:K$17)+SUM('3.0 LRAMVA Register'!K$19:K$20)*(MONTH($A67)-1)/12)*$E67 -> 0 | P67: 54.75065409
A68: Total for rate year 2012 | F68: =SUM(F55:F67) -> 101.8784197 | G68: =SUM(G55:G67) -> 234.2837413 | H68: 191.7500715 | I68: 2.937178726 | J68: -0.04305427674 | K68: -0.00506284441 | L68: -0.1968532417 | M68: =SUM(M55:M67) -> 0 | N68: 0 | O68: 0 | P68: 530.6044408
A69: Amount Cleared | P69: =SUM(F69:O69) -> 0
A70: Opening Balance for rate year 2013 | F70: =F68+F69 -> 101.8784197 | G70: 234.2837413 | H70: 191.7500715 | I70: 2.937178726 | J70: -0.04305427674 | K70: -0.00506284441 | L70: -0.1968532417 | M70: 0 | N70: 0 | O70: 0 | P70: =P68+P69 -> 530.6044408
A71: 2013-05-01 | B71: 2015-02-01 | C71: 2011-2013 | D71: Q2 | E71: =J$21/12 -> 0.001225 | F71: =(SUM('3.0 LRAMVA Register'!B$11:B$17)+SUM('3.0 LRAMVA Register'!B$19:B$20)*(MONTH($A71)-1)/12)*$E71 -> 7.69732261 | G71: =(SUM('3.0 LRAMVA Register'!C$11:C$17)+SUM('3.0 LRAMVA Register'!C$19:C$20)*(MONTH($A71)-1)/12)*$E71 -> 26.9945813 | H71: =(SUM('3.0 LRAMVA Register'!D$11:D$17)+SUM('3.0 LRAMVA Register'!D$19:D$20)*(MONTH($A71)-1)/12)*$E71 -> 25.30748484 | I71: =(SUM('3.0 LRAMVA Register'!E$11:E$17)+SUM('3.0 LRAMVA Register'!E$19:E$20)*(MONTH($A71)-1)/12)*$E71 -> -0.02411723096 | J71: =(SUM('3.0 LRAMVA Register'!F$11:F$17)+SUM('3.0 LRAMVA Register'!F$19:F$20)*(MONTH($A71)-1)/12)*$E71 -> -0.02870285116 | K71: =(SUM('3.0 LRAMVA Register'!G$11:G$17)+SUM('3.0 LRAMVA Register'!G$19:G$20)*(MONTH($A71)-1)/12)*$E71 -> -0.003375229607 | L71: =(SUM('3.0 LRAMVA Register'!H$11:H$17)+SUM('3.0 LRAMVA Register'!H$19:H$20)*(MONTH($A71)-1)/12)*$E71 -> -0.1312354945 | M71: =(SUM('3.0 LRAMVA Register'!I$11:I$17)+SUM('3.0 LRAMVA Register'!I$19:I$20)*(MONTH($A71)-1)/12)*$E71 -> 0 | N71: =(SUM('3.0 LRAMVA Register'!J$11:J$17)+SUM('3.0 LRAMVA Register'!J$19:J$20)*(MONTH($A71)-1)/12)*$E71 -> 0 | O71: =(SUM('3.0 LRAMVA Register'!K$11:K$17)+SUM('3.0 LRAMVA Register'!K$19:K$20)*(MONTH($A71)-1)/12)*$E71 -> 0 | P71: =SUM(F71:O71) -> 59.81195794
A72: 2013-06-01 | B72: 2015-03-01 | C72: 2011-2013 | D72: Q2 | E72: =J$21/12 -> 0.001225 | F72: =(SUM('3.0 LRAMVA Register'!B$11:B$17)+SUM('3.0 LRAMVA Register'!B$19:B$20)*(MONTH($A72)-1)/12)*$E72 -> 7.822233887 | G72: =(SUM('3.0 LRAMVA Register'!C$11:C$17)+SUM('3.0 LRAMVA Register'!C$19:C$20)*(MONTH($A72)-1)/12)*$E72 -> 28.69190391 | H72: =(SUM('3.0 LRAMVA Register'!D$11:D$17)+SUM('3.0 LRAMVA Register'!D$19:D$20)*(MONTH($A72)-1)/12)*$E72 -> 28.64577912 | I72: =(SUM('3.0 LRAMVA Register'!E$11:E$17)+SUM('3.0 LRAMVA Register'!E$19:E$20)*(MONTH($A72)-1)/12)*$E72 -> -0.08251315861 | J72: =(SUM('3.0 LRAMVA Register'!F$11:F$17)+SUM('3.0 LRAMVA Register'!F$19:F$20)*(MONTH($A72)-1)/12)*$E72 -> -0.03587856395 | K72: =(SUM('3.0 LRAMVA Register'!G$11:G$17)+SUM('3.0 LRAMVA Register'!G$19:G$20)*(MONTH($A72)-1)/12)*$E72 -> -0.004219037009 | L72: =(SUM('3.0 LRAMVA Register'!H$11:H$17)+SUM('3.0 LRAMVA Register'!H$19:H$20)*(MONTH($A72)-1)/12)*$E72 -> -0.1640443681 | M72: =(SUM('3.0 LRAMVA Register'!I$11:I$17)+SUM('3.0 LRAMVA Register'!I$19:I$20)*(MONTH($A72)-1)/12)*$E72 -> 0 | N72: =(SUM('3.0 LRAMVA Register'!J$11:J$17)+SUM('3.0 LRAMVA Register'!J$19:J$20)*(MONTH($A72)-1)/12)*$E72 -> 0 | O72: =(SUM('3.0 LRAMVA Register'!K$11:K$17)+SUM('3.0 LRAMVA Register'!K$19:K$20)*(MONTH($A72)-1)/12)*$E72 -> 0 | P72: 64.87326179
A73: 2013-07-01 | B73: 2015-04-01 | C73: 2011-2013 | D73: Q3 | E73: =J$22/12 -> 0.001225 | F73: =(SUM('3.0 LRAMVA Register'!B$11:B$17)+SUM('3.0 LRAMVA Register'!B$19:B$20)*(MONTH($A73)-1)/12)*$E73 -> 7.947145164 | G73: =(SUM('3.0 LRAMVA Register'!C$11:C$17)+SUM('3.0 LRAMVA Register'!C$19:C$20)*(MONTH($A73)-1)/12)*$E73 -> 30.38922653 | H73: =(SUM('3.0 LRAMVA Register'!D$11:D$17)+SUM('3.0 LRAMVA Register'!D$19:D$20)*(MONTH($A73)-1)/12)*$E73 -> 31.9840734 | I73: =(SUM('3.0 LRAMVA Register'!E$11:E$17)+SUM('3.0 LRAMVA Register'!E$19:E$20)*(MONTH($A73)-1)/12)*$E73 -> -0.1409090863 | J73: =(SUM('3.0 LRAMVA Register'!F$11:F$17)+SUM('3.0 LRAMVA Register'!F$19:F$20)*(MONTH($A73)-1)/12)*$E73 -> -0.04305427674 | K73: =(SUM('3.0 LRAMVA Register'!G$11:G$17)+SUM('3.0 LRAMVA Register'!G$19:G$20)*(MONTH($A73)-1)/12)*$E73 -> -0.00506284441 | L73: =(SUM('3.0 LRAMVA Register'!H$11:H$17)+SUM('3.0 LRAMVA Register'!H$19:H$20)*(MONTH($A73)-1)/12)*$E73 -> -0.1968532417 | M73: =(SUM('3.0 LRAMVA Register'!I$11:I$17)+SUM('3.0 LRAMVA Register'!I$19:I$20)*(MONTH($A73)-1)/12)*$E73 -> 0 | N73: =(SUM('3.0 LRAMVA Register'!J$11:J$17)+SUM('3.0 LRAMVA Register'!J$19:J$20)*(MONTH($A73)-1)/12)*$E73 -> 0 | O73: =(SUM('3.0 LRAMVA Register'!K$11:K$17)+SUM('3.0 LRAMVA Register'!K$19:K$20)*(MONTH($A73)-1)/12)*$E73 -> 0 | P73: 69.93456564
A74: 2013-08-01 | B74: 2015-05-01 | C74: 2011-2013 | D74: Q3 | E74: =J$22/12 -> 0.001225 | F74: =(SUM('3.0 LRAMVA Register'!B$11:B$17)+SUM('3.0 LRAMVA Register'!B$19:B$20)*(MONTH($A74)-1)/12)*$E74 -> 8.072056441 | G74: =(SUM('3.0 LRAMVA Register'!C$11:C$17)+SUM('3.0 LRAMVA Register'!C$19:C$20)*(MONTH($A74)-1)/12)*$E74 -> 32.08654914 | H74: =(SUM('3.0 LRAMVA Register'!D$11:D$17)+SUM('3.0 LRAMVA Register'!D$19:D$20)*(MONTH($A74)-1)/12)*$E74 -> 35.32236768 | I74: =(SUM('3.0 LRAMVA Register'!E$11:E$17)+SUM('3.0 LRAMVA Register'!E$19:E$20)*(MONTH($A74)-1)/12)*$E74 -> -0.1993050139 | J74: =(SUM('3.0 LRAMVA Register'!F$11:F$17)+SUM('3.0 LRAMVA Register'!F$19:F$20)*(MONTH($A74)-1)/12)*$E74 -> -0.05022998953 | K74: =(SUM('3.0 LRAMVA Register'!G$11:G$17)+SUM('3.0 LRAMVA Register'!G$19:G$20)*(MONTH($A74)-1)/12)*$E74 -> -0.005906651812 | L74: =(SUM('3.0 LRAMVA Register'!H$11:H$17)+SUM('3.0 LRAMVA Register'!H$19:H$20)*(MONTH($A74)-1)/12)*$E74 -> -0.2296621153 | M74: =(SUM('3.0 LRAMVA Register'!I$11:I$17)+SUM('3.0 LRAMVA Register'!I$19:I$20)*(MONTH($A74)-1)/12)*$E74 -> 0 | N74: =(SUM('3.0 LRAMVA Register'!J$11:J$17)+SUM('3.0 LRAMVA Register'!J$19:J$20)*(MONTH($A74)-1)/12)*$E74 -> 0 | O74: =(SUM('3.0 LRAMVA Register'!K$11:K$17)+SUM('3.0 LRAMVA Register'!K$19:K$20)*(MONTH($A74)-1)/12)*$E74 -> 0 | P74: 74.9958695
A75: 2013-09-01 | B75: 2015-06-01 | C75: 2011-2013 | D75: Q3 | E75: =J$22/12 -> 0.001225 | F75: =(SUM('3.0 LRAMVA Register'!B$11:B$17)+SUM('3.0 LRAMVA Register'!B$19:B$20)*(MONTH($A75)-1)/12)*$E75 -> 8.196967717 | G75: =(SUM('3.0 LRAMVA Register'!C$11:C$17)+SUM('3.0 LRAMVA Register'!C$19:C$20)*(MONTH($A75)-1)/12)*$E75 -> 33.78387176 | H75: =(SUM('3.0 LRAMVA Register'!D$11:D$17)+SUM('3.0 LRAMVA Register'!D$19:D$20)*(MONTH($A75)-1)/12)*$E75 -> 38.66066197 | I75: =(SUM('3.0 LRAMVA Register'!E$11:E$17)+SUM('3.0 LRAMVA Register'!E$19:E$20)*(MONTH($A75)-1)/12)*$E75 -> -0.2577009416 | J75: =(SUM('3.0 LRAMVA Register'!F$11:F$17)+SUM('3.0 LRAMVA Register'!F$19:F$20)*(MONTH($A75)-1)/12)*$E75 -> -0.05740570232 | K75: =(SUM('3.0 LRAMVA Register'!G$11:G$17)+SUM('3.0 LRAMVA Register'!G$19:G$20)*(MONTH($A75)-1)/12)*$E75 -> -0.006750459214 | L75: =(SUM('3.0 LRAMVA Register'!H$11:H$17)+SUM('3.0 LRAMVA Register'!H$19:H$20)*(MONTH($A75)-1)/12)*$E75 -> -0.262470989 | M75: =(SUM('3.0 LRAMVA Register'!I$11:I$17)+SUM('3.0 LRAMVA Register'!I$19:I$20)*(MONTH($A75)-1)/12)*$E75 -> 0 | N75: =(SUM('3.0 LRAMVA Register'!J$11:J$17)+SUM('3.0 LRAMVA Register'!J$19:J$20)*(MONTH($A75)-1)/12)*$E75 -> 0 | O75: =(SUM('3.0 LRAMVA Register'!K$11:K$17)+SUM('3.0 LRAMVA Register'!K$19:K$20)*(MONTH($A75)-1)/12)*$E75 -> 0 | P75: 80.05717335
A76: 2013-10-01 | B76: 2015-07-01 | C76: 2011-2013 | D76: Q4 | E76: =J$23/12 -> 0.001225 | F76: =(SUM('3.0 LRAMVA Register'!B$11:B$17)+SUM('3.0 LRAMVA Register'!B$19:B$20)*(MONTH($A76)-1)/12)*$E76 -> 8.321878994 | G76: =(SUM('3.0 LRAMVA Register'!C$11:C$17)+SUM('3.0 LRAMVA Register'!C$19:C$20)*(MONTH($A76)-1)/12)*$E76 -> 35.48119437 | H76: =(SUM('3.0 LRAMVA Register'!D$11:D$17)+SUM('3.0 LRAMVA Register'!D$19:D$20)*(MONTH($A76)-1)/12)*$E76 -> 41.99895625 | I76: =(SUM('3.0 LRAMVA Register'!E$11:E$17)+SUM('3.0 LRAMVA Register'!E$19:E$20)*(MONTH($A76)-1)/12)*$E76 -> -0.3160968692 | J76: =(SUM('3.0 LRAMVA Register'!F$11:F$17)+SUM('3.0 LRAMVA Register'!F$19:F$20)*(MONTH($A76)-1)/12)*$E76 -> -0.06458141511 | K76: =(SUM('3.0 LRAMVA Register'!G$11:G$17)+SUM('3.0 LRAMVA Register'!G$19:G$20)*(MONTH($A76)-1)/12)*$E76 -> -0.007594266615 | L76: =(SUM('3.0 LRAMVA Register'!H$11:H$17)+SUM('3.0 LRAMVA Register'!H$19:H$20)*(MONTH($A76)-1)/12)*$E76 -> -0.2952798626 | M76: =(SUM('3.0 LRAMVA Register'!I$11:I$17)+SUM('3.0 LRAMVA Register'!I$19:I$20)*(MONTH($A76)-1)/12)*$E76 -> 0 | N76: =(SUM('3.0 LRAMVA Register'!J$11:J$17)+SUM('3.0 LRAMVA Register'!J$19:J$20)*(MONTH($A76)-1)/12)*$E76 -> 0 | O76: =(SUM('3.0 LRAMVA Register'!K$11:K$17)+SUM('3.0 LRAMVA Register'!K$19:K$20)*(MONTH($A76)-1)/12)*$E76 -> 0 | P76: 85.1184772
A77: 2013-11-01 | B77: 2015-08-01 | C77: 2011-2013 | D77: Q4 | E77: =J$23/12 -> 0.001225 | F77: =(SUM('3.0 LRAMVA Register'!B$11:B$17)+SUM('3.0 LRAMVA Register'!B$19:B$20)*(MONTH($A77)-1)/12)*$E77 -> 8.446790271 | G77: =(SUM('3.0 LRAMVA Register'!C$11:C$17)+SUM('3.0 LRAMVA Register'!C$19:C$20)*(MONTH($A77)-1)/12)*$E77 -> 37.17851699 | H77: =(SUM('3.0 LRAMVA Register'!D$11:D$17)+SUM('3.0 LRAMVA Register'!D$19:D$20)*(MONTH($A77)-1)/12)*$E77 -> 45.33725053 | I77: =(SUM('3.0 LRAMVA Register'!E$11:E$17)+SUM('3.0 LRAMVA Register'!E$19:E$20)*(MONTH($A77)-1)/12)*$E77 -> -0.3744927969 | J77: =(SUM('3.0 LRAMVA Register'!F$11:F$17)+SUM('3.0 LRAMVA Register'!F$19:F$20)*(MONTH($A77)-1)/12)*$E77 -> -0.0717571279 | K77: =(SUM('3.0 LRAMVA Register'!G$11:G$17)+SUM('3.0 LRAMVA Register'!G$19:G$20)*(MONTH($A77)-1)/12)*$E77 -> -0.008438074017 | L77: =(SUM('3.0 LRAMVA Register'!H$11:H$17)+SUM('3.0 LRAMVA Register'!H$19:H$20)*(MONTH($A77)-1)/12)*$E77 -> -0.3280887362 | M77: =(SUM('3.0 LRAMVA Register'!I$11:I$17)+SUM('3.0 LRAMVA Register'!I$19:I$20)*(MONTH($A77)-1)/12)*$E77 -> 0 | N77: =(SUM('3.0 LRAMVA Register'!J$11:J$17)+SUM('3.0 LRAMVA Register'!J$19:J$20)*(MONTH($A77)-1)/12)*$E77 -> 0 | O77: =(SUM('3.0 LRAMVA Register'!K$11:K$17)+SUM('3.0 LRAMVA Register'!K$19:K$20)*(MONTH($A77)-1)/12)*$E77 -> 0 | P77: 90.17978105
A78: 2013-12-01 | B78: 2015-09-01 | C78: 2011-2013 | D78: Q4 | E78: =J$23/12 -> 0.001225 | F78: =(SUM('3.0 LRAMVA Register'!B$11:B$17)+SUM('3.0 LRAMVA Register'!B$19:B$20)*(MONTH($A78)-1)/12)*$E78 -> 8.571701548 | G78: =(SUM('3.0 LRAMVA Register'!C$11:C$17)+SUM('3.0 LRAMVA Register'!C$19:C$20)*(MONTH($A78)-1)/12)*$E78 -> 38.8758396 | H78: =(SUM('3.0 LRAMVA Register'!D$11:D$17)+SUM('3.0 LRAMVA Register'!D$19:D$20)*(MONTH($A78)-1)/12)*$E78 -> 48.67554482 | I78: =(SUM('3.0 LRAMVA Register'!E$11:E$17)+SUM('3.0 LRAMVA Register'!E$19:E$20)*(MONTH($A78)-1)/12)*$E78 -> -0.4328887245 | J78: =(SUM('3.0 LRAMVA Register'!F$11:F$17)+SUM('3.0 LRAMVA Register'!F$19:F$20)*(MONTH($A78)-1)/12)*$E78 -> -0.07893284069 | K78: =(SUM('3.0 LRAMVA Register'!G$11:G$17)+SUM('3.0 LRAMVA Register'!G$19:G$20)*(MONTH($A78)-1)/12)*$E78 -> -0.009281881419 | L78: =(SUM('3.0 LRAMVA Register'!H$11:H$17)+SUM('3.0 LRAMVA Register'!H$19:H$20)*(MONTH($A78)-1)/12)*$E78 -> -0.3608976098 | M78: =(SUM('3.0 LRAMVA Register'!I$11:I$17)+SUM('3.0 LRAMVA Register'!I$19:I$20)*(MONTH($A78)-1)/12)*$E78 -> 0 | N78: =(SUM('3.0 LRAMVA Register'!J$11:J$17)+SUM('3.0 LRAMVA Register'!J$19:J$20)*(MONTH($A78)-1)/12)*$E78 -> 0 | O78: =(SUM('3.0 LRAMVA Register'!K$11:K$17)+SUM('3.0 LRAMVA Register'!K$19:K$20)*(MONTH($A78)-1)/12)*$E78 -> 0 | P78: 95.24108491
A79: 2014-01-01 | B79: 2015-10-01 | C79: 2011-2014 | D79: Q1 | E79: =J$24/12 -> 0.001225 | F79: =(SUM('3.0 LRAMVA Register'!B$11:B$21)+SUM('3.0 LRAMVA Register'!B$23:B$24)*(MONTH($A79)-1)/12)*$E79 -> 8.696612824 | G79: =(SUM('3.0 LRAMVA Register'!C$11:C$21)+SUM('3.0 LRAMVA Register'!C$23:C$24)*(MONTH($A79)-1)/12)*$E79 -> 40.57316222 | H79: =(SUM('3.0 LRAMVA Register'!D$11:D$21)+SUM('3.0 LRAMVA Register'!D$23:D$24)*(MONTH($A79)-1)/12)*$E79 -> 52.0138391 | I79: =(SUM('3.0 LRAMVA Register'!E$11:E$21)+SUM('3.0 LRAMVA Register'!E$23:E$24)*(MONTH($A79)-1)/12)*$E79 -> -0.4912846522 | J79: =(SUM('3.0 LRAMVA Register'!F$11:F$21)+SUM('3.0 LRAMVA Register'!F$23:F$24)*(MONTH($A79)-1)/12)*$E79 -> -0.08610855348 | K79: =(SUM('3.0 LRAMVA Register'!G$11:G$21)+SUM('3.0 LRAMVA Register'!G$23:G$24)*(MONTH($A79)-1)/12)*$E79 -> -0.01012568882 | L79: =(SUM('3.0 LRAMVA Register'!H$11:H$21)+SUM('3.0 LRAMVA Register'!H$23:H$24)*(MONTH($A79)-1)/12)*$E79 -> -0.3937064835 | M79: =(SUM('3.0 LRAMVA Register'!I$11:I$21)+SUM('3.0 LRAMVA Register'!I$23:I$24)*(MONTH($A79)-1)/12)*$E79 -> 0 | N79: =(SUM('3.0 LRAMVA Register'!J$11:J$21)+SUM('3.0 LRAMVA Register'!J$23:J$24)*(MONTH($A79)-1)/12)*$E79 -> 0 | O79: =(SUM('3.0 LRAMVA Register'!K$11:K$21)+SUM('3.0 LRAMVA Register'!K$23:K$24)*(MONTH($A79)-1)/12)*$E79 -> 0 | P79: 100.3023888
A80: 2014-02-01 | B80: 2015-11-01 | C80: 2011-2014 | D80: Q1 | E80: =J$24/12 -> 0.001225 | F80: =(SUM('3.0 LRAMVA Register'!B$11:B$21)+SUM('3.0 LRAMVA Register'!B$23:B$24)*(MONTH($A80)-1)/12)*$E80 -> 8.812456376 | G80: =(SUM('3.0 LRAMVA Register'!C$11:C$21)+SUM('3.0 LRAMVA Register'!C$23:C$24)*(MONTH($A80)-1)/12)*$E80 -> 42.33547441 | H80: =(SUM('3.0 LRAMVA Register'!D$11:D$21)+SUM('3.0 LRAMVA Register'!D$23:D$24)*(MONTH($A80)-1)/12)*$E80 -> 52.92917918 | I80: =(SUM('3.0 LRAMVA Register'!E$11:E$21)+SUM('3.0 LRAMVA Register'!E$23:E$24)*(MONTH($A80)-1)/12)*$E80 -> -0.5538738046 | J80: =(SUM('3.0 LRAMVA Register'!F$11:F$21)+SUM('3.0 LRAMVA Register'!F$23:F$24)*(MONTH($A80)-1)/12)*$E80 -> -0.0904209142 | K80: =(SUM('3.0 LRAMVA Register'!G$11:G$21)+SUM('3.0 LRAMVA Register'!G$23:G$24)*(MONTH($A80)-1)/12)*$E80 -> -0.01097769743 | L80: =(SUM('3.0 LRAMVA Register'!H$11:H$21)+SUM('3.0 LRAMVA Register'!H$23:H$24)*(MONTH($A80)-1)/12)*$E80 -> -0.4129599599 | M80: =(SUM('3.0 LRAMVA Register'!I$11:I$21)+SUM('3.0 LRAMVA Register'!I$23:I$24)*(MONTH($A80)-1)/12)*$E80 -> 0 | N80: =(SUM('3.0 LRAMVA Register'!J$11:J$21)+SUM('3.0 LRAMVA Register'!J$23:J$24)*(MONTH($A80)-1)/12)*$E80 -> 0 | O80: =(SUM('3.0 LRAMVA Register'!K$11:K$21)+SUM('3.0 LRAMVA Register'!K$23:K$24)*(MONTH($A80)-1)/12)*$E80 -> 0 | P80: 103.0088776
A81: 2014-03-01 | B81: 2015-12-01 | C81: 2011-2014 | D81: Q1 | E81: =J$24/12 -> 0.001225 | F81: =(SUM('3.0 LRAMVA Register'!B$11:B$21)+SUM('3.0 LRAMVA Register'!B$23:B$24)*(MONTH($A81)-1)/12)*$E81 -> 8.928299928 | G81: =(SUM('3.0 LRAMVA Register'!C$11:C$21)+SUM('3.0 LRAMVA Register'!C$23:C$24)*(MONTH($A81)-1)/12)*$E81 -> 44.0977866 | H81: =(SUM('3.0 LRAMVA Register'!D$11:D$21)+SUM('3.0 LRAMVA Register'!D$23:D$24)*(MONTH($A81)-1)/12)*$E81 -> 53.84451927 | I81: =(SUM('3.0 LRAMVA Register'!E$11:E$21)+SUM('3.0 LRAMVA Register'!E$23:E$24)*(MONTH($A81)-1)/12)*$E81 -> -0.6164629569 | J81: =(SUM('3.0 LRAMVA Register'!F$11:F$21)+SUM('3.0 LRAMVA Register'!F$23:F$24)*(MONTH($A81)-1)/12)*$E81 -> -0.09473327493 | K81: =(SUM('3.0 LRAMVA Register'!G$11:G$21)+SUM('3.0 LRAMVA Register'!G$23:G$24)*(MONTH($A81)-1)/12)*$E81 -> -0.01182970604 | L81: =(SUM('3.0 LRAMVA Register'!H$11:H$21)+SUM('3.0 LRAMVA Register'!H$23:H$24)*(MONTH($A81)-1)/12)*$E81 -> -0.4322134362 | M81: =(SUM('3.0 LRAMVA Register'!I$11:I$21)+SUM('3.0 LRAMVA Register'!I$23:I$24)*(MONTH($A81)-1)/12)*$E81 -> 0 | N81: =(SUM('3.0 LRAMVA Register'!J$11:J$21)+SUM('3.0 LRAMVA Register'!J$23:J$24)*(MONTH($A81)-1)/12)*$E81 -> 0 | O81: =(SUM('3.0 LRAMVA Register'!K$11:K$21)+SUM('3.0 LRAMVA Register'!K$23:K$24)*(MONTH($A81)-1)/12)*$E81 -> 0 | P81: 105.7153664
A82: 2014-04-01 | B82: 2016-01-01 | C82: 2011-2014 | D82: Q2 | E82: =J$25/12 -> 0.001225 | F82: =(SUM('3.0 LRAMVA Register'!B$11:B$21)+SUM('3.0 LRAMVA Register'!B$23:B$24)*(MONTH($A82)-1)/12)*$E82 -> 9.04414348 | G82: =(SUM('3.0 LRAMVA Register'!C$11:C$21)+SUM('3.0 LRAMVA Register'!C$23:C$24)*(MONTH($A82)-1)/12)*$E82 -> 45.86009879 | H82: =(SUM('3.0 LRAMVA Register'!D$11:D$21)+SUM('3.0 LRAMVA Register'!D$23:D$24)*(MONTH($A82)-1)/12)*$E82 -> 54.75985935 | I82: =(SUM('3.0 LRAMVA Register'!E$11:E$21)+SUM('3.0 LRAMVA Register'!E$23:E$24)*(MONTH($A82)-1)/12)*$E82 -> -0.6790521093 | J82: =(SUM('3.0 LRAMVA Register'!F$11:F$21)+SUM('3.0 LRAMVA Register'!F$23:F$24)*(MONTH($A82)-1)/12)*$E82 -> -0.09904563566 | K82: =(SUM('3.0 LRAMVA Register'!G$11:G$21)+SUM('3.0 LRAMVA Register'!G$23:G$24)*(MONTH($A82)-1)/12)*$E82 -> -0.01268171464 | L82: =(SUM('3.0 LRAMVA Register'!H$11:H$21)+SUM('3.0 LRAMVA Register'!H$23:H$24)*(MONTH($A82)-1)/12)*$E82 -> -0.4514669126 | M82: =(SUM('3.0 LRAMVA Register'!I$11:I$21)+SUM('3.0 LRAMVA Register'!I$23:I$24)*(MONTH($A82)-1)/12)*$E82 -> 0 | N82: =(SUM('3.0 LRAMVA Register'!J$11:J$21)+SUM('3.0 LRAMVA Register'!J$23:J$24)*(MONTH($A82)-1)/12)*$E82 -> 0 | O82: =(SUM('3.0 LRAMVA Register'!K$11:K$21)+SUM('3.0 LRAMVA Register'!K$23:K$24)*(MONTH($A82)-1)/12)*$E82 -> 0 | P82: 108.4218553
A83: Total for rate year 2013 | F83: =SUM(F70:F82) -> 202.4360289 | G83: =SUM(G70:G82) -> 670.6319469 | H83: =SUM(H70:H82) -> 701.229587 | I83: =SUM(I70:I82) -> -1.231518619 | J83: =SUM(J70:J82) -> -0.8439054224 | K83: =SUM(K70:K82) -> -0.1013060954 | L83: =SUM(L70:L82) -> -3.855732451 | M83: 0 | N83: 0 | O83: 0 | P83: =SUM(P70:P82) -> 1568.2651
A84: Amount Cleared | P84: =SUM(F84:O84) -> 0
A85: Opening Balance for rate year 2014 | F85: =F83+F84 -> 202.4360289 | G85: =G83+G84 -> 670.6319469 | H85: 701.229587 | I85: -1.231518619 | J85: -0.8439054224 | K85: -0.1013060954 | L85: -3.855732451 | M85: 0 | N85: 0 | O85: 0 | P85: =P83+P84 -> 1568.2651
A86: 2014-05-01 | B86: 2016-02-01 | C86: 2011-2014 | D86: Q2 | E86: =J$25/12 -> 0.001225 | F86: =(SUM('3.0 LRAMVA Register'!B$11:B$21)+SUM('3.0 LRAMVA Register'!B$23:B$24)*(MONTH($A86)-1)/12)*$E86 -> 9.159987032 | G86: =(SUM('3.0 LRAMVA Register'!C$11:C$21)+SUM('3.0 LRAMVA Register'!C$23:C$24)*(MONTH($A86)-1)/12)*$E86 -> 47.62241099 | H86: =(SUM('3.0 LRAMVA Register'!D$11:D$21)+SUM('3.0 LRAMVA Register'!D$23:D$24)*(MONTH($A86)-1)/12)*$E86 -> 55.67519944 | I86: =(SUM('3.0 LRAMVA Register'!E$11:E$21)+SUM('3.0 LRAMVA Register'!E$23:E$24)*(MONTH($A86)-1)/12)*$E86 -> -0.7416412616 | J86: =(SUM('3.0 LRAMVA Register'!F$11:F$21)+SUM('3.0 LRAMVA Register'!F$23:F$24)*(MONTH($A86)-1)/12)*$E86 -> -0.1033579964 | K86: =(SUM('3.0 LRAMVA Register'!G$11:G$21)+SUM('3.0 LRAMVA Register'!G$23:G$24)*(MONTH($A86)-1)/12)*$E86 -> -0.01353372325 | L86: =(SUM('3.0 LRAMVA Register'!H$11:H$21)+SUM('3.0 LRAMVA Register'!H$23:H$24)*(MONTH($A86)-1)/12)*$E86 -> -0.470720389 | M86: =(SUM('3.0 LRAMVA Register'!I$11:I$21)+SUM('3.0 LRAMVA Register'!I$23:I$24)*(MONTH($A86)-1)/12)*$E86 -> 0 | N86: =(SUM('3.0 LRAMVA Register'!J$11:J$21)+SUM('3.0 LRAMVA Register'!J$23:J$24)*(MONTH($A86)-1)/12)*$E86 -> 0 | O86: =(SUM('3.0 LRAMVA Register'!K$11:K$21)+SUM('3.0 LRAMVA Register'!K$23:K$24)*(MONTH($A86)-1)/12)*$E86 -> 0 | P86: =SUM(F86:O86) -> 111.1283441
A87: 2014-06-01 | B87: 2016-03-01 | C87: 2011-2014 | D87: Q2 | E87: =J$25/12 -> 0.001225 | F87: =(SUM('3.0 LRAMVA Register'!B$11:B$21)+SUM('3.0 LRAMVA Register'!B$23:B$24)*(MONTH($A87)-1)/12)*$E87 -> 9.275830584 | G87: =(SUM('3.0 LRAMVA Register'!C$11:C$21)+SUM('3.0 LRAMVA Register'!C$23:C$24)*(MONTH($A87)-1)/12)*$E87 -> 49.38472318 | H87: =(SUM('3.0 LRAMVA Register'!D$11:D$21)+SUM('3.0 LRAMVA Register'!D$23:D$24)*(MONTH($A87)-1)/12)*$E87 -> 56.59053952 | I87: =(SUM('3.0 LRAMVA Register'!E$11:E$21)+SUM('3.0 LRAMVA Register'!E$23:E$24)*(MONTH($A87)-1)/12)*$E87 -> -0.804230414 | J87: =(SUM('3.0 LRAMVA Register'!F$11:F$21)+SUM('3.0 LRAMVA Register'!F$23:F$24)*(MONTH($A87)-1)/12)*$E87 -> -0.1076703571 | K87: =(SUM('3.0 LRAMVA Register'!G$11:G$21)+SUM('3.0 LRAMVA Register'!G$23:G$24)*(MONTH($A87)-1)/12)*$E87 -> -0.01438573186 | L87: =(SUM('3.0 LRAMVA Register'!H$11:H$21)+SUM('3.0 LRAMVA Register'!H$23:H$24)*(MONTH($A87)-1)/12)*$E87 -> -0.4899738654 | M87: =(SUM('3.0 LRAMVA Register'!I$11:I$21)+SUM('3.0 LRAMVA Register'!I$23:I$24)*(MONTH($A87)-1)/12)*$E87 -> 0 | N87: =(SUM('3.0 LRAMVA Register'!J$11:J$21)+SUM('3.0 LRAMVA Register'!J$23:J$24)*(MONTH($A87)-1)/12)*$E87 -> 0 | O87: =(SUM('3.0 LRAMVA Register'!K$11:K$21)+SUM('3.0 LRAMVA Register'!K$23:K$24)*(MONTH($A87)-1)/12)*$E87 -> 0 | P87: 113.8348329
A88: 2014-07-01 | B88: 2016-04-01 | C88: 2011-2014 | D88: Q3 | E88: =J$26/12 -> 0.001225 | F88: =(SUM('3.0 LRAMVA Register'!B$11:B$21)+SUM('3.0 LRAMVA Register'!B$23:B$24)*(MONTH($A88)-1)/12)*$E88 -> 9.391674136 | G88: =(SUM('3.0 LRAMVA Register'!C$11:C$21)+SUM('3.0 LRAMVA Register'!C$23:C$24)*(MONTH($A88)-1)/12)*$E88 -> 51.14703537 | H88: =(SUM('3.0 LRAMVA Register'!D$11:D$21)+SUM('3.0 LRAMVA Register'!D$23:D$24)*(MONTH($A88)-1)/12)*$E88 -> 57.50587961 | I88: =(SUM('3.0 LRAMVA Register'!E$11:E$21)+SUM('3.0 LRAMVA Register'!E$23:E$24)*(MONTH($A88)-1)/12)*$E88 -> -0.8668195663 | J88: =(SUM('3.0 LRAMVA Register'!F$11:F$21)+SUM('3.0 LRAMVA Register'!F$23:F$24)*(MONTH($A88)-1)/12)*$E88 -> -0.1119827179 | K88: =(SUM('3.0 LRAMVA Register'!G$11:G$21)+SUM('3.0 LRAMVA Register'!G$23:G$24)*(MONTH($A88)-1)/12)*$E88 -> -0.01523774047 | L88: =(SUM('3.0 LRAMVA Register'!H$11:H$21)+SUM('3.0 LRAMVA Register'!H$23:H$24)*(MONTH($A88)-1)/12)*$E88 -> -0.5092273418 | M88: =(SUM('3.0 LRAMVA Register'!I$11:I$21)+SUM('3.0 LRAMVA Register'!I$23:I$24)*(MONTH($A88)-1)/12)*$E88 -> 0 | N88: =(SUM('3.0 LRAMVA Register'!J$11:J$21)+SUM('3.0 LRAMVA Register'!J$23:J$24)*(MONTH($A88)-1)/12)*$E88 -> 0 | O88: =(SUM('3.0 LRAMVA Register'!K$11:K$21)+SUM('3.0 LRAMVA Register'!K$23:K$24)*(MONTH($A88)-1)/12)*$E88 -> 0 | P88: 116.5413218
A89: 2014-08-01 | B89: 2016-05-01 | D89: Q3 | E89: =J$26/12 -> 0.001225 | F89: =(SUM('3.0 LRAMVA Register'!B$11:B$21)+SUM('3.0 LRAMVA Register'!B$23:B$24)*(MONTH($A89)-1)/12)*$E89 -> 9.507517688 | G89: =(SUM('3.0 LRAMVA Register'!C$11:C$21)+SUM('3.0 LRAMVA Register'!C$23:C$24)*(MONTH($A89)-1)/12)*$E89 -> 52.90934757 | H89: =(SUM('3.0 LRAMVA Register'!D$11:D$21)+SUM('3.0 LRAMVA Register'!D$23:D$24)*(MONTH($A89)-1)/12)*$E89 -> 58.42121969 | I89: =(SUM('3.0 LRAMVA Register'!E$11:E$21)+SUM('3.0 LRAMVA Register'!E$23:E$24)*(MONTH($A89)-1)/12)*$E89 -> -0.9294087187 | J89: =(SUM('3.0 LRAMVA Register'!F$11:F$21)+SUM('3.0 LRAMVA Register'!F$23:F$24)*(MONTH($A89)-1)/12)*$E89 -> -0.1162950786 | K89: =(SUM('3.0 LRAMVA Register'!G$11:G$21)+SUM('3.0 LRAMVA Register'!G$23:G$24)*(MONTH($A89)-1)/12)*$E89 -> -0.01608974907 | L89: =(SUM('3.0 LRAMVA Register'!H$11:H$21)+SUM('3.0 LRAMVA Register'!H$23:H$24)*(MONTH($A89)-1)/12)*$E89 -> -0.5284808182 | M89: =(SUM('3.0 LRAMVA Register'!I$11:I$21)+SUM('3.0 LRAMVA Register'!I$23:I$24)*(MONTH($A89)-1)/12)*$E89 -> 0 | N89: =(SUM('3.0 LRAMVA Register'!J$11:J$21)+SUM('3.0 LRAMVA Register'!J$23:J$24)*(MONTH($A89)-1)/12)*$E89 -> 0 | O89: =(SUM('3.0 LRAMVA Register'!K$11:K$21)+SUM('3.0 LRAMVA Register'!K$23:K$24)*(MONTH($A89)-1)/12)*$E89 -> 0 | P89: 119.2478106
A90: 2014-09-01 | B90: 2016-06-01 | D90: Q3 | E90: =J$26/12 -> 0.001225 | F90: =(SUM('3.0 LRAMVA Register'!B$11:B$21)+SUM('3.0 LRAMVA Register'!B$23:B$24)*(MONTH($A90)-1)/12)*$E90 -> 9.62336124 | G90: =(SUM('3.0 LRAMVA Register'!C$11:C$21)+SUM('3.0 LRAMVA Register'!C$23:C$24)*(MONTH($A90)-1)/12)*$E90 -> 54.67165976 | H90: =(SUM('3.0 LRAMVA Register'!D$11:D$21)+SUM('3.0 LRAMVA Register'!D$23:D$24)*(MONTH($A90)-1)/12)*$E90 -> 59.33655978 | I90: =(SUM('3.0 LRAMVA Register'!E$11:E$21)+SUM('3.0 LRAMVA Register'!E$23:E$24)*(MONTH($A90)-1)/12)*$E90 -> -0.9919978711 | J90: =(SUM('3.0 LRAMVA Register'!F$11:F$21)+SUM('3.0 LRAMVA Register'!F$23:F$24)*(MONTH($A90)-1)/12)*$E90 -> -0.1206074393 | K90: =(SUM('3.0 LRAMVA Register'!G$11:G$21)+SUM('3.0 LRAMVA Register'!G$23:G$24)*(MONTH($A90)-1)/12)*$E90 -> -0.01694175768 | L90: =(SUM('3.0 LRAMVA Register'!H$11:H$21)+SUM('3.0 LRAMVA Register'!H$23:H$24)*(MONTH($A90)-1)/12)*$E90 -> -0.5477342946 | M90: =(SUM('3.0 LRAMVA Register'!I$11:I$21)+SUM('3.0 LRAMVA Register'!I$23:I$24)*(MONTH($A90)-1)/12)*$E90 -> 0 | N90: =(SUM('3.0 LRAMVA Register'!J$11:J$21)+SUM('3.0 LRAMVA Register'!J$23:J$24)*(MONTH($A90)-1)/12)*$E90 -> 0 | O90: =(SUM('3.0 LRAMVA Register'!K$11:K$21)+SUM('3.0 LRAMVA Register'!K$23:K$24)*(MONTH($A90)-1)/12)*$E90 -> 0 | P90: 121.9542994
A91: 2014-10-01 | B91: 2016-07-01 | D91: Q4 | E91: =J$27/12 -> 0.001225 | F91: =(SUM('3.0 LRAMVA Register'!B$11:B$21)+SUM('3.0 LRAMVA Register'!B$23:B$24)*(MONTH($A91)-1)/12)*$E91 -> 9.739204792 | G91: =(SUM('3.0 LRAMVA Register'!C$11:C$21)+SUM('3.0 LRAMVA Register'!C$23:C$24)*(MONTH($A91)-1)/12)*$E91 -> 56.43397195 | H91: =(SUM('3.0 LRAMVA Register'!D$11:D$21)+SUM('3.0 LRAMVA Register'!D$23:D$24)*(MONTH($A91)-1)/12)*$E91 -> 60.25189986 | I91: =(SUM('3.0 LRAMVA Register'!E$11:E$21)+SUM('3.0 LRAMVA Register'!E$23:E$24)*(MONTH($A91)-1)/12)*$E91 -> -1.054587023 | J91: =(SUM('3.0 LRAMVA Register'!F$11:F$21)+SUM('3.0 LRAMVA Register'!F$23:F$24)*(MONTH($A91)-1)/12)*$E91 -> -0.1249198 | K91: =(SUM('3.0 LRAMVA Register'!G$11:G$21)+SUM('3.0 LRAMVA Register'!G$23:G$24)*(MONTH($A91)-1)/12)*$E91 -> -0.01779376629 | L91: =(SUM('3.0 LRAMVA Register'!H$11:H$21)+SUM('3.0 LRAMVA Register'!H$23:H$24)*(MONTH($A91)-1)/12)*$E91 -> -0.566987771 | M91: =(SUM('3.0 LRAMVA Register'!I$11:I$21)+SUM('3.0 LRAMVA Register'!I$23:I$24)*(MONTH($A91)-1)/12)*$E91 -> 0 | N91: =(SUM('3.0 LRAMVA Register'!J$11:J$21)+SUM('3.0 LRAMVA Register'!J$23:J$24)*(MONTH($A91)-1)/12)*$E91 -> 0 | O91: =(SUM('3.0 LRAMVA Register'!K$11:K$21)+SUM('3.0 LRAMVA Register'!K$23:K$24)*(MONTH($A91)-1)/12)*$E91 -> 0 | P91: 124.6607882
A92: 2014-11-01 | D92: Q4 | E92: =J$27/12 -> 0.001225 | F92: =(SUM('3.0 LRAMVA Register'!B$11:B$21)+SUM('3.0 LRAMVA Register'!B$23:B$24)*(MONTH($A92)-1)/12)*$E92 -> 9.855048344 | G92: =(SUM('3.0 LRAMVA Register'!C$11:C$21)+SUM('3.0 LRAMVA Register'!C$23:C$24)*(MONTH($A92)-1)/12)*$E92 -> 58.19628415 | H92: =(SUM('3.0 LRAMVA Register'!D$11:D$21)+SUM('3.0 LRAMVA Register'!D$23:D$24)*(MONTH($A92)-1)/12)*$E92 -> 61.16723995 | I92: =(SUM('3.0 LRAMVA Register'!E$11:E$21)+SUM('3.0 LRAMVA Register'!E$23:E$24)*(MONTH($A92)-1)/12)*$E92 -> -1.117176176 | J92: =(SUM('3.0 LRAMVA Register'!F$11:F$21)+SUM('3.0 LRAMVA Register'!F$23:F$24)*(MONTH($A92)-1)/12)*$E92 -> -0.1292321608 | K92: =(SUM('3.0 LRAMVA Register'!G$11:G$21)+SUM('3.0 LRAMVA Register'!G$23:G$24)*(MONTH($A92)-1)/12)*$E92 -> -0.0186457749 | L92: =(SUM('3.0 LRAMVA Register'!H$11:H$21)+SUM('3.0 LRAMVA Register'!H$23:H$24)*(MONTH($A92)-1)/12)*$E92 -> -0.5862412474 | M92: =(SUM('3.0 LRAMVA Register'!I$11:I$21)+SUM('3.0 LRAMVA Register'!I$23:I$24)*(MONTH($A92)-1)/12)*$E92 -> 0 | N92: =(SUM('3.0 LRAMVA Register'!J$11:J$21)+SUM('3.0 LRAMVA Register'!J$23:J$24)*(MONTH($A92)-1)/12)*$E92 -> 0 | O92: =(SUM('3.0 LRAMVA Register'!K$11:K$21)+SUM('3.0 LRAMVA Register'!K$23:K$24)*(MONTH($A92)-1)/12)*$E92 -> 0 | P92: 127.3672771
A93: 2014-12-01 | D93: Q4 | E93: =J$27/12 -> 0.001225 | F93: =(SUM('3.0 LRAMVA Register'!B$11:B$21)+SUM('3.0 LRAMVA Register'!B$23:B$24)*(MONTH($A93)-1)/12)*$E93 -> 9.970891896 | G93: =(SUM('3.0 LRAMVA Register'!C$11:C$21)+SUM('3.0 LRAMVA Register'!C$23:C$24)*(MONTH($A93)-1)/12)*$E93 -> 59.95859634 | H93: =(SUM('3.0 LRAMVA Register'!D$11:D$21)+SUM('3.0 LRAMVA Register'!D$23:D$24)*(MONTH($A93)-1)/12)*$E93 -> 62.08258003 | I93: =(SUM('3.0 LRAMVA Register'!E$11:E$21)+SUM('3.0 LRAMVA Register'!E$23:E$24)*(MONTH($A93)-1)/12)*$E93 -> -1.179765328 | J93: =(SUM('3.0 LRAMVA Register'!F$11:F$21)+SUM('3.0 LRAMVA Register'!F$23:F$24)*(MONTH($A93)-1)/12)*$E93 -> -0.1335445215 | K93: =(SUM('3.0 LRAMVA Register'!G$11:G$21)+SUM('3.0 LRAMVA Register'!G$23:G$24)*(MONTH($A93)-1)/12)*$E93 -> -0.01949778351 | L93: =(SUM('3.0 LRAMVA Register'!H$11:H$21)+SUM('3.0 LRAMVA Register'!H$23:H$24)*(MONTH($A93)-1)/12)*$E93 -> -0.6054947238 | M93: =(SUM('3.0 LRAMVA Register'!I$11:I$21)+SUM('3.0 LRAMVA Register'!I$23:I$24)*(MONTH($A93)-1)/12)*$E93 -> 0 | N93: =(SUM('3.0 LRAMVA Register'!J$11:J$21)+SUM('3.0 LRAMVA Register'!J$23:J$24)*(MONTH($A93)-1)/12)*$E93 -> 0 | O93: =(SUM('3.0 LRAMVA Register'!K$11:K$21)+SUM('3.0 LRAMVA Register'!K$23:K$24)*(MONTH($A93)-1)/12)*$E93 -> 0 | P93: 130.0737659
A94: 2015-01-01 | D94: Q1 | E94: =J$28/12 -> 0.001225 | F94: =SUM('3.0 LRAMVA Register'!B$11:B$24)*$E94 -> 10.08673545 | G94: =SUM('3.0 LRAMVA Register'!C$11:C$24)*$E94 -> 61.72090853 | H94: =SUM('3.0 LRAMVA Register'!D$11:D$24)*$E94 -> 62.99792012 | I94: =SUM('3.0 LRAMVA Register'!E$11:E$24)*$E94 -> -1.24235448 | J94: =SUM('3.0 LRAMVA Register'!F$11:F$24)*$E94 -> -0.1378568822 | K94: =SUM('3.0 LRAMVA Register'!G$11:G$24)*$E94 -> -0.02034979211 | L94: =SUM('3.0 LRAMVA Register'!H$11:H$24)*$E94 -> -0.6247482002 | M94: =SUM('3.0 LRAMVA Register'!I$11:I$24)*$E94 -> 0 | N94: =SUM('3.0 LRAMVA Register'!J$11:J$24)*$E94 -> 0 | O94: =SUM('3.0 LRAMVA Register'!K$11:K$24)*$E94 -> 0 | P94: 132.7802547
A95: 2015-02-01 | D95: Q1 | E95: =J$28/12 -> 0.001225 | F95: =SUM('3.0 LRAMVA Register'!B$11:B$24)*$E95 -> 10.08673545 | G95: =SUM('3.0 LRAMVA Register'!C$11:C$24)*$E95 -> 61.72090853 | H95: =SUM('3.0 LRAMVA Register'!D$11:D$24)*$E95 -> 62.99792012 | I95: =SUM('3.0 LRAMVA Register'!E$11:E$24)*$E95 -> -1.24235448 | J95: =SUM('3.0 LRAMVA Register'!F$11:F$24)*$E95 -> -0.1378568822 | K95: =SUM('3.0 LRAMVA Register'!G$11:G$24)*$E95 -> -0.02034979211 | L95: =SUM('3.0 LRAMVA Register'!H$11:H$24)*$E95 -> -0.6247482002 | M95: =SUM('3.0 LRAMVA Register'!I$11:I$24)*$E95 -> 0 | N95: =SUM('3.0 LRAMVA Register'!J$11:J$24)*$E95 -> 0 | O95: =SUM('3.0 LRAMVA Register'!K$11:K$24)*$E95 -> 0 | P95: 132.7802547
A96: 2015-03-01 | D96: Q1 | E96: =J$28/12 -> 0.001225 | F96: =SUM('3.0 LRAMVA Register'!B$11:B$24)*$E96 -> 10.08673545 | G96: =SUM('3.0 LRAMVA Register'!C$11:C$24)*$E96 -> 61.72090853 | H96: =SUM('3.0 LRAMVA Register'!D$11:D$24)*$E96 -> 62.99792012 | I96: =SUM('3.0 LRAMVA Register'!E$11:E$24)*$E96 -> -1.24235448 | J96: =SUM('3.0 LRAMVA Register'!F$11:F$24)*$E96 -> -0.1378568822 | K96: =SUM('3.0 LRAMVA Register'!G$11:G$24)*$E96 -> -0.02034979211 | L96: =SUM('3.0 LRAMVA Register'!H$11:H$24)*$E96 -> -0.6247482002 | M96: =SUM('3.0 LRAMVA Register'!I$11:I$24)*$E96 -> 0 | N96: =SUM('3.0 LRAMVA Register'!J$11:J$24)*$E96 -> 0 | O96: =SUM('3.0 LRAMVA Register'!K$11:K$24)*$E96 -> 0 | P96: 132.7802547
A97: 2015-04-01 | D97: Q2 | E97: =J$29/12 -> 0.001225 | F97: =SUM('3.0 LRAMVA Register'!B$11:B$24)*$E97 -> 10.08673545 | G97: =SUM('3.0 LRAMVA Register'!C$11:C$24)*$E97 -> 61.72090853 | H97: =SUM('3.0 LRAMVA Register'!D$11:D$24)*$E97 -> 62.99792012 | I97: =SUM('3.0 LRAMVA Register'!E$11:E$24)*$E97 -> -1.24235448 | J97: =SUM('3.0 LRAMVA Register'!F$11:F$24)*$E97 -> -0.1378568822 | K97: =SUM('3.0 LRAMVA Register'!G$11:G$24)*$E97 -> -0.02034979211 | L97: =SUM('3.0 LRAMVA Register'!H$11:H$24)*$E97 -> -0.6247482002 | M97: =SUM('3.0 LRAMVA Register'!I$11:I$24)*$E97 -> 0 | N97: =SUM('3.0 LRAMVA Register'!J$11:J$24)*$E97 -> 0 | O97: =SUM('3.0 LRAMVA Register'!K$11:K$24)*$E97 -> 0 | P97: 132.7802547
A98: Total for rate year 2014 | F98: =SUM(F85:F97) -> 319.3064864 | G98: =SUM(G85:G97) -> 1347.83961 | H98: =SUM(H85:H97) -> 1424.252385 | I98: =SUM(I85:I97) -> -13.8865629 | J98: =SUM(J85:J97) -> -2.342943023 | K98: =SUM(K85:K97) -> -0.3148312909 | L98: =SUM(L85:L97) -> -10.6595857 | M98: 0 | N98: 0 | O98: 0 | P98: =SUM(P85:P97) -> 3064.194559
A99: Amount Cleared | P99: =SUM(F99:O99) -> 0
A100: Opening Balance for rate year 2015 | F100: =F98+F99 -> 319.3064864 | G100: =G98+G99 -> 1347.83961 | H100: 1424.252385 | I100: -13.8865629 | J100: -2.342943023 | K100: -0.3148312909 | L100: -10.6595857 | M100: 0 | N100: 0 | O100: 0 | P100: =P98+P99 -> 3064.194559

Sheet 6.0 Rates
A1: LRAMVA Model version 1.0 © CHEC
A8: Table 6 - Distribution Rates
A10: Rate Class | B10: Billing Unit | C10: 2011 | D10: 2012 | E10: 2013 | F10: 2014 | G10: May 1, 2010 to Apr 30, 2011 | H10: May 1, 2011 to July 31, 2012 | I10: Aug 1, 2012 to June 30, 2013 | J10: July 1, 2013 to Apr 30, 2014 | K10: May 1, 2014 to Apr 30, 2015
A11: For "Calendar" rate year | H11: 2011 | I11: 2012 | J11: 2013 | K11: 2014
A12: Pro-ratio of Rates (months) - Period 1 | H12: 4 | I12: 7 | J12: 6 | K12: 4
A13: Pro-ratio of Rates (months) - Period 2 | H13: 8 | I13: 5 | J13: 6 | K13: 8
A15: ='4.0 Approved Load Forecast'!D20 -> Residential | B15: ='2.0 Customer Classes'!D13 -> kWh | C15: =SUM(G15*$H$12+H15*$H$13)/12 -> 0.01276666667 | D15: =SUM(H15*$I$12+I15*$I$13)/12 -> 0.01274166667 | E15: =SUM(I15*$J$12+J15*$J$13)/12 -> 0.0134 | F15: =SUM(J15*$K$12+K15*$K$13)/12 -> 0.01413333333 | G15: 0.0129 | H15: 0.0127 | I15: 0.0128 | J15: 0.014 | K15: 0.0142
A16: ='4.0 Approved Load Forecast'!E20 -> General Service < 50 kW | B16: ='2.0 Customer Classes'!D14 -> kWh | C16: =SUM(G16*$H$12+H16*$H$13)/12 -> 0.01596666667 | D16: 0.01594166667 | E16: 0.01705 | F16: =SUM(J16*$K$12+K16*$K$13)/12 -> 0.0183 | G16: 0.0161 | H16: 0.0159 | I16: 0.016 | J16: 0.0181 | K16: 0.0184
A17: ='4.0 Approved Load Forecast'!F20 -> General Service 50 to 2999 kW | B17: ='2.0 Customer Classes'!D15 -> kW | C17: 2.9517 | D17: 2.902908333 | E17: 3.2039 | F17: 3.526 | G17: 3.0657 | H17: 2.8947 | I17: 2.9144 | J17: 3.4934 | K17: 3.5423
A18: ='4.0 Approved Load Forecast'!G20 -> General Service 3000 to 4999 kW | B18: ='2.0 Customer Classes'!D16 -> kW | C18: 2.458866667 | D18: 2.465658333 | E18: 2.61555 | F18: 2.781433333 | G18: 2.4592 | H18: 2.4587 | I18: 2.4754 | J18: 2.7557 | K18: 2.7943
A19: ='4.0 Approved Load Forecast'!H20 -> Unmetered Scattered Load | B19: ='2.0 Customer Classes'!D17 -> kWh | C19: 0.02413333333 | D19: 0.02408333333 | E19: 0.01725 | F19: 0.01036666667 | G19: 0.0244 | H19: 0.024 | I19: 0.0242 | J19: 0.0103 | K19: 0.0104
A20: ='4.0 Approved Load Forecast'!I20 -> Sentinel Lighting | B20: ='2.0 Customer Classes'!D18 -> kW | C20: 10.96136667 | D20: 11.729825 | E20: 11.7807 | F20: 11.8952 | G20: 9.4907 | H20: 11.6967 | I20: 11.7762 | J20: 11.7852 | K20: 11.9502
A21: ='4.0 Approved Load Forecast'!J20 -> Street Lighting | B21: ='2.0 Customer Classes'!D19 -> kW | C21: 19.5836 | D21: 21.29936667 | E21: 15.07385 | F21: 8.8459 | G21: 16.2724 | H21: 21.2392 | I21: 21.3836 | J21: 8.7641 | K21: 8.8868
A22: ='4.0 Approved Load Forecast'!K20 -> other | B22: ='2.0 Customer Classes'!D20 -> 0
A23: ='4.0 Approved Load Forecast'!L20 -> other | B23: ='2.0 Customer Classes'!D21 -> 0
A24: ='4.0 Approved Load Forecast'!M20 -> other | B24: ='2.0 Customer Classes'!D22 -> 0 | C24: =IF((G24*4+H24*8)/12=0," ",(G24*4+H24*8)/12) ->  | D24: =IF((H24*4+I24*8)/12=0," ",(H24*4+I24*8)/12) ->  | E24: =IF((I24*4+J24*8)/12=0," ",(I24*4+J24*8)/12) ->  | F24: =IF((J24*4+K24*8)/12=0," ",(J24*4+K24*8)/12) -> 
A26: References:
A27: Decision & Orders relating to rates: | G27: EB-2009-0218 | H27: EB-2010-0072 | I27: EB-2011-0160 | J27: EB-2013-0113 | K27: EB-2013-0118
I28: Updated to EB-2012-0052 (PILs)

Sheet 7.0 2011LostRev
A1: LRAMVA Model version 1.0 © CHEC
B6: Table 7: Allocation of Program Savings Across Rate Classes
G7: 2011
A10: # | B10: Initiative | C10: Results Status | D10: Net Incremental Peak Demand Savings (kW) | E10: Net Incremental Energy Savings (kWh) | F10: Rate Allocation for LRAMVA
D11: 2011 kW Saved | E11: 2011 kWh Saved | F11: ='3.0 LRAMVA Register'!B10 -> Residential | G11: ='3.0 LRAMVA Register'!C10 -> General Service < 50 kW | H11: ='3.0 LRAMVA Register'!D10 -> General Service 50 to 2999 kW | I11: ='3.0 LRAMVA Register'!E10 -> General Service 3000 to 4999 kW | J11: ='3.0 LRAMVA Register'!F10 -> Unmetered Scattered Load | K11: ='3.0 LRAMVA Register'!G10 -> Sentinel Lighting | L11: ='3.0 LRAMVA Register'!H10 -> Street Lighting | M11: ='3.0 LRAMVA Register'!K10 -> other | N11: ='3.0 LRAMVA Register'!L10 -> Total
B12: Consumer Program
A13: 1 | B13: Appliance Retirement | C13: Verified | D13: 5.083 | E13: 35188.552 | F13: 1 | N13: =SUM(F13:M13) -> 1
A14: 2 | B14: Appliance Exchange | C14: Verified | D14: 0.771 | E14: 985.595 | F14: 1 | N14: =SUM(F14:M14) -> 1
A15: 3 | B15: HVAC Incentives | C15: Verified | D15: 43.574 | E15: 84048.247 | F15: 1 | N15: 1
A16: 4 | B16: Conservation Instant Coupon Booklet | C16: Verified | D16: 1.3 | E16: 21106.559 | F16: 1 | N16: 1
A17: 5 | B17: Bi-Annual Retailer Event | C17: Verified | D17: 1.899 | E17: 33184.905 | F17: 1 | N17: 1
A18: 6 | B18: Retailer Co-op | C18: Verified | D18: 0 | E18: 0 | N18: 0
A19: 7 | B19: Residential Demand Response | C19: Verified | D19: 0 | E19: 0 | N19: 0
A20: 8 | B20: Residential New Construction | C20: Verified | D20: 0 | E20: 0 | N20: 0
B21: Business Program
A22: 9 | B22: Retrofit | C22: Verified | D22: 2.668 | E22: 18910.988 | G22: 1 | N22: =SUM(F22:M22) -> 1
A23: 10 | B23: Direct Install Lighting | C23: Verified | D23: 43.485 | E23: 117589.221 | G23: 1 | N23: 1
A24: 11 | B24: Building Commissioning | C24: Verified | D24: 0 | E24: 0 | N24: 0
A25: 12 | B25: New Construction | C25: Verified | D25: 0 | E25: 0 | N25: 0
A26: 13 | B26: Energy Audit | C26: Verified | D26: 0 | E26: 0 | N26: 0
A27: 14 | B27: Commercial Demand Response (part of residential program) | C27: Verified | D27: 0 | E27: 0 | N27: 0
A28: 15 | B28: Demand Response 3 | C28: Verified | D28: 0 | E28: 0 | N28: 0
B29: Industrial Program
A30: 16 | B30: Process & System Upgrades | C30: Verified | N30: =SUM(F30:M30) -> 0
A31: 17 | B31: Monitoring & Targeting | C31: Verified | N31: 0
A32: 18 | B32: Energy Manager | C32: Verified | N32: 0
A33: 19 | B33: Retrofit | C33: Verified | N33: 0
A34: 20 | B34: Demand Response 3 | C34: Verified | N34: 0
B35: Home Assistance Program
A36: 21 | B36: Home Assistance Program | C36: Verified | N36: =SUM(F36:M36) -> 0
B37: Pre-2011 Programs completed in 2011
A38: 22 | B38: Electricity Retrofit Incentive Program | C38: Verified | D38: 114.681 | E38: 662465.44 | H38: =112/115 -> 0.9739130435 | I38: =3/115 -> 0.02608695652 | N38: =SUM(F38:M38) -> 1
A39: 23 | B39: High Performance New Construction | C39: Verified | D39: 0.093 | E39: 475.389 | G39: 1 | N39: 1
A40: 24 | B40: Toronto Comprehensive | C40: Verified | D40: 0 | E40: 0 | N40: 0
A41: 25 | B41: Multifamily Energy Efficiency Rebates | C41: Verified | D41: 0 | E41: 0 | N41: 0
B42: Total kWh | D42: =SUM(D13:D20,D22:D27,D30:D33,D36,D38:D41) -> 213.554 | E42: =SUM(E13:E20,E22:E27,E30:E33,E36,E38:E41) -> 973954.896 | F42: =SUM(E13*F13,E14*F14,E15*F15,E16*F16,E17*F17) -> 174513.858 | G42: =SUM(E22*G22,E23*G23,E39*G39) -> 136975.598 | H42: =SUM($E$38*H38) -> 645183.7329 | I42: =SUM($E$38*I38) -> 17281.70713 | J42: =SUM($E$22*J22,$E$38*J38,$E$39*J39) -> 0 | K42: 0 | L42: 0 | N42: =SUM(F42:M42) -> 973954.896
A43: 12 | B43: Total GS > 50 kW excluding Demand Response 3 | H43: =SUM($D$22*H22,$D$38*H38,$D$39*H39)*$A43 -> 1340.271861 | I43: =SUM($D$22*I22,$D$38*I38,$D$39*I39)*$A43 -> 35.90013913 | J43: =SUM($D$22*J22,$D$38*J38,$D$39*J39)*$A43 -> 0 | K43: 0 | L43: 0 | N43: =SUM(F43:M43) -> 1376.172
A44: 5 | B44: Demand Response Total (Scenario 1) | D44: =SUM(D28,D34) -> 0 | E44: =SUM(E28,E34) -> 0 | H44: =SUM($D$28*H28,$D$34*H34)*$A44 -> 0 | I44: =SUM($D$28*I28,$D$34*I34)*$A44 -> 0 | J44: 0 | K44: 0 | L44: 0 | N44: =SUM(F44:M44) -> 0
B45: OPA-Contracted LDC Portfolio Total | D45: =SUM(D42:D44) -> 213.554 | E45: =SUM(E42:E44) -> 973954.896
B46: Rate | F46: ='6.0 Rates'!C15 -> 0.01276666667 | G46: ='6.0 Rates'!C16 -> 0.01596666667 | H46: ='6.0 Rates'!C17 -> 2.9517 | I46: ='6.0 Rates'!C18 -> 2.458866667 | J46: ='6.0 Rates'!C19 -> 0.02413333333 | K46: ='6.0 Rates'!C20 -> 10.96136667 | L46: ='6.0 Rates'!C21 -> 19.5836
B47: Lost Revenue in 2011 | F47: =F42*F46 -> 2227.960254 | G47: =G42*G46 -> 2187.043715 | H47: =SUM(H43,H44)*H46 -> 3956.080452 | I47: =I43*I46 -> 88.27365544 | J47: =J43*J46 -> 0 | K47: 0 | L47: 0 | N47: =SUM(F47:M47) -> 8459.358076
B48: 2011 Savings Persisting in 2012 | F48: =F42*'11.0 Persistence '!C42 -> 174334.8694 | G48: =G42*'11.0 Persistence '!C42 -> 136835.1102 | H48: =H43*'11.0 Persistence '!C24 -> 1252.481128 | I48: =I43*'11.0 Persistence '!C24 -> 33.54860163 | J48: =J43*'11.0 Persistence '!C24 -> 0 | K48: =K43*'11.0 Persistence '!C24 -> 0 | L48: =L43*'11.0 Persistence '!C42 -> 0
B49: 2011 Savings Persisting in 2013 | F49: =F42*'11.0 Persistence '!D42 -> 174334.8694 | G49: =G42*'11.0 Persistence '!D42 -> 136835.1102 | H49: =H43*'11.0 Persistence '!D24 -> 1252.481128 | I49: =I43*'11.0 Persistence '!D24 -> 33.54860163 | J49: =J43*'11.0 Persistence '!D24 -> 0 | K49: =K43*'11.0 Persistence '!D24 -> 0 | L49: =L43*'11.0 Persistence '!D42 -> 0
B50: 2011 Savings Persisting in 2014 | F50: =F42*'11.0 Persistence '!E42 -> 168786.2237 | G50: =G42*'11.0 Persistence '!E42 -> 132479.9886 | H50: =H43*'11.0 Persistence '!E24 -> 1188.101257 | I50: =I43*'11.0 Persistence '!E24 -> 31.8241408 | J50: =J43*'11.0 Persistence '!E24 -> 0 | K50: =K43*'11.0 Persistence '!E24 -> 0 | L50: =L43*'11.0 Persistence '!E42 -> 0
B52: Input program details, report status, kWh and kW net savings from OPA 2011 Final Annual Report Data - Table 5
B53: Input % allocation where applicable based on LDC information | H53: =N42-E42 -> 0
B55: 2011 savings persisting - OPA 2011 Final Annual Report Data - Tables 6 and 7

Sheet 8.0 2012LostRev
A1: LRAMVA Model version 1.0 © CHEC
B6: Table 8: Allocation of Program Savings Across Rate Classes
G7: 2012
A10: # | B10: Initiative | C10: Results Status | D10: Net Incremental Peak Demand Savings (kW) | E10: Net Incremental Energy Savings (kWh) | F10: Rate Allocation for LRAMVA
D11: 2012 kW Saved | E11: 2012 kWh Saved | F11: ='3.0 LRAMVA Register'!B10 -> Residential | G11: ='3.0 LRAMVA Register'!C10 -> General Service < 50 kW | H11: ='3.0 LRAMVA Register'!D10 -> General Service 50 to 2999 kW | I11: ='3.0 LRAMVA Register'!E10 -> General Service 3000 to 4999 kW | J11: ='3.0 LRAMVA Register'!F10 -> Unmetered Scattered Load | K11: ='3.0 LRAMVA Register'!G10 -> Sentinel Lighting | L11: ='3.0 LRAMVA Register'!H10 -> Street Lighting | M11: ='3.0 LRAMVA Register'!K10 -> other | N11: ='3.0 LRAMVA Register'!L10 -> Total
B12: Consumer Program
A13: 1 | B13: Appliance Retirement | C13: Verified | D13: 4.675 | E13: 29799.859 | F13: 1 | N13: =SUM(F13:M13) -> 1
A14: 2 | B14: Appliance Exchange | C14: Verified | D14: 5.962 | E14: 10401.995 | F14: 1 | N14: =SUM(F14:M14) -> 1
A15: 3 | B15: HVAC Incentives | C15: Verified | D15: 27.831 | E15: 51118.478 | F15: 1 | N15: 1
A16: 4 | B16: Conservation Instant Coupon Booklet | C16: Verified | D16: 0.26 | E16: 1578.877 | F16: 1 | N16: 1
A17: 5 | B17: Bi-Annual Retailer Event | C17: Verified | D17: 1.671 | E17: 30242.392 | F17: 1 | N17: 1
A18: 6 | B18: Retailer Co-op | C18: Verified | D18: 0 | E18: 0 | F18: 1 | N18: 1
A19: 7 | B19: Residential Demand Response (switch/pstat) | C19: Verified | D19: 0 | E19: 0 | F19: 1 | N19: 1
A20: 8 | B20: Residential Demand Response (IHD) | C20: Verified | D20: 0 | E20: 0 | F20: 1 | N20: =SUM(F20:M20) -> 1
A21: 9 | B21: Residential New Construction | C21: Verified | D21: 0 | E21: 0 | F21: 1 | N21: 1
B22: 2011 True-up (Verified Errors & Omissions)
A23: 3a | B23: HVAC Incentives | C23: True-Up | D23: -7.351 | E23: -13972.448 | F23: 1 | N23: 1
A24: 4a | B24: Conservation Instant Coupon Booklet | C24: True-Up | E24: 311.275 | F24: 1 | N24: 1
A25: 5a | B25: Bi-Annual Retailer Event | C25: True-Up | E25: 2465.528 | F25: 1 | N25: 1
B26: Business Program
A27: 10 | B27: Retrofit | C27: Verified | D27: 132.988 | E27: 446895.09 | G27: =1-H27 -> 0.5871122088 | H27: =(25808.49+12264.82+328059.46)/886760.95 -> 0.4128877912 | N27: =SUM(F27:M27) -> 1
A28: 11 | B28: Direct Install Lighting | C28: Verified | D28: 56.344 | E28: 217952.966 | G28: 1 | N28: 1
A29: 12 | B29: Building Commissioning | C29: Verified | D29: 0 | E29: 0 | N29: 0
A30: 13 | B30: New Construction | C30: Verified | D30: 0 | E30: 0 | N30: 0
A31: 14 | B31: Energy Audit | C31: Verified | D31: 0 | E31: 0 | N31: 0
A32: 15 | B32: Small Commercial Demand Response (switch/pstat)* | C32: Verified | D32: 0 | E32: 0 | N32: =SUM(F32:M32) -> 0
A33: 16 | B33: Small Commercial Demand Response (IHD) | C33: Verified | D33: 0 | E33: 0 | N33: 0
A34: 17 | B34: Demand Response 3 | C34: Verified | D34: 17.496 | E34: 254.313 | H34: 1 | N34: 1
B35: 2011 True-up (Verified Errors & Omissions)
A36: 11a | B36: Direct Install Lighting | C36: True-Up | D36: 39.964 | E36: 280174.693 | G36: 1 | N36: 1
B37: Industrial Program
A38: 18 | B38: Process & System Upgrades | C38: Verified | N38: =SUM(F38:M38) -> 0
A39: 19 | B39: Monitoring & Targeting | C39: Verified | N39: 0
A40: 20 | B40: Energy Manager | C40: Verified | N40: 0
A41: 21 | B41: Retrofit | C41: Verified | N41: 0
A42: 22 | B42: Demand Response 3 | C42: Verified | N42: 0
B43: Home Assistance Program
A44: 23 | B44: Home Assistance Program | C44: Verified | N44: =SUM(F44:M44) -> 0
B45: Pre-2011 Programs completed in 2011
A46: 24 | B46: Electricity Retrofit Incentive Program | C46: Verified | N46: =SUM(F46:M46) -> 0
A47: 25 | B47: High Performance New Construction | C47: Verified | E47: 123.625 | G47: 1 | N47: 1
A48: 26 | B48: Toronto Comprehensive | C48: Verified | N48: 0
A49: 27 | B49: Multifamily Energy Efficiency Rebates | C49: Verified | N49: 0
A50: 28 | B50: LDC Custom Programs | C50: Verified | N50: 0
B51: 2011 True-up (Verified Errors & Omissions)
A52: 22a | B52: High Performance New Construction | C52: True-Up | N52: =SUM(F52:M52) -> 0
B53: Other
A54: 29 | B54: Program Enabled Savings | C54: Verified | N54: =SUM(F54:M54) -> 0
A55: 30 | B55: Time-of-Use Savings | C55: Verified | N55: 0
B56: Total kWh | D56: =SUM(D13:D25,D27:D33,D35:D36,D38:D41,D44,D46:D52,D54:D55) -> 262.344 | E56: =SUM(E13:E25,E27:E33,E35:E36,E38:E41,E44,E46:E52,E54:E55) -> 1057092.33 | F56: =SUM(E13*F13,E14*F14,E15*F15,E16*F16,E17*F17,E18*F18,E19*F19,E21*F21,E23*F23,E24*F24,E25*F25) -> 111945.956 | G56: =SUM($E$27*G27,$E$28*G28,$E$36*G36,$E$47*G47) -> 760628.8474 | H56: =SUM($E$27*H27,$E$28*H28,$E$36*H36,$E$47*H47) -> 184517.5266 | I56: =SUM($E$27*I27,$E$46*I46,$E$47*I47,$E$52*I52) -> 0 | J56: =SUM($E$27*J27,$E$46*J46,$E$47*J47,$E$52*J52) -> 0 | K56: =SUM($E$27*K27,$E$46*K46,$E$47*K47,$E$52*K52) -> 0 | L56: =SUM($E$27*L27,$E$46*L46,$E$47*L47,$E$52*L52) -> 0 | N56: =SUM(F56:M56) -> 1057092.33
A57: 12 | B57: Total GS > 50 kW excluding Demand Response 3 | H57: =SUM($D$27*H27,$D$46*H46,$D$47*H47,$D$52*H52)*$A$57 -> 658.909459 | I57: =SUM($D$27*I27,$D$46*I46,$D$47*I47,$D$52*I52)*$A$57 -> 0 | J57: =SUM($D$27*J27,$D$46*J46,$D$47*J47,$D$52*J52)*$A$57 -> 0 | K57: 0 | L57: 0 | N57: =SUM(F57:M57) -> 658.909459
A58: 5 | B58: Demand Response Total (Scenario 1) | D58: =SUM(D34,D42) -> 17.496 | E58: =SUM(E34,E42) -> 254.313 | H58: =SUM($D$34*H34)*$A$58 -> 87.48 | I58: =SUM($D$34*I34,$D$42*I42)*$A$58 -> 0 | J58: 0 | K58: 0 | L58: 0 | N58: =SUM(F58:M58) -> 87.48
B59: OPA-Contracted LDC Portfolio Total | D59: =SUM(D56:D58) -> 279.84 | E59: =SUM(E56:E58) -> 1057346.643
B60: Rate | F60: ='6.0 Rates'!D15 -> 0.01274166667 | G60: ='6.0 Rates'!D16 -> 0.01594166667 | H60: ='6.0 Rates'!D17 -> 2.902908333 | I60: ='6.0 Rates'!D18 -> 2.465658333 | J60: ='6.0 Rates'!D19 -> 0.02408333333 | K60: ='6.0 Rates'!D20 -> 11.729825 | L60: ='6.0 Rates'!D21 -> 21.29936667
B61: Lost Revenue in 2012 from 2012 | F61: =F56*F60 -> 1426.378056 | G61: =G56*G60 -> 12125.69154 | H61: =SUM(H57,H58)*H60 -> 2166.70018 | I61: =SUM(I57,I58)*I60 -> 0 | J61: =J57*J60 -> 0 | K61: 0 | L61: 0 | N61: =SUM(F61:M61) -> 15718.76978
B62: Lost Revenue in 2012 from 2011 | F62: ='7.0 2011LostRev'!F48*F60 -> 2221.316795 | G62: ='7.0 2011LostRev'!G48*G60 -> 2181.379715 | H62: ='7.0 2011LostRev'!H48*H60 -> 3635.837903 | I62: ='7.0 2011LostRev'!I48*I60 -> 82.71938919 | J62: ='7.0 2011LostRev'!J48*J60 -> 0 | K62: ='7.0 2011LostRev'!K48*K60 -> 0 | L62: ='7.0 2011LostRev'!L48*L60 -> 0 | N62: =SUM(F62:M62) -> 8121.253802
B63: Total Lost Revenue in 2012 | F63: =SUM(F61:F62) -> 3647.694851 | G63: =SUM(G61:G62) -> 14307.07126 | H63: 5802.538083 | I63: 82.71938919 | J63: 0 | K63: 0 | L63: 0 | N63: =SUM(N61:N62) -> 23840.02358
B64: 2012 Savings Persisting in 2013 | F64: =F56*'11.0 Persistence '!D43 -> 106120.9536 | G64: =G56*'11.0 Persistence '!D43 -> 721050.2413 | H64: =H57*'11.0 Persistence '!D25 -> 578.8990247 | I64: =I57*'11.0 Persistence '!D25 -> 0 | J64: =J57*'11.0 Persistence '!D25 -> 0 | K64: =K57*'11.0 Persistence '!D25 -> 0 | L64: =L57*'11.0 Persistence '!D43 -> 0
B65: 2012 Savings Persisting in 2014 | F65: =F56*'11.0 Persistence '!E43 -> 102731.8612 | G65: =G56*'11.0 Persistence '!E43 -> 698022.6887 | H65: =H57*'11.0 Persistence '!E25 -> 555.366544 | I65: =I57*'11.0 Persistence '!E25 -> 0 | J65: =J57*'11.0 Persistence '!E25 -> 0 | K65: =K57*'11.0 Persistence '!E25 -> 0 | L65: =L57*'11.0 Persistence '!E43 -> 0
B67: Input program details, report status, kWh and kW net savings from Final Verified Annual 2012 CDM Report_Orillia Power Distribution Corporation/Table 1 2012 Savings & Table 2 (Adjustments due to Errors and Omissions)
B68: Input % allocation where applicable based on LDC information
B70: 2012 savings persisting - OPA 2012 Gross to Net Savings Report Data

Sheet 8.1 2012 Gross to Net Savings
C1: LRAMVA Model version 1.0 © CHEC
J6: Table 9: 2012 Gross to Net Savings
A7: Orillia Power Distribution Corporation
A8: Table is at the End User Level | N8: Net Annual Summer Peak Demand Savings (MW) | AR8: Net Annual Energy Savings (MWh)
A9: Portfolio | B9: Program | C9: Initiative | D9: LDC | E9: Sector | F9: Conservation Resource Type | G9: (Implementation) Year | H9: Status | I9: Notes: | J9: Activity Unit Name | K9: Activity and Participation (i.e. # of appliances) | L9: Gross Summer Peak Demand Savings (MW) | M9: Gross Energy Savings (MWh) | N9: 2011 | O9: 2012 | P9: 2013 | Q9: 2014 | R9: 2015 | S9: 2016 | T9: 2017 | U9: 2018 | V9: 2019 | W9: 2020 | X9: 2021 | Y9: 2022 | Z9: 2023 | AA9: 2024 | AB9: 2025 | AC9: 2026 | AD9: 2027 | AE9: 2028 | AF9: 2029 | AG9: 2030 | AH9: 2031 | AI9: 2032 | AJ9: 2033 | AK9: 2034 | AL9: 2035 | AM9: 2036 | AN9: 2037 | AO9: 2038 | AP9: 2039 | AQ9: 2040 | AR9: 2011 | AS9: 2012 | AT9: 2013 | AU9: 2014 | AV9: 2015 | AW9: 2016 | AX9: 2017 | AY9: 2018 | AZ9: 2019 | BA9: 2020 | BB9: 2021 | BC9: 2022 | BD9: 2023 | BE9: 2024 | BF9: 2025 | BG9: 2026 | BH9: 2027 | BI9: 2028 | BJ9: 2029 | BK9: 2030 | BL9: 2031 | BM9: 2032 | BN9: 2033 | BO9: 2034 | BP9: 2035 | BQ9: 2036 | BR9: 2037 | BS9: 2038 | BT9: 2039 | BU9: 2040
A10: Tier 1 | B10: Business | C10: Direct Install Lighting | D10: Centre Wellington Hydro Ltd. | E10: C&I | F10: EE | G10: 2012 | H10: Final; Released August 31, 2013 | J10: Projects | K10: 58 | L10: 0.05972862689 | M10: 231.363037 | N10: 0 | O10: 0.05634442816 | P10: 0.05634442816 | Q10: 0.05634442816 | R10: 0.03526713213 | S10: 0.03521321537 | T10: 0.005611015322 | U10: 0.005611015322 | V10: 0.005611015322 | W10: 0.005611015322 | X10: 0.005611015322 | Y10: 0.005148424728 | Z10: 0.005148424728 | AA10: 0 | AB10: 0 | AC10: 0 | AD10: 0 | AE10: 0 | AF10: 0 | AG10: 0 | AH10: 0 | AI10: 0 | AJ10: 0 | AK10: 0 | AL10: 0 | AM10: 0 | AN10: 0 | AO10: 0 | AP10: 0 | AQ10: 0 | AR10: 0 | AS10: 217.9529657 | AT10: 217.9529657 | AU10: 217.9529657 | AV10: 129.0413329 | AW10: 128.7507513 | AX10: 22.88764373 | AY10: 22.88764373 | AZ10: 22.88764373 | BA10: 22.88764373 | BB10: 22.88764373 | BC10: 18.36129551 | BD10: 18.36129551 | BE10: 0 | BF10: 0 | BG10: 0 | BH10: 0 | BI10: 0 | BJ10: 0 | BK10: 0 | BL10: 0 | BM10: 0 | BN10: 0 | BO10: 0 | BP10: 0 | BQ10: 0 | BR10: 0 | BS10: 0 | BT10: 0 | BU10: 0
A11: Tier 1 | B11: Business | C11: Retrofit | D11: Centre Wellington Hydro Ltd. | E11: C&I | F11: EE | G11: 2012 | H11: Final; Released August 31, 2013 | J11: Projects | K11: 15 | L11: 0.1663136945 | M11: 550.0245781 | N11: 0 | O11: 0.1329882554 | P11: 0.1161507767 | Q11: 0.1062414037 | R11: 0.0641018277 | S11: 0.0641018277 | T11: 0.06138768796 | U11: 0.06129228672 | V11: 0.06129228672 | W11: 0.06078308242 | X11: 0.05949660833 | Y11: 0.05796643606 | Z11: 0.05796643606 | AA11: 0.05390169254 | AB11: 0.009683535298 | AC11: 0.009683535298 | AD11: 0.003515934435 | AE11: 0.003515934435 | AF11: 0.003515934435 | AG11: 0.003515934435 | AH11: 0.003515934435 | AI11: 0 | AJ11: 0 | AK11: 0 | AL11: 0 | AM11: 0 | AN11: 0 | AO11: 0 | AP11: 0 | AQ11: 0 | AR11: 0 | AS11: 446.8950903 | AT11: 392.0689569 | AU11: 359.8020945 | AV11: 220.9868481 | AW11: 220.9868481 | AX11: 212.0089394 | AY11: 211.6801269 | AZ11: 211.6801269 | BA11: 209.9957664 | BB11: 205.5617704 | BC11: 188.7356101 | BD11: 188.7356101 | BE11: 163.8911785 | BF11: 19.90818452 | BG11: 19.90818452 | BH11: 11.63010813 | BI11: 11.63010813 | BJ11: 11.63010813 | BK11: 11.63010813 | BL11: 11.63010813 | BM11: 0 | BN11: 0 | BO11: 0 | BP11: 0 | BQ11: 0 | BR11: 0 | BS11: 0 | BT11: 0 | BU11: 0
A12: Tier 1 | B12: Consumer | C12: Appliance Exchange | D12: Centre Wellington Hydro Ltd. | E12: Residential | F12: EE | G12: 2012 | H12: Final; Released August 31, 2013 | J12: Appliances | K12: 41.43362033 | L12: 0.0115687753 | M12: 20.18373771 | N12: 0 | O12: 0.005962143341 | P12: 0.005962143341 | Q12: 0.005962143341 | R12: 0.005704634945 | S12: 0 | T12: 0 | U12: 0 | V12: 0 | W12: 0 | X12: 0 | Y12: 0 | Z12: 0 | AA12: 0 | AB12: 0 | AC12: 0 | AD12: 0 | AE12: 0 | AF12: 0 | AG12: 0 | AH12: 0 | AI12: 0 | AJ12: 0 | AK12: 0 | AL12: 0 | AM12: 0 | AN12: 0 | AO12: 0 | AP12: 0 | AQ12: 0 | AR12: 0 | AS12: 10.40199453 | AT12: 10.40199453 | AU12: 10.40199453 | AV12: 10.17171651 | AW12: 0 | AX12: 0 | AY12: 0 | AZ12: 0 | BA12: 0 | BB12: 0 | BC12: 0 | BD12: 0 | BE12: 0 | BF12: 0 | BG12: 0 | BH12: 0 | BI12: 0 | BJ12: 0 | BK12: 0 | BL12: 0 | BM12: 0 | BN12: 0 | BO12: 0 | BP12: 0 | BQ12: 0 | BR12: 0 | BS12: 0 | BT12: 0 | BU12: 0
A13: Tier 1 | B13: Consumer | C13: Appliance Retirement | D13: Centre Wellington Hydro Ltd. | E13: Residential | F13: EE | G13: 2012 | H13: Final; Released August 31, 2013 | J13: Appliances | K13: 76.37377169 | L13: 0.01036765737 | M13: 64.02888987 | N13: 0 | O13: 0.004674770126 | P13: 0.004674770126 | Q13: 0.004674770126 | R13: 0.004445562302 | S13: 0.002260330594 | T13: 0 | U13: 0 | V13: 0 | W13: 0 | X13: 0 | Y13: 0 | Z13: 0 | AA13: 0 | AB13: 0 | AC13: 0 | AD13: 0 | AE13: 0 | AF13: 0 | AG13: 0 | AH13: 0 | AI13: 0 | AJ13: 0 | AK13: 0 | AL13: 0 | AM13: 0 | AN13: 0 | AO13: 0 | AP13: 0 | AQ13: 0 | AR13: 0 | AS13: 29.79985911 | AT13: 29.79985911 | AU13: 29.79985911 | AV13: 29.594889 | AW13: 17.19147665 | AX13: 0 | AY13: 0 | AZ13: 0 | BA13: 0 | BB13: 0 | BC13: 0 | BD13: 0 | BE13: 0 | BF13: 0 | BG13: 0 | BH13: 0 | BI13: 0 | BJ13: 0 | BK13: 0 | BL13: 0 | BM13: 0 | BN13: 0 | BO13: 0 | BP13: 0 | BQ13: 0 | BR13: 0 | BS13: 0 | BT13: 0 | BU13: 0
A14: Tier 1 | B14: Consumer | C14: Bi-Annual Retailer Event | D14: Centre Wellington Hydro Ltd. | E14: Residential | F14: EE | G14: 2012 | H14: Final; Released August 31, 2013 | J14: Products | K14: 1197.989931 | L14: 0.001831850149 | M14: 32.99813701 | N14: 0 | O14: 0.001671226238 | P14: 0.001671226238 | Q14: 0.001671226238 | R14: 0.001671226238 | S14: 0.00152970565 | T14: 0.001294491464 | U14: 0.0009690989043 | V14: 0.0009655208584 | W14: 0.0009655208584 | X14: 0.000622675051 | Y14: 0.0002436148938 | Z14: 0.000243593504 | AA14: 0.000243593504 | AB14: 0.0002394132595 | AC14: 0.0002394132595 | AD14: 0.0002334648827 | AE14: 6.550574285e-05 | AF14: 6.550574285e-05 | AG14: 6.550574285e-05 | AH14: 6.550574285e-05 | AI14: 0 | AJ14: 0 | AK14: 0 | AL14: 0 | AM14: 0 | AN14: 0 | AO14: 0 | AP14: 0 | AQ14: 0 | AR14: 0 | AS14: 30.24239158 | AT14: 30.24239158 | AU14: 30.24239158 | AV14: 30.24239158 | AW14: 27.18598614 | AX14: 22.10608982 | AY14: 15.07862054 | AZ14: 15.04727685 | BA14: 15.04727685 | BB14: 7.642871591 | BC14: 5.672007617 | BD14: 5.495730925 | BE14: 5.495730925 | BF14: 5.112047089 | BG14: 5.112047089 | BH14: 5.042116802 | BI14: 1.414720719 | BJ14: 1.414720719 | BK14: 1.414720719 | BL14: 1.414720719 | BM14: 0 | BN14: 0 | BO14: 0 | BP14: 0 | BQ14: 0 | BR14: 0 | BS14: 0 | BT14: 0 | BU14: 0
A15: Tier 1 | B15: Consumer | C15: Conservation Instant Coupon Booklet | D15: Centre Wellington Hydro Ltd. | E15: Residential | F15: EE | G15: 2012 | H15: Final; Released August 31, 2013 | J15: Products | K15: 34.88256956 | L15: 0.0002607367703 | M15: 1.497230409 | N15: 0 | O15: 0.0002601897736 | P15: 0.0002601897736 | Q15: 0.0002601897736 | R15: 0.0002601897736 | S15: 0.0002590914564 | T15: 0.0002590914564 | U15: 0.0002209915973 | V15: 0.0002205302177 | W15: 0.0002205302177 | X15: 0.0002205302177 | Y15: 4.056584639e-06 | Z15: 4.053790929e-06 | AA15: 4.053790929e-06 | AB15: 3.907817544e-06 | AC15: 3.907817544e-06 | AD15: 3.650210673e-06 | AE15: 0 | AF15: 0 | AG15: 0 | AH15: 0 | AI15: 0 | AJ15: 0 | AK15: 0 | AL15: 0 | AM15: 0 | AN15: 0 | AO15: 0 | AP15: 0 | AQ15: 0 | AR15: 0 | AS15: 1.578876942 | AT15: 1.578876942 | AU15: 1.578876942 | AV15: 1.578876942 | AW15: 1.555156701 | AX15: 1.555156701 | AY15: 0.7323180038 | AZ15: 0.7282763185 | BA15: 0.7282763185 | BB15: 0.7282763185 | BC15: 0.1182832375 | BD15: 0.09525986802 | BE15: 0.09525986802 | BF15: 0.08186169743 | BG15: 0.08186169743 | BH15: 0.07883322046 | BI15: 0 | BJ15: 0 | BK15: 0 | BL15: 0 | BM15: 0 | BN15: 0 | BO15: 0 | BP15: 0 | BQ15: 0 | BR15: 0 | BS15: 0 | BT15: 0 | BU15: 0
A16: Tier 1 | B16: Consumer | C16: HVAC Incentives | D16: Centre Wellington Hydro Ltd. | E16: Residential | F16: EE | G16: 2012 | H16: Final; Released August 31, 2013 | J16: Installations | K16: 109.0264606 | L16: 0.05678008237 | M16: 104.9701997 | N16: 0 | O16: 0.02783146215 | P16: 0.02783146215 | Q16: 0.02783146215 | R16: 0.02783146215 | S16: 0.02783146215 | T16: 0.02783146215 | U16: 0.02783146215 | V16: 0.02783146215 | W16: 0.02783146215 | X16: 0.02783146215 | Y16: 0.02783146215 | Z16: 0.02783146215 | AA16: 0.02783146215 | AB16: 0.02783146215 | AC16: 0.02783146215 | AD16: 0.02783146215 | AE16: 0.02783146215 | AF16: 0.02783146215 | AG16: 0.02531404955 | AH16: 0 | AI16: 0 | AJ16: 0 | AK16: 0 | AL16: 0 | AM16: 0 | AN16: 0 | AO16: 0 | AP16: 0 | AQ16: 0 | AR16: 0 | AS16: 51.11847832 | AT16: 51.11847832 | AU16: 51.11847832 | AV16: 51.11847832 | AW16: 51.11847832 | AX16: 51.11847832 | AY16: 51.11847832 | AZ16: 51.11847832 | BA16: 51.11847832 | BB16: 51.11847832 | BC16: 51.11847832 | BD16: 51.11847832 | BE16: 51.11847832 | BF16: 51.11847832 | BG16: 51.11847832 | BH16: 51.11847832 | BI16: 51.11847832 | BJ16: 51.11847832 | BK16: 48.86727098 | BL16: 0 | BM16: 0 | BN16: 0 | BO16: 0 | BP16: 0 | BQ16: 0 | BR16: 0 | BS16: 0 | BT16: 0 | BU16: 0
A17: Tier 1 | B17: Pre-2011 Programs Completed in 2011 | C17: High Performance New Construction | D17: Centre Wellington Hydro Ltd. | E17: C&I | F17: EE | G17: 2012 | H17: Final; Released August 31, 2013 | I17: Projects | J17: Projects | K17: 0.001129219602 | L17: 0.000127601815 | M17: 0.1236252682 | N17: 0 | O17: 0.000127601815 | P17: 0.000127601815 | Q17: 0.000127601815 | R17: 0.000127601815 | S17: 0.000127601815 | T17: 0.000127601815 | U17: 0.000127601815 | V17: 0.000127601815 | W17: 0.000127601815 | X17: 0.000127601815 | Y17: 0.000127601815 | Z17: 0.000127601815 | AA17: 0 | AB17: 0 | AC17: 0 | AD17: 0 | AE17: 0 | AF17: 0 | AG17: 0 | AH17: 0 | AI17: 0 | AJ17: 0 | AK17: 0 | AL17: 0 | AM17: 0 | AN17: 0 | AO17: 0 | AP17: 0 | AQ17: 0 | AR17: 0 | AS17: 0.1236252682 | AT17: 0.1236252682 | AU17: 0.1236252682 | AV17: 0.1236252682 | AW17: 0.1236252682 | AX17: 0.1236252682 | AY17: 0.1236252682 | AZ17: 0.1236252682 | BA17: 0.1236252682 | BB17: 0.1236252682 | BC17: 0.1236252682 | BD17: 0.1236252682 | BE17: 0 | BF17: 0 | BG17: 0 | BH17: 0 | BI17: 0 | BJ17: 0 | BK17: 0 | BL17: 0 | BM17: 0 | BN17: 0 | BO17: 0 | BP17: 0 | BQ17: 0 | BR17: 0 | BS17: 0 | BT17: 0 | BU17: 0
A18: Tier 1 | B18: Business | C18: Demand Response 3 (part of the Industrial program schedule) | D18: Centre Wellington Hydro Ltd. | E18: C&I | F18: DR | G18: 2012 | H18: Final; Released August 31, 2013 | J18: Facilities | K18: 1 | L18: 0.0174962265 | M18: 0.2543132 | N18: 0 | O18: 0.0174962265 | P18: 0 | Q18: 0 | R18: 0 | S18: 0 | T18: 0 | U18: 0 | V18: 0 | W18: 0 | X18: 0 | Y18: 0 | Z18: 0 | AA18: 0 | AB18: 0 | AC18: 0 | AD18: 0 | AE18: 0 | AF18: 0 | AG18: 0 | AH18: 0 | AI18: 0 | AJ18: 0 | AK18: 0 | AL18: 0 | AM18: 0 | AN18: 0 | AO18: 0 | AP18: 0 | AQ18: 0 | AR18: 0 | AS18: 0.2543132 | AT18: 0 | AU18: 0 | AV18: 0 | AW18: 0 | AX18: 0 | AY18: 0 | AZ18: 0 | BA18: 0 | BB18: 0 | BC18: 0 | BD18: 0 | BE18: 0 | BF18: 0 | BG18: 0 | BH18: 0 | BI18: 0 | BJ18: 0 | BK18: 0 | BL18: 0 | BM18: 0 | BN18: 0 | BO18: 0 | BP18: 0 | BQ18: 0 | BR18: 0 | BS18: 0 | BT18: 0 | BU18: 0
N19: =SUM(N10:N18) -> 0 | O19: =SUM(O10:O18) -> 0.2473563035 | P19: 0.2130225983 | Q19: 0.2031132253 | AR19: =SUM(AR10:AR18) -> 0 | AS19: =SUM(AS10:AS18) -> 788.3675949 | AT19: =SUM(AT10:AT18) -> 733.2871483 | AU19: =SUM(AU10:AU18) -> 701.0202859
A21: Tier 1 True Up | B21: Business | C21: Retrofit | D21: Centre Wellington Hydro Ltd. | E21: C&I | F21: EE | G21: 2011 | H21: Final; Released August 31, 2013 | J21: Projects | K21: 3 | L21: 0.05368238088 | M21: 368.3981762 | N21: 0.03996410792 | O21: 0.03996410792 | P21: 0.03996410792 | Q21: 0.03996410792 | R21: 0.03996410792 | S21: 0.03996410792 | T21: 0.03928460593 | U21: 0.03928460593 | V21: 0.03928460593 | W21: 0.03928460593 | X21: 0.03928460593 | Y21: 0.03928460593 | Z21: 0 | AA21: 0 | AB21: 0 | AC21: 0 | AD21: 0 | AE21: 0 | AF21: 0 | AG21: 0 | AH21: 0 | AI21: 0 | AJ21: 0 | AK21: 0 | AL21: 0 | AM21: 0 | AN21: 0 | AO21: 0 | AP21: 0 | AQ21: 0 | AR21: 280.1746932 | AS21: 280.1746932 | AT21: 280.1746932 | AU21: 280.1746932 | AV21: 280.1746932 | AW21: 280.1746932 | AX21: 277.5446513 | AY21: 277.5446513 | AZ21: 277.5446513 | BA21: 277.5446513 | BB21: 277.5446513 | BC21: 277.5446513 | BD21: 0 | BE21: 0 | BF21: 0 | BG21: 0 | BH21: 0 | BI21: 0 | BJ21: 0 | BK21: 0 | BL21: 0 | BM21: 0 | BN21: 0 | BO21: 0 | BP21: 0 | BQ21: 0 | BR21: 0 | BS21: 0 | BT21: 0 | BU21: 0
A22: Tier 1 True Up | B22: Pre-2011 Programs Completed in 2011 | C22: High Performance New Construction | D22: Centre Wellington Hydro Ltd. | E22: C&I | F22: EE | G22: 2011 | H22: Final; Released August 31, 2013 | J22: Buildings | K22: 0 | L22: 0 | M22: 0 | N22: 0 | O22: 0 | P22: 0 | Q22: 0 | R22: 0 | S22: 0 | T22: 0 | U22: 0 | V22: 0 | W22: 0 | X22: 0 | Y22: 0 | Z22: 0 | AA22: 0 | AB22: 0 | AC22: 0 | AD22: 0 | AE22: 0 | AF22: 0 | AG22: 0 | AH22: 0 | AI22: 0 | AJ22: 0 | AK22: 0 | AL22: 0 | AM22: 0 | AN22: 0 | AO22: 0 | AP22: 0 | AQ22: 0 | AR22: 0 | AS22: 0 | AT22: 0 | AU22: 0 | AV22: 0 | AW22: 0 | AX22: 0 | AY22: 0 | AZ22: 0 | BA22: 0 | BB22: 0 | BC22: 0 | BD22: 0 | BE22: 0 | BF22: 0 | BG22: 0 | BH22: 0 | BI22: 0 | BJ22: 0 | BK22: 0 | BL22: 0 | BM22: 0 | BN22: 0 | BO22: 0 | BP22: 0 | BQ22: 0 | BR22: 0 | BS22: 0 | BT22: 0 | BU22: 0
A23: Tier 1 True Up | B23: Consumer | C23: HVAC Incentives | D23: Centre Wellington Hydro Ltd. | E23: Residential | F23: EE | G23: 2011 | H23: Final; Released August 31, 2013 | J23: Installations | K23: -24.37715935 | L23: -0.007351442174 | M23: -0.007351442174 | N23: -0.007351442174 | O23: -0.007351442174 | P23: -0.007351442174 | Q23: -0.007351442174 | R23: -0.007351442174 | S23: -0.007351442174 | T23: -0.007351442174 | U23: -0.007351442174 | V23: -0.007351442174 | W23: -0.007351442174 | X23: -0.007351442174 | Y23: -0.007351442174 | Z23: -0.007351442174 | AA23: -0.007351442174 | AB23: -0.007351442174 | AC23: -0.007351442174 | AD23: -0.007351442174 | AE23: -0.007351442174 | AF23: -0.006368152996 | AG23: 0 | AH23: 0 | AI23: 0 | AJ23: 0 | AK23: 0 | AL23: 0 | AM23: 0 | AN23: 0 | AO23: 0 | AP23: 0 | AQ23: 0 | AR23: -13.97244773 | AS23: -13.97244773 | AT23: -13.97244773 | AU23: -13.97244773 | AV23: -13.97244773 | AW23: -13.97244773 | AX23: -13.97244773 | AY23: -13.97244773 | AZ23: -13.97244773 | BA23: -13.97244773 | BB23: -13.97244773 | BC23: -13.97244773 | BD23: -13.97244773 | BE23: -13.97244773 | BF23: -13.97244773 | BG23: -13.97244773 | BH23: -13.97244773 | BI23: -13.97244773 | BJ23: -13.09464258 | BK23: 0 | BL23: 0 | BM23: 0 | BN23: 0 | BO23: 0 | BP23: 0 | BQ23: 0 | BR23: 0 | BS23: 0 | BT23: 0 | BU23: 0
A24: Tier 1 True Up | B24: Consumer | C24: Bi-Annual Retailer Event | D24: Centre Wellington Hydro Ltd. | E24: Residential | F24: EE | G24: 2011 | H24: Final; Released August 31, 2013 | J24: Products | K24: 92.38936016 | L24: 0.0001316775885 | M24: 2.680334248 | N24: 0.0001218022237 | O24: 0.0001218022237 | P24: 0.0001218022237 | Q24: 0.0001218022237 | R24: 0.0001218022237 | S24: 0.0001113808314 | T24: 6.364901893e-05 | U24: 6.362088819e-05 | V24: 6.362088819e-05 | W24: 1.997757993e-05 | X24: 8.300436846e-06 | Y24: 8.298214893e-06 | Z24: 8.298214893e-06 | AA24: 7.916665471e-06 | AB24: 7.916665471e-06 | AC24: 7.899194818e-06 | AD24: 0 | AE24: 0 | AF24: 0 | AG24: 0 | AH24: 0 | AI24: 0 | AJ24: 0 | AK24: 0 | AL24: 0 | AM24: 0 | AN24: 0 | AO24: 0 | AP24: 0 | AQ24: 0 | AR24: 2.465527661 | AS24: 2.465527661 | AT24: 2.465527661 | AU24: 2.465527661 | AV24: 2.465527661 | AW24: 2.240457935 | AX24: 1.209598942 | AY24: 1.209352517 | AZ24: 1.209352517 | BA24: 0.2667925251 | BB24: 0.224135435 | BC24: 0.2058240005 | BD24: 0.2058240005 | BE24: 0.1708034778 | BF24: 0.1708034778 | BG24: 0.1705980893 | BH24: 0 | BI24: 0 | BJ24: 0 | BK24: 0 | BL24: 0 | BM24: 0 | BN24: 0 | BO24: 0 | BP24: 0 | BQ24: 0 | BR24: 0 | BS24: 0 | BT24: 0 | BU24: 0
A25: Tier 1 True Up | B25: Consumer | C25: Conservation Instant Coupon Booklet | D25: Centre Wellington Hydro Ltd. | E25: Residential | F25: EE | G25: 2011 | H25: Final; Released August 31, 2013 | J25: Products | K25: 9.277668249 | L25: 1.64930132e-05 | M25: 0.2890524902 | N25: 1.817929703e-05 | O25: 1.817929703e-05 | P25: 1.817929703e-05 | Q25: 1.817929703e-05 | R25: 1.817929703e-05 | S25: 1.693518162e-05 | T25: 1.184530962e-05 | U25: 1.181819094e-05 | V25: 1.181819094e-05 | W25: 6.608012574e-06 | X25: 8.734895872e-07 | Y25: 8.725682209e-07 | Z25: 8.725682209e-07 | AA25: 8.499126757e-07 | AB25: 8.499126757e-07 | AC25: 8.34368266e-07 | AD25: 0 | AE25: 0 | AF25: 0 | AG25: 0 | AH25: 0 | AI25: 0 | AJ25: 0 | AK25: 0 | AL25: 0 | AM25: 0 | AN25: 0 | AO25: 0 | AP25: 0 | AQ25: 0 | AR25: 0.3112751832 | AS25: 0.3112751832 | AT25: 0.3112751832 | AU25: 0.3112751832 | AV25: 0.3112751832 | AW25: 0.2844061519 | AX25: 0.1744807155 | AY25: 0.1742431559 | AZ25: 0.1742431559 | BA25: 0.06171947533 | BB25: 0.02787505959 | BC25: 0.02028194759 | BD25: 0.02028194759 | BE25: 0.01820250784 | BF25: 0.01820250784 | BG25: 0.01801976471 | BH25: 0 | BI25: 0 | BJ25: 0 | BK25: 0 | BL25: 0 | BM25: 0 | BN25: 0 | BO25: 0 | BP25: 0 | BQ25: 0 | BR25: 0 | BS25: 0 | BT25: 0 | BU25: 0
N26: =SUM(N21:N25) -> 0.03275264726 | O26: =SUM(O21:O25) -> 0.03275264726 | P26: 0.03275264726 | Q26: 0.03275264726 | AR26: =SUM(AR21:AR25) -> 268.9790484 | AS26: =SUM(AS21:AS25) -> 268.9790484 | AT26: =SUM(AT21:AT25) -> 268.9790484 | AU26: 268.9790484
M28: GWh | N28: =(N19+N26)/1000 -> 3.275264726e-05 | O28: =(O19+O26)/1000 -> 0.0002801089507 | P28: 0.0002457752456 | Q28: 0.0002358658726 | AR28: =(AR19+AR26)/1000 -> 0.2689790484 | AS28: =(AS19+AS26)/1000 -> 1.057346643 | AT28: =(AT19+AT26)/1000 -> 1.002266197 | AU28: 0.9699993343
M30: MW | N30: =N19+N26 -> 0.03275264726 | O30: =O19+O26 -> 0.2801089507 | P30: 0.2457752456 | Q30: 0.2358658726 | AR30: =AR19+AR26 -> 268.9790484 | AS30: =AS19+AS26 -> 1057.346643 | AT30: =AT19+AT26 -> 1002.266197 | AU30: =AU19+AU26 -> 969.9993343
M32: kW | N32: =N30*1000 -> 32.75264726 | O32: =O30*1000 -> 280.1089507 | P32: 245.7752456 | Q32: 235.8658726 | AR32: =AR30*1000 -> 268979.0484 | AS32: =AS30*1000 -> 1057346.643 | AT32: =AT30*1000 -> 1002266.197 | AU32: =AU30*1000 -> 969999.3343
O34: 2012 | AS34: 2012
N35: Adj to Previous Year's Verified Results | O35: =O28 -> 0.0002801089507 | P35: MWh | AR35: Adj to Previous Year's Verified Results | AS35: =AS26 -> 268.9790484 | AT35: MWh
N37: Energy Efficiency Total | O37: =SUM(O10+O17)+O19 -> 0.3038283335 | P37: MWh | AR37: Energy Efficiency Total | AS37: =AS19 -> 788.3675949 | AT37: MWh
N39: Demand Response | O39: 0 | P39: MWh | AR39: Demand Response | AS39: 0 | AT39: MWh
N41: OPA- Contract LDC Portfolio (MWh) | O41: =O35+O37+O39 -> 0.3041084424 | P41: MWh | AR41: OPA- Contract LDC Portfolio (MWh) | AS41: =AS35+AS37+AS39 -> 1057.346643 | AT41: MWh
N43: CHECK: Variance to LDC Summary sheet | O43: =SUM((O41-('8.0 2012LostRev'!D59/1000))) -> 0.02426844241 | P43: MWh | AR43: CHECK: Variance to LDC Summary sheet | AS43: =SUM((AS41-('8.0 2012LostRev'!E59/1000))) -> 3.028653737e-07 | AT43: MWh

Sheet 9.0 2013LostRev
A1: LRAMVA Model version 1.0 © CHEC
A6: Table 10: Allocation of Program Savings Across Rate Classes
G7: 2013
A10: # | B10: Initiative | C10: Results Status | D10: Net Incremental Peak Demand Savings (kW) | E10: Net Incremental Energy Savings (kWh) | F10: Rate Allocation for LRAMVA
D11: 2013 kW Saved | E11: 2013 kWh Saved | F11: ='3.0 LRAMVA Register'!B10 -> Residential | G11: ='3.0 LRAMVA Register'!C10 -> General Service < 50 kW | H11: ='3.0 LRAMVA Register'!D10 -> General Service 50 to 2999 kW | I11: ='3.0 LRAMVA Register'!E10 -> General Service 3000 to 4999 kW | J11: ='3.0 LRAMVA Register'!F10 -> Unmetered Scattered Load | K11: ='3.0 LRAMVA Register'!G10 -> Sentinel Lighting | L11: ='3.0 LRAMVA Register'!H10 -> Street Lighting | M11: ='3.0 LRAMVA Register'!K10 -> other | N11: ='3.0 LRAMVA Register'!L10 -> Total
B12: Consumer Program
A13: 1 | B13: Appliance Retirement | C13: Verified | D13: 3.643 | E13: 21580.709 | F13: 1 | N13: =SUM(F13:M13) -> 1
A14: 2 | B14: Appliance Exchange | C14: Verified | D14: 2.072 | E14: 3694.399 | F14: 1 | N14: =SUM(F14:M14) -> 1
A15: 3 | B15: HVAC Incentives | C15: Verified | D15: 28.317 | E15: 50936.682 | F15: 1 | N15: 1
A16: 4 | B16: Conservation Instant Coupon Booklet | C16: Verified | D16: 0.583 | E16: 8703.542 | F16: 1 | N16: 1
A17: 5 | B17: Bi-Annual Retailer Event | C17: Verified | D17: 1.337 | E17: 19399.813 | F17: 1 | N17: 1
A18: 6 | B18: Retailer Co-op | C18: Verified | D18: 0 | E18: 0 | N18: 0
A19: 7 | B19: Residential Demand Response (switch/pstat) | C19: Verified | D19: 4.225 | F19: 1 | N19: 1
A20: 8 | B20: Residential Demand Response (IHD) | C20: Verified | D20: 0 | N20: 0
A21: 9 | B21: Residential New Construction | C21: Verified | D21: 0 | N21: 0
B22: 2012 True-up (Verified Errors & Omissions) | N22: 0
B23: HVAC Incentives | C23: True-up | D23: 0.506 | E23: 1112.959 | F23: 1 | N23: 1
C24: True-up | N24: 0
C25: True-up | N25: 0
B26: Business Program
A27: 10 | B27: Retrofit | C27: Verified | D27: 88.722 | E27: 356535.911 | G27: =(4555.2+13360.14+45715.68+20701.44)/563617.64 -> 0.149627077 | H27: =(33120+441400+4765.178)/563617.64 -> 0.8503729195 | N27: =SUM(F27:M27) -> 0.9999999965
A28: 11 | B28: Direct Install Lighting | C28: Verified | D28: 57.048 | E28: 192984.001 | G28: 1 | N28: 1
A29: 12 | B29: Building Commissioning | C29: Verified | D29: 0 | E29: 0 | N29: 0
A30: 13 | B30: New Construction | C30: Verified | D30: 0 | E30: 0 | N30: 0
A31: 14 | B31: Energy Audit | C31: Verified | D31: 0 | E31: 0 | N31: 0
A32: 15 | B32: Small Commercial Demand Response (switch/pstat)* | C32: Verified | D32: 0 | E32: 0 | N32: 0
A33: 16 | B33: Small Commercial Demand Response (IHD) | C33: Verified | D33: 0 | E33: 0 | N33: 0
A34: 17 | B34: Demand Response 3 | C34: Verified | D34: 17.744 | E34: 236.934 | H34: 1 | N34: 1
B35: 2012 True-up (Verified Errors & Omissions) | N35: 0
B36: Direct Install Lighting | C36: True-up | D36: 2.378 | E36: 8562.615 | G36: 1 | N36: 1
C37: True-up | N37: 0
C38: True-up | N38: 0
B39: Industrial Program
A40: 18 | B40: Process & System Upgrades | C40: Verified | N40: =SUM(F40:M40) -> 0
A41: 19 | B41: Monitoring & Targeting | C41: Verified | N41: 0
A42: 20 | B42: Energy Manager | C42: Verified | N42: 0
A43: 21 | B43: Retrofit | C43: Verified | N43: 0
A44: 22 | B44: Demand Response 3 | C44: Verified | D44: 484.189 | E44: 11025.27 | H44: 1 | N44: 1
B45: 2012 True-up (Verified Errors & Omissions) | N45: 0
C46: True-up | N46: 0
B47: Home Assistance Program
A48: 23 | B48: Home Assistance Program | C48: Verified | D48: 1.066 | E48: 14297.735 | F48: 1 | N48: =SUM(F48:M48) -> 1
B49: 2012 True-up (Verified Errors & Omissions) | N49: 0
C50: True-up | N50: 0
B51: Pre-2011 Programs completed in 2011
A52: 24 | B52: Electricity Retrofit Incentive Program | C52: Verified | N52: =SUM(F52:M52) -> 0
A53: 25 | B53: High Performance New Construction | C53: Verified | N53: 0
A54: 26 | B54: Toronto Comprehensive | C54: Verified | N54: 0
A55: 27 | B55: Multifamily Energy Efficiency Rebates | C55: Verified | N55: 0
A56: 28 | B56: LDC Custom Programs | C56: Verified | N56: 0
B57: 2012 True-up (Verified Errors & Omissions) | N57: 0
C58: True-up | N58: 0
B59: Other
A60: 29 | B60: Program Enabled Savings | C60: Verified | N60: =SUM(F60:M60) -> 0
A61: 30 | B61: Time-of-Use Savings | C61: Verified | N61: 0
B62: Total kWh | D62: =SUM(D13:D18,D27:D33,D40:D43,D48,D52:D56,D60:D61) -> 182.788 | E62: =SUM(E13:E23,E27:E33,E40:E43,E48,E52:E56,E60:E61,E36) -> 677808.366 | F62: =SUM($E$13*F13,$E$14*F14,$E$15*F15,$E$16*F16,$E$17*F17,$E$18*F18,$E$19*F19,$E$21*F21,$E$48*F48,$E$23*F23,$E$24*F24,$E$25*F25,$E$50*F50) -> 119725.839 | G62: =SUM($E$27*G27,$E$28*G28,$E$29*G29,$E$30*G30,$E$31*G31,$E$36*G36,$E$37*G37,$E$38*G38) -> 254894.0422 | H62: =SUM($E$27*H27,$E$28*H28,$E$29*H29,$E$30*H30,$E$31*H31,$E$36*H36,$E$37*H37,$E$38*H38) -> 303188.4835 | I62: =SUM($E$27*I27,$E$34*I34,$E$44*I44,$E$52*I52,$E$53*I53,$E$28*I28,$E$29*I29,$E$30*I30,$E$31*I31,$E$36*I36,$E$37*I37,$E$38*I38,$E$46*I46,$E$58*I58) -> 0 | J62: =SUM($E$27*J27,$E$34*J34,$E$44*J44,$E$52*J52,$E$53*J53,$E$28*J28,$E$29*J29,$E$30*J30,$E$31*J31,$E$36*J36,$E$37*J37,$E$38*J38,$E$46*J46,$E$58*J58) -> 0 | K62: =SUM($E$27*K27,$E$34*K34,$E$44*K44,$E$52*K52,$E$53*K53,$E$28*K28,$E$29*K29,$E$30*K30,$E$31*K31,$E$36*K36,$E$37*K37,$E$38*K38,$E$46*K46,$E$58*K58) -> 0 | L62: =SUM($E$27*L27,$E$34*L34,$E$44*L44,$E$52*L52,$E$53*L53,$E$28*L28,$E$29*L29,$E$30*L30,$E$31*L31,$E$36*L36,$E$37*L37,$E$38*L38,$E$46*L46,$E$58*L58) -> 0 | N62: =SUM(F62:M62) -> 677808.3647
A63: 12 | B63: Total GS > 50 kW excluding Demand Response 3 | H63: =SUM($D$27*H27,$D$52*H52,$D$53*H53,H34*D34,H44*D44)*$A63 -> 6928.557434 | I63: =SUM($D$27*I27,$D$52*I52,$D$53*I53)*$A63 -> 0 | J63: =SUM($D$27*J27,$D$52*J52,$D$53*J53)*$A63 -> 0 | K63: =SUM($D$27*K27,$D$52*K52,$D$53*K53)*$A63 -> 0 | L63: =SUM($D$27*L27,$D$52*L52,$D$53*L53)*$A63 -> 0 | N63: =SUM(F63:M63) -> 6928.557434
A64: 5 | B64: Demand Response Total (Scenario 1) | D64: =SUM(D34,D44,D19) -> 506.158 | E64: =SUM(E34,E44) -> 11262.204 | H64: =SUM($D$34*H34,$D$44*H44)*$A64 -> 2509.665 | I64: =SUM($D$34*I34,$D$44*I44)*$A64 -> 0 | J64: =SUM($D$34*J34,$D$44*J44)*$A64 -> 0 | K64: =SUM($D$34*K34,$D$44*K44)*$A64 -> 0 | L64: =SUM($D$34*L34,$D$44*L44)*$A64 -> 0 | N64: =SUM(F64:M64) -> 2509.665
B65: OPA-Contracted LDC Portfolio Total | D65: =SUM(D62:D64) -> 688.946 | E65: =SUM(E62:E64) -> 689070.57
B66: Rate | F66: ='6.0 Rates'!E15 -> 0.0134 | G66: ='6.0 Rates'!E16 -> 0.01705 | H66: ='6.0 Rates'!E17 -> 3.2039 | I66: ='6.0 Rates'!E18 -> 2.61555 | J66: ='6.0 Rates'!E19 -> 0.01725 | K66: ='6.0 Rates'!E20 -> 11.7807 | L66: ='6.0 Rates'!E21 -> 15.07385
B67: Lost Revenue in 2013 from 2013 | F67: =F62*F66 -> 1604.326243 | G67: =G62*G66 -> 4345.943419 | H67: =SUM(H63,H64)*H66 -> 30239.12086 | I67: =SUM(I63,I64)*I66 -> 0 | J67: =J63*J66 -> 0 | K67: 0 | L67: 0 | N67: =SUM(F67:M67) -> 36189.39052
B68: Lost Revenue in 2013 from 2012 | F68: ='8.0 2012LostRev'!F64*F66 -> 1422.020778 | G68: ='8.0 2012LostRev'!G64*G66 -> 12293.90661 | H68: ='8.0 2012LostRev'!H64*H66 -> 1854.734585 | I68: ='8.0 2012LostRev'!I64*I66 -> 0 | J68: ='8.0 2012LostRev'!J64*J66 -> 0 | K68: ='8.0 2012LostRev'!K64*K66 -> 0 | L68: ='8.0 2012LostRev'!L64*L66 -> 0 | N68: =SUM(F68:M68) -> 15570.66198
B69: Lost Revenue in 2013 from 2011 | F69: ='7.0 2011LostRev'!F49*F66 -> 2336.08725 | G69: ='7.0 2011LostRev'!G49*G66 -> 2333.038629 | H69: ='7.0 2011LostRev'!H49*H66 -> 4012.824285 | I69: ='7.0 2011LostRev'!I49*I66 -> 87.748045 | J69: ='7.0 2011LostRev'!J49*J66 -> 0 | K69: ='7.0 2011LostRev'!K49*K66 -> 0 | L69: ='7.0 2011LostRev'!L49*L66 -> 0 | N69: 8769.698209
B70: Total Lost Revenue in 2013 | F70: =SUM(F67:F69) -> 5362.434271 | G70: =SUM(G67:G69) -> 18972.88866 | H70: =SUM(H67:H69) -> 36106.67973 | I70: 87.748045 | J70: 0 | K70: 0 | L70: 0 | N70: =SUM(N67:N69) -> 60529.7507
B71: 2013 Savings Persisting in 2014 | F71: =F62*'11.0 Persistence '!E44 -> 117640.6285 | G71: =G62*'11.0 Persistence '!E44 -> 250454.6685 | H71: =H63*'11.0 Persistence '!E26 -> 1862.30012 | I71: =I63*'11.0 Persistence '!E26 -> 0 | J71: =J63*'11.0 Persistence '!E26 -> 0 | K71: =K63*'11.0 Persistence '!E26 -> 0 | L71: =L63*'11.0 Persistence '!E44 -> 0
B73: Input program details, report status, kWh and kW net savings from OPA Final Annual Report
B74: Input % allocation where applicable based on LDC information
B76: 2013 savings persisting -

Sheet 10.0 2014LostRev
A1: LRAMVA Model version 1.0 © CHEC
A6: Table 11: Allocation of Program Savings Across Rate Classes
G7: 2014
A10: # | B10: Initiative | C10: Results Status | D10: Net Incremental Peak Demand Savings (kW) | E10: Net Incremental Energy Savings (kWh) | F10: Rate Allocation for LRAMVA
D11: 2014 kW Saved | E11: 2014 kWh Saved | F11: ='3.0 LRAMVA Register'!B10 -> Residential | G11: ='3.0 LRAMVA Register'!C10 -> General Service < 50 kW | H11: ='3.0 LRAMVA Register'!D10 -> General Service 50 to 2999 kW | I11: ='3.0 LRAMVA Register'!E10 -> General Service 3000 to 4999 kW | J11: ='3.0 LRAMVA Register'!F10 -> Unmetered Scattered Load | K11: ='3.0 LRAMVA Register'!G10 -> Sentinel Lighting | L11: ='3.0 LRAMVA Register'!H10 -> Street Lighting | M11: ='3.0 LRAMVA Register'!K10 -> other | N11: ='3.0 LRAMVA Register'!L10 -> Total
B12: Consumer Program
A13: 1 | B13: Appliance Retirement | C13: Verified | F13: 1 | N13: =SUM(F13:M13) -> 1
A14: 2 | B14: Appliance Exchange | C14: Verified | F14: 1 | N14: =SUM(F14:M14) -> 1
A15: 3 | B15: HVAC Incentives | C15: Verified | F15: 1 | N15: 1
A16: 4 | B16: Conservation Instant Coupon Booklet | C16: Verified | F16: 1 | N16: 1
A17: 5 | B17: Bi-Annual Retailer Event | C17: Verified | F17: 1 | N17: 1
A18: 6 | B18: Retailer Co-op | C18: Verified | F18: 1 | N18: 1
A19: 7 | B19: Residential Demand Response (switch/pstat) | C19: Verified | F19: 1 | N19: 1
A20: 8 | B20: Residential Demand Response (IHD) | C20: Verified | F20: 1 | N20: 1
A21: 9 | B21: Residential New Construction | C21: Verified | F21: 1 | N21: 1
B22: Business Program
A23: 10 | B23: Retrofit | C23: Verified | G23: 0.2 | H23: 0.8 | N23: =SUM(F23:M23) -> 1
A24: 11 | B24: Direct Install Lighting | C24: Verified | G24: 1 | N24: 1
A25: 12 | B25: Building Commissioning | C25: Verified | N25: 0
A26: 13 | B26: New Construction | C26: Verified | N26: 0
A27: 14 | B27: Energy Audit | C27: Verified | N27: 0
A28: 15 | B28: Small Commercial Demand Response (switch/pstat)* | C28: Verified | N28: 0
A29: 16 | B29: Small Commercial Demand Response (IHD) | C29: Verified | N29: 0
A30: 17 | B30: Demand Response 3 | C30: Verified | H30: 1 | N30: 1
B31: Industrial Program
A32: 18 | B32: Process & System Upgrades | C32: Verified | N32: =SUM(F32:M32) -> 0
A33: 19 | B33: Monitoring & Targeting | C33: Verified | N33: 0
A34: 20 | B34: Energy Manager | C34: Verified | N34: 0
A35: 21 | B35: Retrofit | C35: Verified | N35: 0
A36: 22 | B36: Demand Response 3 | C36: Verified | H36: 1 | N36: 1
B37: Home Assistance Program
A38: 23 | B38: Home Assistance Program | C38: Verified | F38: 1 | N38: =SUM(F38:M38) -> 1
B39: Pre-2011 Programs completed in 2011
A40: 24 | B40: Electricity Retrofit Incentive Program | C40: Verified | H40: 1 | N40: =SUM(F40:M40) -> 1
A41: 25 | B41: High Performance New Construction | C41: Verified | H41: 1 | N41: 1
A42: 26 | B42: Toronto Comprehensive | C42: Verified | N42: 0
A43: 27 | B43: Multifamily Energy Efficiency Rebates | C43: Verified | N43: 0
A44: 28 | B44: LDC Custom Programs | C44: Verified | N44: 0
B45: Other
A46: 29 | B46: Program Enabled Savings | C46: Verified | N46: =SUM(F46:M46) -> 0
A47: 30 | B47: Time-of-Use Savings | C47: Verified | N47: 0
B48: Total kWh | D48: =SUM(D13:D21,D23:D29,D32:D35,D38,D40:D44,D46:D47) -> 0 | E48: =SUM(E13:E21,E23:E29,E32:E35,E38,E40:E44,E46:E47) -> 0 | F48: =SUM(E13*F13,E14*F14,E15*F15,E16*F16,E17*F17,E18*F18,E19*F19,E21*F21,E38*F38) -> 0 | G48: =SUM(E23*G23,E24*G24) -> 0 | H48: =SUM(E23*H23,E30*H30,E36*H36,E40*H40,E41*H41) -> 0 | N48: =SUM(F48:M48) -> 0
A49: 12 | B49: Total GS > 50 kW excluding Demand Response 3 | H49: =SUM(D23*H23,D40*H40,D41*H41)*$A49 -> 0 | N49: =SUM(F49:M49) -> 0
A50: 5 | B50: Demand Response Total (Scenario 1) | D50: =SUM(D30,D36) -> 0 | E50: =SUM(E30,E36) -> 0 | H50: =SUM(D30*H30,D36*H36)*$A50 -> 0 | N50: =SUM(F50:M50) -> 0
B51: OPA-Contracted LDC Portfolio Total | D51: =SUM(D48:D50) -> 0 | E51: =SUM(E48:E50) -> 0
B52: Rate | F52: ='6.0 Rates'!F15 -> 0.01413333333 | G52: ='6.0 Rates'!F16 -> 0.0183 | H52: ='6.0 Rates'!F17 -> 3.526 | I52: ='6.0 Rates'!F18 -> 2.781433333 | J52: ='6.0 Rates'!F19 -> 0.01036666667 | K52: ='6.0 Rates'!F20 -> 11.8952 | L52: ='6.0 Rates'!F21 -> 8.8459
B53: Lost Revenue in 2014 from 2014 | F53: =F48*F52 -> 0 | G53: =G48*G52 -> 0 | H53: =SUM(H49,H50)*H52 -> 0 | I53: =SUM(I49,I50)*I52 -> 0 | J53: =J49*J52 -> 0 | K53: 0 | L53: 0 | N53: =SUM(F53:M53) -> 0
B54: Lost Revenue in 2014 from 2013 | F54: ='9.0 2013LostRev'!F71*F52 -> 1662.654215 | G54: ='9.0 2013LostRev'!G71*G52 -> 4583.320433 | H54: ='9.0 2013LostRev'!H71*H52 -> 6566.470221 | I54: ='9.0 2013LostRev'!I71*I52 -> 0 | J54: ='9.0 2013LostRev'!J71*J52 -> 0 | K54: ='9.0 2013LostRev'!K71*K52 -> 0 | L54: ='9.0 2013LostRev'!L71*L52 -> 0 | N54: =SUM(F54:M54) -> 12812.44487
B55: Lost Revenue in 2014 from 2012 | F55: ='8.0 2012LostRev'!F65*F52 -> 1451.943639 | G55: ='8.0 2012LostRev'!G65*G52 -> 12773.8152 | H55: ='8.0 2012LostRev'!H65*H52 -> 1958.222434 | I55: ='8.0 2012LostRev'!I65*I52 -> 0 | J55: ='8.0 2012LostRev'!J65*J52 -> 0 | K55: ='8.0 2012LostRev'!K65*K52 -> 0 | L55: ='8.0 2012LostRev'!L65*L52 -> 0 | N55: =SUM(F55:M55) -> 16183.98128
B56: Lost Revenue in 2014 from 2011 | F56: ='7.0 2011LostRev'!F50*F52 -> 2385.511961 | G56: ='7.0 2011LostRev'!G50*G52 -> 2424.383792 | H56: ='7.0 2011LostRev'!H50*H52 -> 4189.245031 | I56: ='7.0 2011LostRev'!I50*I52 -> 88.51672603 | J56: ='7.0 2011LostRev'!J50*J52 -> 0 | K56: ='7.0 2011LostRev'!K50*K52 -> 0 | L56: ='7.0 2011LostRev'!L50*L52 -> 0 | N56: 9087.65751
B57: Total Lost Revenue in 2014 | F57: =SUM(F53:F56) -> 5500.109816 | G57: =SUM(G53:G56) -> 19781.51943 | H57: 12713.93769 | I57: 88.51672603 | J57: 0 | K57: 0 | L57: 0 | N57: =SUM(N53:N56) -> 38084.08366
B59: Input program details, report status, kWh and kW net savings from OPA Final Annual Report
B60: Input % allocation where applicable based on LDC information

Sheet 11.0 Persistence
A1: LRAMVA Model version 1.0 © CHEC
A9: Progress Towards CDM Targets
A10: Results are attributed to target using current OPA reporting policies. Energy efficiency resources persist for the duration of the effective useful life. Any upcoming code changes are taken into account. Demand response resources persist for 1 year. Please see methodology tab for more detailed information.
A11: Table 12: Net Peak Demand Savings at the End User Level (MW)
A13: Implementation Period | B13: Annual
B14: 2011 | C14: 2012 | D14: 2013 | E14: 2014
A15: 2011 - Verified | B15: 0.229 | C15: 0.214 | D15: 0.214 | E15: 0.203
A16: 2012 - Verified | B16: 0.033 | C16: 0.28 | D16: 0.246 | E16: 0.236
A17: 2013 | B17: 0 | C17: 0.003 | D17: 0.692 | E17: 0.186
A18: 2014
A19: Verified Net Annual Peak Demand Savings Persisting in 2014: | E19: 0.625
A20: 2011-2014 CDM Capacity Target | E20: 1.64
A21: Verified Portion of Peak Demand Savings Target Achieved in 2014(%): | E21: =E19/E20 -> 0.381097561
A23: Persistence Factor (MW)
A24: 2011 | C24: =C15/$B$15 -> 0.9344978166 | D24: =D15/$B$15 -> 0.9344978166 | E24: =E15/$B$15 -> 0.8864628821
A25: 2012 | D25: =D16/$C$16 -> 0.8785714286 | E25: =E16/$C$16 -> 0.8428571429
A26: 2013 | E26: =+E17/D17 -> 0.2687861272
A29: Table 13: Net Energy Savings at the End User Level (GWh)
A31: Implementation Period | B31: Annual | F31: Cumulative
B32: 2011 | C32: 2012 | D32: 2013 | E32: 2014 | F32: 2011-2014
A33: 2011 - Verified | B33: 0.975 | C33: 0.974 | D33: 0.974 | E33: 0.943 | F33: 3.866
A34: 2012 - Verified | B34: 0.269 | C34: 1.057 | D34: 1.002 | E34: 0.97 | F34: 3.298
A35: 2013 | B35: 0 | C35: 0.01 | D35: 0.689 | E35: 0.677 | F35: 1.376
A36: 2014 | F36: =SUM(B36:E36) -> 0
A37: Verified Net Cumulative Energy Savings 2011-2014: | F37: 8.54
A38: 2011-2014 CDM Energy Target | F38: 7.81
A39: Verified Portion of Cumulative Energy Target Achieved (%): | F39: =F37/F38 -> 1.09346991
A41: Persistence Factor (GWh)
A42: 2011 | C42: =C33/$B$33 -> 0.998974359 | D42: =D33/$B$33 -> 0.998974359 | E42: =E33/$B$33 -> 0.9671794872
A43: 2012 | D43: =D34/$C$34 -> 0.9479659413 | E43: =E34/$C$34 -> 0.9176915799
A44: 2013 | E44: =E35/D35 -> 0.9825834543

Sheet CDM in 2013 CoS
A1: The following table reflects the CDM adjusted kWh and kW by rate class for CWH.
A3: Rate Class | B3: Billed Load Forecast Prior to CDM Adjustment kWh | C3: Billed Load Forecast After CDM Adjustment kWh | D3: CDM Adjustment kWh
A4: Residential | B4: 46118694 | C4: 45809827 | D4: =B4-C4 -> 308867
A5: GS<50 kW | B5: 20545642 | C5: 20408044 | D5: =B5-C5 -> 137598
A6: GS>50 kW to 2,999 kW | B6: 61722677 | C6: 61309307 | D6: 413370
A7: GS>3,000 to 4,999 kW | B7: 17074303 | C7: 16959953 | D7: 114350
A8: Sentinel Lights | B8: 37713 | C8: 37461 | D8: 252
A9: Street Lights | B9: 1137812 | C9: 1130191 | D9: 7621
A10: Unmetered Scattered Load | B10: 608453 | C10: 604378 | D10: 4075
A11: Total Billed kWh | B11: =SUM(B4:B10) -> 147245294 | C11: =SUM(C4:C10) -> 146259161 | D11: 986133
A15: Rate Class | B15: Billed Load Forecast Prior to CDM Adjustment kW | C15: Billed Load Forecast After CDM Adjustment kW | D15: CDM Adjustment kW
A16: GS>50 kW to 2,999 kW | B16: =61722677*0.002571218 -> 158702.4581 | C16: =C6*0.002571218 -> 157639.5937 | D16: =B16-C16 -> 1062.864385
A17: GS>3,000 to 4,999 kW | B17: =17074303*0.002206117 -> 37667.91011 | C17: =C7*0.002206117 -> 37415.64063 | D17: 252.2694789
A18: Sentinel Lights | B18: =37713*0.002778 -> 104.766714 | C18: =C8*0.002778 -> 104.066658 | D18: 0.700056
A19: Street Lights | B19: =1137812*0.002798 -> 3183.597976 | C19: =C9*0.002798 -> 3162.274418 | D19: 21.323558
A20: Total Billed kWh | B20: =SUM(B16:B19) -> 199658.7329 | C20: =SUM(C16:C19) -> 198321.5754 | D20: =SUM(D16:D19) -> 1337.157478
C23: 0
